Body Name,Body,Date,Department,Beneficiary,Summary of Purpose (SeRCOP),Amount,Merchant Code,Transaction Number
Sandwell Metropolitan Borough Council,https://www.sandwell.gov.uk/performance-spending/government-procurement-cards,04-Oct-2023,Total Borough Economy,PODBEAN.COM,Dead SeRCOP,33.15,"CONSULTING, MANAGEMENT, AND PUBLIC RELATIONS SVCS",2023-24Q3_PC0001
Sandwell Metropolitan Borough Council,https://www.sandwell.gov.uk/performance-spending/government-procurement-cards,04-Oct-2023,Total Borough Economy,AMZNMktplace,Total Adult Social Care,-13.09,MISCELLANEOUS AND SPECIALTY RETAIL STORES,2023-24Q3_PC0002
Sandwell Metropolitan Borough Council,https://www.sandwell.gov.uk/performance-spending/government-procurement-cards,04-Oct-2023,Regeneration & Growth,AMZNMktplace,Regeneration And The Economy,23.57,MISCELLANEOUS AND SPECIALTY RETAIL STORES,2023-24Q3_PC0003
Sandwell Metropolitan Borough Council,https://www.sandwell.gov.uk/performance-spending/government-procurement-cards,04-Oct-2023,Regeneration & Growth,WWW.CIPFA.ORG.UK/PFMCO,Regeneration And The Economy,2700,"ORGANIZATIONS, MEMBERSHIP-NOT ELSEWHERE CLASSIFIED",2023-24Q3_PC0004
Sandwell Metropolitan Borough Council,https://www.sandwell.gov.uk/performance-spending/government-procurement-cards,04-Oct-2023,Total ASCHWB,AMZNMKTPLACE,Total Adult Social Care,34.69,MISCELLANEOUS AND SPECIALTY RETAIL STORES,2023-24Q3_PC0005
Sandwell Metropolitan Borough Council,https://www.sandwell.gov.uk/performance-spending/government-procurement-cards,04-Oct-2023,Total ASCHWB,AMZNMKTPLACE,Total Adult Social Care,56.78,MISCELLANEOUS AND SPECIALTY RETAIL STORES,2023-24Q3_PC0006
Sandwell Metropolitan Borough Council,https://www.sandwell.gov.uk/performance-spending/government-procurement-cards,04-Oct-2023,Childrens Services,Amazon.co.uk HT6O10E64,Childrens Services,45.87,DIRECT MARKETING-OTHER DIRECT MARKETERS/NOT ELSEW.,2023-24Q3_PC0007
Sandwell Metropolitan Borough Council,https://www.sandwell.gov.uk/performance-spending/government-procurement-cards,04-Oct-2023,Total Borough Economy,PAYPAL  hannahleslie19,Total Adult Social Care,150,POI FUNDING TRANSACTIONS,2023-24Q3_PC0008
Sandwell Metropolitan Borough Council,https://www.sandwell.gov.uk/performance-spending/government-procurement-cards,04-Oct-2023,Regeneration & Growth,AMZNMKTPLACE,Regeneration And The Economy,29.98,MISCELLANEOUS AND SPECIALTY RETAIL STORES,2023-24Q3_PC0009
Sandwell Metropolitan Borough Council,https://www.sandwell.gov.uk/performance-spending/government-procurement-cards,04-Oct-2023,Regeneration & Growth,TVLICENSING.CO.UK,Regeneration And The Economy,159,"CONSULTING, MANAGEMENT, AND PUBLIC RELATIONS SVCS",2023-24Q3_PC0010
Sandwell Metropolitan Borough Council,https://www.sandwell.gov.uk/performance-spending/government-procurement-cards,04-Oct-2023,Individual School Budgets With Inclusion,BUDGENS,Individual School Budgets With Inclusion,7.39,"GROCERY STORES, SUPERMARKETS",2023-24Q3_PC0011
Sandwell Metropolitan Borough Council,https://www.sandwell.gov.uk/performance-spending/government-procurement-cards,04-Oct-2023,Housing & Assets Total,Amazon.co.uk HT3HA8AU4,Corporate Management,53.47,DIRECT MARKETING-OTHER DIRECT MARKETERS/NOT ELSEW.,2023-24Q3_PC0012
Sandwell Metropolitan Borough Council,https://www.sandwell.gov.uk/performance-spending/government-procurement-cards,04-Oct-2023,Housing & Assets Total,Amazon Prime HT4DL5TT4,Corporate Management,0.99,DIRECT MARKETING-CONTINUITY/SUBSCRIPTION MERCHANTS,2023-24Q3_PC0013
Sandwell Metropolitan Borough Council,https://www.sandwell.gov.uk/performance-spending/government-procurement-cards,04-Oct-2023,Housing & Assets Total,ASDA STORES,Corporate Management,19.35,"GROCERY STORES, SUPERMARKETS",2023-24Q3_PC0014
Sandwell Metropolitan Borough Council,https://www.sandwell.gov.uk/performance-spending/government-procurement-cards,04-Oct-2023,Housing & Assets Total,AMZNMktplace,Corporate Management,17.58,MISCELLANEOUS AND SPECIALTY RETAIL STORES,2023-24Q3_PC0015
Sandwell Metropolitan Borough Council,https://www.sandwell.gov.uk/performance-spending/government-procurement-cards,04-Oct-2023,Law & Governance,Trainline,Assistant Chief Executive (Excl SIU),141.53,PASSENGER RAILWAYS,2023-24Q3_PC0016
Sandwell Metropolitan Borough Council,https://www.sandwell.gov.uk/performance-spending/government-procurement-cards,04-Oct-2023,Law & Governance,MOJ OSPT ECOM,Assistant Chief Executive (Excl SIU),40,GOVERNMENT SERVICES-NOT ELSEWHERE CLASSIFIED,2023-24Q3_PC0017
Sandwell Metropolitan Borough Council,https://www.sandwell.gov.uk/performance-spending/government-procurement-cards,04-Oct-2023,Law & Governance,MOJ OSPT ECOM,Assistant Chief Executive (Excl SIU),40,GOVERNMENT SERVICES-NOT ELSEWHERE CLASSIFIED,2023-24Q3_PC0018
Sandwell Metropolitan Borough Council,https://www.sandwell.gov.uk/performance-spending/government-procurement-cards,04-Oct-2023,Law & Governance,MOJ OSPT ECOM,Assistant Chief Executive (Excl SIU),40,GOVERNMENT SERVICES-NOT ELSEWHERE CLASSIFIED,2023-24Q3_PC0019
Sandwell Metropolitan Borough Council,https://www.sandwell.gov.uk/performance-spending/government-procurement-cards,04-Oct-2023,Law & Governance,MOJ OSPT ECOM,Assistant Chief Executive (Excl SIU),40,GOVERNMENT SERVICES-NOT ELSEWHERE CLASSIFIED,2023-24Q3_PC0020
Sandwell Metropolitan Borough Council,https://www.sandwell.gov.uk/performance-spending/government-procurement-cards,04-Oct-2023,Law & Governance,MOJ OSPT ECOM,Assistant Chief Executive (Excl SIU),40,GOVERNMENT SERVICES-NOT ELSEWHERE CLASSIFIED,2023-24Q3_PC0021
Sandwell Metropolitan Borough Council,https://www.sandwell.gov.uk/performance-spending/government-procurement-cards,04-Oct-2023,Law & Governance,MOJ OSPT ECOM,Assistant Chief Executive (Excl SIU),40,GOVERNMENT SERVICES-NOT ELSEWHERE CLASSIFIED,2023-24Q3_PC0022
Sandwell Metropolitan Borough Council,https://www.sandwell.gov.uk/performance-spending/government-procurement-cards,04-Oct-2023,Law & Governance,MOJ OSPT ECOM,Assistant Chief Executive (Excl SIU),40,GOVERNMENT SERVICES-NOT ELSEWHERE CLASSIFIED,2023-24Q3_PC0023
Sandwell Metropolitan Borough Council,https://www.sandwell.gov.uk/performance-spending/government-procurement-cards,04-Oct-2023,Law & Governance,MOJ OSPT ECOM,Assistant Chief Executive (Excl SIU),40,GOVERNMENT SERVICES-NOT ELSEWHERE CLASSIFIED,2023-24Q3_PC0024
Sandwell Metropolitan Borough Council,https://www.sandwell.gov.uk/performance-spending/government-procurement-cards,04-Oct-2023,Law & Governance,MOJ OSPT ECOM,Assistant Chief Executive (Excl SIU),40,GOVERNMENT SERVICES-NOT ELSEWHERE CLASSIFIED,2023-24Q3_PC0025
Sandwell Metropolitan Borough Council,https://www.sandwell.gov.uk/performance-spending/government-procurement-cards,04-Oct-2023,Law & Governance,MOJ OSPT ECOM,Assistant Chief Executive (Excl SIU),40,GOVERNMENT SERVICES-NOT ELSEWHERE CLASSIFIED,2023-24Q3_PC0026
Sandwell Metropolitan Borough Council,https://www.sandwell.gov.uk/performance-spending/government-procurement-cards,04-Oct-2023,Law & Governance,MOJ OSPT ECOM,Assistant Chief Executive (Excl SIU),40,GOVERNMENT SERVICES-NOT ELSEWHERE CLASSIFIED,2023-24Q3_PC0027
Sandwell Metropolitan Borough Council,https://www.sandwell.gov.uk/performance-spending/government-procurement-cards,04-Oct-2023,Law & Governance,MOJ OSPT ECOM,Assistant Chief Executive (Excl SIU),40,GOVERNMENT SERVICES-NOT ELSEWHERE CLASSIFIED,2023-24Q3_PC0028
Sandwell Metropolitan Borough Council,https://www.sandwell.gov.uk/performance-spending/government-procurement-cards,04-Oct-2023,Law & Governance,MOJ OSPT ECOM,Assistant Chief Executive (Excl SIU),40,GOVERNMENT SERVICES-NOT ELSEWHERE CLASSIFIED,2023-24Q3_PC0029
Sandwell Metropolitan Borough Council,https://www.sandwell.gov.uk/performance-spending/government-procurement-cards,04-Oct-2023,Law & Governance,MOJ OSPT ECOM,Assistant Chief Executive (Excl SIU),40,GOVERNMENT SERVICES-NOT ELSEWHERE CLASSIFIED,2023-24Q3_PC0030
Sandwell Metropolitan Borough Council,https://www.sandwell.gov.uk/performance-spending/government-procurement-cards,04-Oct-2023,Law & Governance,MOJ OSPT ECOM,Assistant Chief Executive (Excl SIU),40,GOVERNMENT SERVICES-NOT ELSEWHERE CLASSIFIED,2023-24Q3_PC0031
Sandwell Metropolitan Borough Council,https://www.sandwell.gov.uk/performance-spending/government-procurement-cards,04-Oct-2023,Law & Governance,MOJ OSPT ECOM,Assistant Chief Executive (Excl SIU),40,GOVERNMENT SERVICES-NOT ELSEWHERE CLASSIFIED,2023-24Q3_PC0032
Sandwell Metropolitan Borough Council,https://www.sandwell.gov.uk/performance-spending/government-procurement-cards,04-Oct-2023,Law & Governance,MOJ OSPT ECOM,Assistant Chief Executive (Excl SIU),40,GOVERNMENT SERVICES-NOT ELSEWHERE CLASSIFIED,2023-24Q3_PC0033
Sandwell Metropolitan Borough Council,https://www.sandwell.gov.uk/performance-spending/government-procurement-cards,04-Oct-2023,Law & Governance,MOJ OSPT ECOM,Assistant Chief Executive (Excl SIU),40,GOVERNMENT SERVICES-NOT ELSEWHERE CLASSIFIED,2023-24Q3_PC0034
Sandwell Metropolitan Borough Council,https://www.sandwell.gov.uk/performance-spending/government-procurement-cards,04-Oct-2023,Law & Governance,MOJ OSPT ECOM,Assistant Chief Executive (Excl SIU),40,GOVERNMENT SERVICES-NOT ELSEWHERE CLASSIFIED,2023-24Q3_PC0035
Sandwell Metropolitan Borough Council,https://www.sandwell.gov.uk/performance-spending/government-procurement-cards,04-Oct-2023,Law & Governance,MOJ OSPT ECOM,Assistant Chief Executive (Excl SIU),40,GOVERNMENT SERVICES-NOT ELSEWHERE CLASSIFIED,2023-24Q3_PC0036
Sandwell Metropolitan Borough Council,https://www.sandwell.gov.uk/performance-spending/government-procurement-cards,04-Oct-2023,Law & Governance,MOJ OSPT ECOM,Assistant Chief Executive (Excl SIU),40,GOVERNMENT SERVICES-NOT ELSEWHERE CLASSIFIED,2023-24Q3_PC0037
Sandwell Metropolitan Borough Council,https://www.sandwell.gov.uk/performance-spending/government-procurement-cards,04-Oct-2023,Law & Governance,MOJ OSPT ECOM,Assistant Chief Executive (Excl SIU),40,GOVERNMENT SERVICES-NOT ELSEWHERE CLASSIFIED,2023-24Q3_PC0038
Sandwell Metropolitan Borough Council,https://www.sandwell.gov.uk/performance-spending/government-procurement-cards,04-Oct-2023,Total Borough Economy,LIDL GB WEST BROMWICH,Total Adult Social Care,11.4,"GROCERY STORES, SUPERMARKETS",2023-24Q3_PC0039
Sandwell Metropolitan Borough Council,https://www.sandwell.gov.uk/performance-spending/government-procurement-cards,04-Oct-2023,Childrens Services,ASDA SUPERSTORE,Childrens Services,7.8,"GROCERY STORES, SUPERMARKETS",2023-24Q3_PC0040
Sandwell Metropolitan Borough Council,https://www.sandwell.gov.uk/performance-spending/government-procurement-cards,04-Oct-2023,Law & Governance,WWW.OFFICETEAMCONNECT.,Assistant Chief Executive (Excl SIU),250.77,STATIONERY/OFFICE SUPPLIES/PRINTING & WRITING PAP.,2023-24Q3_PC0041
Sandwell Metropolitan Borough Council,https://www.sandwell.gov.uk/performance-spending/government-procurement-cards,04-Oct-2023,Childrens Services,RONTEC DUDLEY PORT,Childrens Services,3.1,SERVICE STATIONS WITH OR WITHOUT ANCILLARY SERVICE,2023-24Q3_PC0042
Sandwell Metropolitan Borough Council,https://www.sandwell.gov.uk/performance-spending/government-procurement-cards,04-Oct-2023,Childrens Services,AMZNMktplace,Childrens Services,74.13,MISCELLANEOUS AND SPECIALTY RETAIL STORES,2023-24Q3_PC0043
Sandwell Metropolitan Borough Council,https://www.sandwell.gov.uk/performance-spending/government-procurement-cards,04-Oct-2023,Childrens Services,AMZNMKTPLACE,Childrens Services,3.47,MISCELLANEOUS AND SPECIALTY RETAIL STORES,2023-24Q3_PC0044
Sandwell Metropolitan Borough Council,https://www.sandwell.gov.uk/performance-spending/government-procurement-cards,04-Oct-2023,Assistant Chief Executive,POST OFFICE COUNTER,Assistant Chief Executive (Excl SIU),27.75,POSTAL SERVICES-GOVERNMENT ONLY,2023-24Q3_PC0045
Sandwell Metropolitan Borough Council,https://www.sandwell.gov.uk/performance-spending/government-procurement-cards,04-Oct-2023,Childrens Services,AMZNMktplace,Childrens Services,24.97,MISCELLANEOUS AND SPECIALTY RETAIL STORES,2023-24Q3_PC0046
Sandwell Metropolitan Borough Council,https://www.sandwell.gov.uk/performance-spending/government-procurement-cards,04-Oct-2023,Childrens Services,AMZNMktplace,Childrens Services,34.96,MISCELLANEOUS AND SPECIALTY RETAIL STORES,2023-24Q3_PC0047
Sandwell Metropolitan Borough Council,https://www.sandwell.gov.uk/performance-spending/government-procurement-cards,05-Oct-2023,Total Borough Economy,NFAN/0FEL74R7,Total Adult Social Care,36,"ORGANIZATIONS, MEMBERSHIP-NOT ELSEWHERE CLASSIFIED",2023-24Q3_PC0048
Sandwell Metropolitan Borough Council,https://www.sandwell.gov.uk/performance-spending/government-procurement-cards,05-Oct-2023,Childrens Services,BKG HOTEL AT BOOKING.C,Childrens Services,254,TRAVEL AGENCIES AND TOUR OPERATORS,2023-24Q3_PC0049
Sandwell Metropolitan Borough Council,https://www.sandwell.gov.uk/performance-spending/government-procurement-cards,05-Oct-2023,Childrens Services,Trainline,Childrens Services,109.43,PASSENGER RAILWAYS,2023-24Q3_PC0050
Sandwell Metropolitan Borough Council,https://www.sandwell.gov.uk/performance-spending/government-procurement-cards,05-Oct-2023,FINANCE (Inc SIU),WWW.OFFICETEAMCONNECT.,Total Adult Social Care,20.12,STATIONERY/OFFICE SUPPLIES/PRINTING & WRITING PAP.,2023-24Q3_PC0051
Sandwell Metropolitan Borough Council,https://www.sandwell.gov.uk/performance-spending/government-procurement-cards,05-Oct-2023,Total Borough Economy,Amazon.co.uk HT2H02G74,Total Adult Social Care,18.95,DIRECT MARKETING-OTHER DIRECT MARKETERS/NOT ELSEW.,2023-24Q3_PC0052
Sandwell Metropolitan Borough Council,https://www.sandwell.gov.uk/performance-spending/government-procurement-cards,05-Oct-2023,Total Borough Economy,Amazon.co.uk HT1SA6GP4,Total Adult Social Care,15,DIRECT MARKETING-OTHER DIRECT MARKETERS/NOT ELSEW.,2023-24Q3_PC0053
Sandwell Metropolitan Borough Council,https://www.sandwell.gov.uk/performance-spending/government-procurement-cards,05-Oct-2023,Total Borough Economy,Amazon.co.uk HT7S48G34,Total Adult Social Care,13.34,DIRECT MARKETING-OTHER DIRECT MARKETERS/NOT ELSEW.,2023-24Q3_PC0054
Sandwell Metropolitan Borough Council,https://www.sandwell.gov.uk/performance-spending/government-procurement-cards,05-Oct-2023,Total Borough Economy,AMZNMktplace,Total Adult Social Care,16.99,MISCELLANEOUS AND SPECIALTY RETAIL STORES,2023-24Q3_PC0055
Sandwell Metropolitan Borough Council,https://www.sandwell.gov.uk/performance-spending/government-procurement-cards,05-Oct-2023,Assistant Chief Executive,AMZNMKTPLACE,Assistant Chief Executive (Excl SIU),17.98,MISCELLANEOUS AND SPECIALTY RETAIL STORES,2023-24Q3_PC0056
Sandwell Metropolitan Borough Council,https://www.sandwell.gov.uk/performance-spending/government-procurement-cards,05-Oct-2023,Childrens Services,TRAVELODGE,Childrens Services,75.45,TRAVELODGE,2023-24Q3_PC0057
Sandwell Metropolitan Borough Council,https://www.sandwell.gov.uk/performance-spending/government-procurement-cards,05-Oct-2023,Individual School Budgets With Inclusion,Amazon.co.uk HT0UP0184,Individual School Budgets With Inclusion,218.69,DIRECT MARKETING-OTHER DIRECT MARKETERS/NOT ELSEW.,2023-24Q3_PC0058
Sandwell Metropolitan Borough Council,https://www.sandwell.gov.uk/performance-spending/government-procurement-cards,05-Oct-2023,Individual School Budgets With Inclusion,ASDA GROCERIES ONLINE,Individual School Budgets With Inclusion,109.9,"GROCERY STORES, SUPERMARKETS",2023-24Q3_PC0059
Sandwell Metropolitan Borough Council,https://www.sandwell.gov.uk/performance-spending/government-procurement-cards,05-Oct-2023,Law & Governance,AMZNMktplace,Assistant Chief Executive (Excl SIU),23.58,MISCELLANEOUS AND SPECIALTY RETAIL STORES,2023-24Q3_PC0060
Sandwell Metropolitan Borough Council,https://www.sandwell.gov.uk/performance-spending/government-procurement-cards,05-Oct-2023,Total ASCHWB,AMZNMKTPLACE,Total Adult Social Care,142.97,MISCELLANEOUS AND SPECIALTY RETAIL STORES,2023-24Q3_PC0061
Sandwell Metropolitan Borough Council,https://www.sandwell.gov.uk/performance-spending/government-procurement-cards,05-Oct-2023,Total ASCHWB,AMZNMktplace,Total Adult Social Care,-41.25,MISCELLANEOUS AND SPECIALTY RETAIL STORES,2023-24Q3_PC0062
Sandwell Metropolitan Borough Council,https://www.sandwell.gov.uk/performance-spending/government-procurement-cards,05-Oct-2023,Regeneration & Growth,ARMADA,Regeneration And The Economy,853.2,SCHOOLS & EDUCATIONAL SVC-NOT ELSEWHERE CLASSIFIED,2023-24Q3_PC0063
Sandwell Metropolitan Borough Council,https://www.sandwell.gov.uk/performance-spending/government-procurement-cards,05-Oct-2023,Total Borough Economy,Trainline,Total Adult Social Care,12.83,PASSENGER RAILWAYS,2023-24Q3_PC0064
Sandwell Metropolitan Borough Council,https://www.sandwell.gov.uk/performance-spending/government-procurement-cards,05-Oct-2023,Total Borough Economy,Trainline,Total Adult Social Care,12.83,PASSENGER RAILWAYS,2023-24Q3_PC0065
Sandwell Metropolitan Borough Council,https://www.sandwell.gov.uk/performance-spending/government-procurement-cards,05-Oct-2023,Total Borough Economy,BLACKCOUNTRYMETAL,Total Adult Social Care,52,"COMMERCIAL ART, GRAPHICS, PHOTOGRAPHY",2023-24Q3_PC0066
Sandwell Metropolitan Borough Council,https://www.sandwell.gov.uk/performance-spending/government-procurement-cards,05-Oct-2023,Total Housing Revenue Account,AMZNMktplace,Total Housing Revenue Account,59.97,MISCELLANEOUS AND SPECIALTY RETAIL STORES,2023-24Q3_PC0067
Sandwell Metropolitan Borough Council,https://www.sandwell.gov.uk/performance-spending/government-procurement-cards,05-Oct-2023,Childrens Services,AMZNMktplace,Childrens Services,1.04,MISCELLANEOUS AND SPECIALTY RETAIL STORES,2023-24Q3_PC0068
Sandwell Metropolitan Borough Council,https://www.sandwell.gov.uk/performance-spending/government-procurement-cards,05-Oct-2023,Childrens Services,Amazon.co.uk HT0004GA4,Childrens Services,10.5,DIRECT MARKETING-OTHER DIRECT MARKETERS/NOT ELSEW.,2023-24Q3_PC0069
Sandwell Metropolitan Borough Council,https://www.sandwell.gov.uk/performance-spending/government-procurement-cards,05-Oct-2023,Childrens Services,Amazon.co.uk,Childrens Services,-246.9,DIRECT MARKETING-OTHER DIRECT MARKETERS/NOT ELSEW.,2023-24Q3_PC0070
Sandwell Metropolitan Borough Council,https://www.sandwell.gov.uk/performance-spending/government-procurement-cards,05-Oct-2023,Housing & Assets Total,AMZNMktplace,Corporate Management,35.55,MISCELLANEOUS AND SPECIALTY RETAIL STORES,2023-24Q3_PC0071
Sandwell Metropolitan Borough Council,https://www.sandwell.gov.uk/performance-spending/government-procurement-cards,05-Oct-2023,Housing & Assets Total,AMZNMKTPLACE,Corporate Management,61.52,MISCELLANEOUS AND SPECIALTY RETAIL STORES,2023-24Q3_PC0072
Sandwell Metropolitan Borough Council,https://www.sandwell.gov.uk/performance-spending/government-procurement-cards,05-Oct-2023,Total Borough Economy,WWW.ARGOS.CO.UK,Total Adult Social Care,20,DEPARTMENT STORES,2023-24Q3_PC0073
Sandwell Metropolitan Borough Council,https://www.sandwell.gov.uk/performance-spending/government-procurement-cards,05-Oct-2023,Total Borough Economy,ARGOS OLDBURY,Total Adult Social Care,5.75,DISCOUNT STORES,2023-24Q3_PC0074
Sandwell Metropolitan Borough Council,https://www.sandwell.gov.uk/performance-spending/government-procurement-cards,05-Oct-2023,Total Borough Economy,JUST GLOVES,Total Adult Social Care,140.4,DENTAL/LAB/MED/OPHTHALMIC HOSP EQUIP & SUPPLIES,2023-24Q3_PC0075
Sandwell Metropolitan Borough Council,https://www.sandwell.gov.uk/performance-spending/government-procurement-cards,05-Oct-2023,Total ASCHWB,Amazon.co.uk,Total Adult Social Care,-69.94,DIRECT MARKETING-OTHER DIRECT MARKETERS/NOT ELSEW.,2023-24Q3_PC0076
Sandwell Metropolitan Borough Council,https://www.sandwell.gov.uk/performance-spending/government-procurement-cards,05-Oct-2023,Childrens Services,TESCO STORES 2770,Childrens Services,115.14,"GROCERY STORES, SUPERMARKETS",2023-24Q3_PC0077
Sandwell Metropolitan Borough Council,https://www.sandwell.gov.uk/performance-spending/government-procurement-cards,05-Oct-2023,Law & Governance,AMZNMKTPLACE,Assistant Chief Executive (Excl SIU),13.98,MISCELLANEOUS AND SPECIALTY RETAIL STORES,2023-24Q3_PC0078
Sandwell Metropolitan Borough Council,https://www.sandwell.gov.uk/performance-spending/government-procurement-cards,05-Oct-2023,Total Public Health,AMZNMKTPLACE,Public Health,13.98,MISCELLANEOUS AND SPECIALTY RETAIL STORES,2023-24Q3_PC0079
Sandwell Metropolitan Borough Council,https://www.sandwell.gov.uk/performance-spending/government-procurement-cards,05-Oct-2023,Total Borough Economy,AMZNMktplace,Total Adult Social Care,3.98,MISCELLANEOUS AND SPECIALTY RETAIL STORES,2023-24Q3_PC0080
Sandwell Metropolitan Borough Council,https://www.sandwell.gov.uk/performance-spending/government-procurement-cards,05-Oct-2023,Total Borough Economy,BOOKER LTD - 38593354,Total Adult Social Care,190.51,"GROCERY STORES, SUPERMARKETS",2023-24Q3_PC0081
Sandwell Metropolitan Borough Council,https://www.sandwell.gov.uk/performance-spending/government-procurement-cards,05-Oct-2023,Total Borough Economy,WWW.ARGOS.CO.UK,Total Adult Social Care,59.99,DEPARTMENT STORES,2023-24Q3_PC0082
Sandwell Metropolitan Borough Council,https://www.sandwell.gov.uk/performance-spending/government-procurement-cards,05-Oct-2023,FINANCE (Inc SIU),PARCELFORCE WL,Assistant Chief Executive (Excl SIU),27.5,"COURIER SVC-AIR & GROUND, FREIGHT FORWARDERS",2023-24Q3_PC0083
Sandwell Metropolitan Borough Council,https://www.sandwell.gov.uk/performance-spending/government-procurement-cards,05-Oct-2023,Childrens Services,Amazon Prime HT61X31C4,Childrens Services,8.99,DIRECT MARKETING-CONTINUITY/SUBSCRIPTION MERCHANTS,2023-24Q3_PC0084
Sandwell Metropolitan Borough Council,https://www.sandwell.gov.uk/performance-spending/government-procurement-cards,05-Oct-2023,Childrens Services,AMZNMKTPLACE,Childrens Services,28.95,MISCELLANEOUS AND SPECIALTY RETAIL STORES,2023-24Q3_PC0085
Sandwell Metropolitan Borough Council,https://www.sandwell.gov.uk/performance-spending/government-procurement-cards,05-Oct-2023,Childrens Services,CGP BOOKS,Childrens Services,172.6,MISCELLANEOUS PUBLISHING AND PRINTING,2023-24Q3_PC0086
Sandwell Metropolitan Borough Council,https://www.sandwell.gov.uk/performance-spending/government-procurement-cards,05-Oct-2023,Total Housing Revenue Account,AMZNMktplace,Total Housing Revenue Account,41.15,MISCELLANEOUS AND SPECIALTY RETAIL STORES,2023-24Q3_PC0087
Sandwell Metropolitan Borough Council,https://www.sandwell.gov.uk/performance-spending/government-procurement-cards,05-Oct-2023,Total Housing Revenue Account,EVENTBRITE.COM ORG FEE,Total Housing Revenue Account,7.99,COMPUTER SOFTWARE STORES,2023-24Q3_PC0088
Sandwell Metropolitan Borough Council,https://www.sandwell.gov.uk/performance-spending/government-procurement-cards,05-Oct-2023,Childrens Services,K2 ADVANCED TRAINING L,Childrens Services,25,SCHOOLS & EDUCATIONAL SVC-NOT ELSEWHERE CLASSIFIED,2023-24Q3_PC0089
Sandwell Metropolitan Borough Council,https://www.sandwell.gov.uk/performance-spending/government-procurement-cards,05-Oct-2023,Childrens Services,AMZNMktplace,Childrens Services,17.94,MISCELLANEOUS AND SPECIALTY RETAIL STORES,2023-24Q3_PC0090
Sandwell Metropolitan Borough Council,https://www.sandwell.gov.uk/performance-spending/government-procurement-cards,05-Oct-2023,Regeneration & Growth,AMZNMKTPLACE,Regeneration And The Economy,155.06,MISCELLANEOUS AND SPECIALTY RETAIL STORES,2023-24Q3_PC0091
Sandwell Metropolitan Borough Council,https://www.sandwell.gov.uk/performance-spending/government-procurement-cards,05-Oct-2023,Total ASCHWB,AMZNMktplace,Total Adult Social Care,27.98,MISCELLANEOUS AND SPECIALTY RETAIL STORES,2023-24Q3_PC0092
Sandwell Metropolitan Borough Council,https://www.sandwell.gov.uk/performance-spending/government-procurement-cards,06-Oct-2023,Total Borough Economy,AMZNMKTPLACE,Dead SeRCOP,237.76,MISCELLANEOUS AND SPECIALTY RETAIL STORES,2023-24Q3_PC0093
Sandwell Metropolitan Borough Council,https://www.sandwell.gov.uk/performance-spending/government-procurement-cards,06-Oct-2023,FINANCE (Inc SIU),AMZNMKTPLACE,Total Adult Social Care,48.29,MISCELLANEOUS AND SPECIALTY RETAIL STORES,2023-24Q3_PC0094
Sandwell Metropolitan Borough Council,https://www.sandwell.gov.uk/performance-spending/government-procurement-cards,06-Oct-2023,FINANCE (Inc SIU),AMZNMktplace,Total Adult Social Care,12.68,MISCELLANEOUS AND SPECIALTY RETAIL STORES,2023-24Q3_PC0095
Sandwell Metropolitan Borough Council,https://www.sandwell.gov.uk/performance-spending/government-procurement-cards,06-Oct-2023,FINANCE (Inc SIU),AMZNMktplace,Total Adult Social Care,23.67,MISCELLANEOUS AND SPECIALTY RETAIL STORES,2023-24Q3_PC0096
Sandwell Metropolitan Borough Council,https://www.sandwell.gov.uk/performance-spending/government-procurement-cards,06-Oct-2023,Individual School Budgets With Inclusion,AMZNMktplace,Individual School Budgets With Inclusion,95.49,MISCELLANEOUS AND SPECIALTY RETAIL STORES,2023-24Q3_PC0097
Sandwell Metropolitan Borough Council,https://www.sandwell.gov.uk/performance-spending/government-procurement-cards,06-Oct-2023,Total Borough Economy,AMZNMKTPLACE,Total Adult Social Care,16.99,MISCELLANEOUS AND SPECIALTY RETAIL STORES,2023-24Q3_PC0098
Sandwell Metropolitan Borough Council,https://www.sandwell.gov.uk/performance-spending/government-procurement-cards,06-Oct-2023,Total Borough Economy,AMZNMKTPLACE,Total Adult Social Care,8.99,MISCELLANEOUS AND SPECIALTY RETAIL STORES,2023-24Q3_PC0099
Sandwell Metropolitan Borough Council,https://www.sandwell.gov.uk/performance-spending/government-procurement-cards,06-Oct-2023,Total ASCHWB,IKEA LTD SHOP ONLINE,Total Adult Social Care,515,"EQUIP, FURNITURE, HOME FURNSHNGS STRS (EXCPT APPL)",2023-24Q3_PC0100
Sandwell Metropolitan Borough Council,https://www.sandwell.gov.uk/performance-spending/government-procurement-cards,06-Oct-2023,Assistant Chief Executive,Amazon.co.uk HT83785S4,Assistant Chief Executive (Excl SIU),24.52,DIRECT MARKETING-OTHER DIRECT MARKETERS/NOT ELSEW.,2023-24Q3_PC0101
Sandwell Metropolitan Borough Council,https://www.sandwell.gov.uk/performance-spending/government-procurement-cards,06-Oct-2023,Assistant Chief Executive,AMZNMKTPLACE,Assistant Chief Executive (Excl SIU),33.91,MISCELLANEOUS AND SPECIALTY RETAIL STORES,2023-24Q3_PC0102
Sandwell Metropolitan Borough Council,https://www.sandwell.gov.uk/performance-spending/government-procurement-cards,06-Oct-2023,Assistant Chief Executive,AMZNMktplace,Assistant Chief Executive (Excl SIU),14.99,MISCELLANEOUS AND SPECIALTY RETAIL STORES,2023-24Q3_PC0103
Sandwell Metropolitan Borough Council,https://www.sandwell.gov.uk/performance-spending/government-procurement-cards,06-Oct-2023,Individual School Budgets With Inclusion,AMZNMktplace,Individual School Budgets With Inclusion,28.5,MISCELLANEOUS AND SPECIALTY RETAIL STORES,2023-24Q3_PC0104
Sandwell Metropolitan Borough Council,https://www.sandwell.gov.uk/performance-spending/government-procurement-cards,06-Oct-2023,Law & Governance,AMZNMKTPLACE,Assistant Chief Executive (Excl SIU),31.98,MISCELLANEOUS AND SPECIALTY RETAIL STORES,2023-24Q3_PC0105
Sandwell Metropolitan Borough Council,https://www.sandwell.gov.uk/performance-spending/government-procurement-cards,06-Oct-2023,Law & Governance,AMZNMKTPLACE,Assistant Chief Executive (Excl SIU),6.99,MISCELLANEOUS AND SPECIALTY RETAIL STORES,2023-24Q3_PC0106
Sandwell Metropolitan Borough Council,https://www.sandwell.gov.uk/performance-spending/government-procurement-cards,06-Oct-2023,Regeneration & Growth,STANFORD MARSH LTD,Regeneration And The Economy,158.88,"OFFICE, SCHOOL SUPPLY, AND STATIONERY STORES",2023-24Q3_PC0107
Sandwell Metropolitan Borough Council,https://www.sandwell.gov.uk/performance-spending/government-procurement-cards,06-Oct-2023,Regeneration & Growth,AMZNMktplace,Regeneration And The Economy,19.98,MISCELLANEOUS AND SPECIALTY RETAIL STORES,2023-24Q3_PC0108
Sandwell Metropolitan Borough Council,https://www.sandwell.gov.uk/performance-spending/government-procurement-cards,06-Oct-2023,Childrens Services,WWW.WMCA.ORG.UK,Childrens Services,10,"TRANSPRTN-SUBRBN & LOCAL COMTR PSNGR, INCL FERRIES",2023-24Q3_PC0109
Sandwell Metropolitan Borough Council,https://www.sandwell.gov.uk/performance-spending/government-procurement-cards,06-Oct-2023,Childrens Services,DIGITAL ID,Childrens Services,129.43,"COMPUTERS, COMPUTER PERIPHERAL EQUIPMENT, SOFTWARE",2023-24Q3_PC0110
Sandwell Metropolitan Borough Council,https://www.sandwell.gov.uk/performance-spending/government-procurement-cards,06-Oct-2023,Total Borough Economy,CANVA  I03929-30504324,Total Adult Social Care,99.99,PHOTOGRAPHIC STUDIOS,2023-24Q3_PC0111
Sandwell Metropolitan Borough Council,https://www.sandwell.gov.uk/performance-spending/government-procurement-cards,06-Oct-2023,Individual School Budgets With Inclusion,CO-OPERATIVE FOOD,Individual School Budgets With Inclusion,3.15,"GROCERY STORES, SUPERMARKETS",2023-24Q3_PC0112
Sandwell Metropolitan Borough Council,https://www.sandwell.gov.uk/performance-spending/government-procurement-cards,06-Oct-2023,Total Borough Economy,Dunelm Soft Furnishin,Total Adult Social Care,6.1,"EQUIP, FURNITURE, HOME FURNSHNGS STRS (EXCPT APPL)",2023-24Q3_PC0113
Sandwell Metropolitan Borough Council,https://www.sandwell.gov.uk/performance-spending/government-procurement-cards,06-Oct-2023,Total Borough Economy,BCC CLEAN AIR ZONE,Total Adult Social Care,8,GOVERNMENT SERVICES-NOT ELSEWHERE CLASSIFIED,2023-24Q3_PC0114
Sandwell Metropolitan Borough Council,https://www.sandwell.gov.uk/performance-spending/government-procurement-cards,06-Oct-2023,Total Borough Economy,AMZNMKTPLACE,Total Adult Social Care,39.99,MISCELLANEOUS AND SPECIALTY RETAIL STORES,2023-24Q3_PC0115
Sandwell Metropolitan Borough Council,https://www.sandwell.gov.uk/performance-spending/government-procurement-cards,06-Oct-2023,Childrens Services,ROYAL MAIL GROUP LTD,Childrens Services,5.2,POSTAL SERVICES-GOVERNMENT ONLY,2023-24Q3_PC0116
Sandwell Metropolitan Borough Council,https://www.sandwell.gov.uk/performance-spending/government-procurement-cards,06-Oct-2023,Housing & Assets Total,Amazon Prime HT6K26V44,Corporate Management,8.99,DIRECT MARKETING-CONTINUITY/SUBSCRIPTION MERCHANTS,2023-24Q3_PC0117
Sandwell Metropolitan Borough Council,https://www.sandwell.gov.uk/performance-spending/government-procurement-cards,06-Oct-2023,Total Borough Economy,ASDA STORES,Total Adult Social Care,50.8,"GROCERY STORES, SUPERMARKETS",2023-24Q3_PC0118
Sandwell Metropolitan Borough Council,https://www.sandwell.gov.uk/performance-spending/government-procurement-cards,06-Oct-2023,Total Borough Economy,AMZNMKTPLACE,Total Adult Social Care,18.49,MISCELLANEOUS AND SPECIALTY RETAIL STORES,2023-24Q3_PC0119
Sandwell Metropolitan Borough Council,https://www.sandwell.gov.uk/performance-spending/government-procurement-cards,06-Oct-2023,Total Public Health,Domino s Pizza,Public Health,131.24,"EATING PLACES, RESTAURANTS",2023-24Q3_PC0120
Sandwell Metropolitan Borough Council,https://www.sandwell.gov.uk/performance-spending/government-procurement-cards,06-Oct-2023,Assistant Chief Executive,MAGZTER INC.,Assistant Chief Executive (Excl SIU),-49.99,DIGITAL GOODS AUDIOVISUAL MEDIA,2023-24Q3_PC0121
Sandwell Metropolitan Borough Council,https://www.sandwell.gov.uk/performance-spending/government-procurement-cards,09-Oct-2023,Total Borough Economy,AMZNMKTPLACE,Dead SeRCOP,32.28,MISCELLANEOUS AND SPECIALTY RETAIL STORES,2023-24Q3_PC0122
Sandwell Metropolitan Borough Council,https://www.sandwell.gov.uk/performance-spending/government-procurement-cards,09-Oct-2023,Total Borough Economy,AMZNMKTPLACE,Dead SeRCOP,75.96,MISCELLANEOUS AND SPECIALTY RETAIL STORES,2023-24Q3_PC0123
Sandwell Metropolitan Borough Council,https://www.sandwell.gov.uk/performance-spending/government-procurement-cards,09-Oct-2023,Total Borough Economy,AMZNMKTPLACE,Dead SeRCOP,16.98,MISCELLANEOUS AND SPECIALTY RETAIL STORES,2023-24Q3_PC0124
Sandwell Metropolitan Borough Council,https://www.sandwell.gov.uk/performance-spending/government-procurement-cards,09-Oct-2023,Total Borough Economy,AMZNMKTPLACE,Dead SeRCOP,280,MISCELLANEOUS AND SPECIALTY RETAIL STORES,2023-24Q3_PC0125
Sandwell Metropolitan Borough Council,https://www.sandwell.gov.uk/performance-spending/government-procurement-cards,09-Oct-2023,Total Borough Economy,SAINSBURYS S/MKTS,Total Adult Social Care,15.69,"GROCERY STORES, SUPERMARKETS",2023-24Q3_PC0126
Sandwell Metropolitan Borough Council,https://www.sandwell.gov.uk/performance-spending/government-procurement-cards,09-Oct-2023,Total Borough Economy,IAN SMITH GROUP LTD,Total Adult Social Care,84.04,STATIONERY/OFFICE SUPPLIES/PRINTING & WRITING PAP.,2023-24Q3_PC0127
Sandwell Metropolitan Borough Council,https://www.sandwell.gov.uk/performance-spending/government-procurement-cards,09-Oct-2023,Total Borough Economy,B&M RETAIL LTD,Total Adult Social Care,6,MISCELLANEOUS GENERAL MERCHANDISE,2023-24Q3_PC0128
Sandwell Metropolitan Borough Council,https://www.sandwell.gov.uk/performance-spending/government-procurement-cards,09-Oct-2023,Total Borough Economy,AMZNMktplace,Total Adult Social Care,6.99,MISCELLANEOUS AND SPECIALTY RETAIL STORES,2023-24Q3_PC0129
Sandwell Metropolitan Borough Council,https://www.sandwell.gov.uk/performance-spending/government-procurement-cards,09-Oct-2023,Total Borough Economy,AMZNMKTPLACE,Total Adult Social Care,47.48,MISCELLANEOUS AND SPECIALTY RETAIL STORES,2023-24Q3_PC0130
Sandwell Metropolitan Borough Council,https://www.sandwell.gov.uk/performance-spending/government-procurement-cards,09-Oct-2023,Total Borough Economy,WWW.OFFICETEAMCONNECT.,Total Adult Social Care,183.49,STATIONERY/OFFICE SUPPLIES/PRINTING & WRITING PAP.,2023-24Q3_PC0131
Sandwell Metropolitan Borough Council,https://www.sandwell.gov.uk/performance-spending/government-procurement-cards,09-Oct-2023,FINANCE (Inc SIU),Amazon Prime HT5CL7234,Assistant Chief Executive (Excl SIU),8.99,DIRECT MARKETING-CONTINUITY/SUBSCRIPTION MERCHANTS,2023-24Q3_PC0132
Sandwell Metropolitan Borough Council,https://www.sandwell.gov.uk/performance-spending/government-procurement-cards,09-Oct-2023,Assistant Chief Executive,AMZNMKTPLACE,Assistant Chief Executive (Excl SIU),54.98,MISCELLANEOUS AND SPECIALTY RETAIL STORES,2023-24Q3_PC0133
Sandwell Metropolitan Borough Council,https://www.sandwell.gov.uk/performance-spending/government-procurement-cards,09-Oct-2023,Childrens Services,Trainline,Childrens Services,14.05,PASSENGER RAILWAYS,2023-24Q3_PC0134
Sandwell Metropolitan Borough Council,https://www.sandwell.gov.uk/performance-spending/government-procurement-cards,09-Oct-2023,Childrens Services,TRAVELODGE,Childrens Services,40.78,TRAVELODGE,2023-24Q3_PC0135
Sandwell Metropolitan Borough Council,https://www.sandwell.gov.uk/performance-spending/government-procurement-cards,09-Oct-2023,Law & Governance,AMZNMKTPLACE,Assistant Chief Executive (Excl SIU),85.44,MISCELLANEOUS AND SPECIALTY RETAIL STORES,2023-24Q3_PC0136
Sandwell Metropolitan Borough Council,https://www.sandwell.gov.uk/performance-spending/government-procurement-cards,09-Oct-2023,Total ASCHWB,AMZNMKTPLACE,Total Adult Social Care,-10.96,MISCELLANEOUS AND SPECIALTY RETAIL STORES,2023-24Q3_PC0137
Sandwell Metropolitan Borough Council,https://www.sandwell.gov.uk/performance-spending/government-procurement-cards,09-Oct-2023,Total ASCHWB,Amazon.co.uk HT9WK5784,Total Adult Social Care,25.01,DIRECT MARKETING-OTHER DIRECT MARKETERS/NOT ELSEW.,2023-24Q3_PC0138
Sandwell Metropolitan Borough Council,https://www.sandwell.gov.uk/performance-spending/government-procurement-cards,09-Oct-2023,Total Borough Economy,FACEBK  LXA9RU7KY2,Total Adult Social Care,9,ADVERTISING SERVICES,2023-24Q3_PC0139
Sandwell Metropolitan Borough Council,https://www.sandwell.gov.uk/performance-spending/government-procurement-cards,09-Oct-2023,Childrens Services,WWW.WMCA.ORG.UK,Childrens Services,10,"TRANSPRTN-SUBRBN & LOCAL COMTR PSNGR, INCL FERRIES",2023-24Q3_PC0140
Sandwell Metropolitan Borough Council,https://www.sandwell.gov.uk/performance-spending/government-procurement-cards,09-Oct-2023,Individual School Budgets With Inclusion,ASDA SUPERSTORE,Individual School Budgets With Inclusion,15.48,"GROCERY STORES, SUPERMARKETS",2023-24Q3_PC0141
Sandwell Metropolitan Borough Council,https://www.sandwell.gov.uk/performance-spending/government-procurement-cards,09-Oct-2023,Total Borough Economy,ALDI 772 177,Total Adult Social Care,11.98,"GROCERY STORES, SUPERMARKETS",2023-24Q3_PC0142
Sandwell Metropolitan Borough Council,https://www.sandwell.gov.uk/performance-spending/government-procurement-cards,09-Oct-2023,Total ASCHWB,Amazon.co.uk HT6HS1BS4,Total Adult Social Care,239.96,DIRECT MARKETING-OTHER DIRECT MARKETERS/NOT ELSEW.,2023-24Q3_PC0143
Sandwell Metropolitan Borough Council,https://www.sandwell.gov.uk/performance-spending/government-procurement-cards,09-Oct-2023,Housing & Assets Total,STATION HOTEL,Corporate Management,1000,"LODGING-HOTELS,MOTELS,RESORTS-NOT CLASSIFIED",2023-24Q3_PC0144
Sandwell Metropolitan Borough Council,https://www.sandwell.gov.uk/performance-spending/government-procurement-cards,09-Oct-2023,Housing & Assets Total,STATION HOTEL,Corporate Management,575,"LODGING-HOTELS,MOTELS,RESORTS-NOT CLASSIFIED",2023-24Q3_PC0145
Sandwell Metropolitan Borough Council,https://www.sandwell.gov.uk/performance-spending/government-procurement-cards,09-Oct-2023,FINANCE (Inc SIU),AMZNMktplace,Assistant Chief Executive (Excl SIU),11.99,MISCELLANEOUS AND SPECIALTY RETAIL STORES,2023-24Q3_PC0146
Sandwell Metropolitan Borough Council,https://www.sandwell.gov.uk/performance-spending/government-procurement-cards,09-Oct-2023,FINANCE (Inc SIU),AMZNMktplace,Assistant Chief Executive (Excl SIU),14.86,MISCELLANEOUS AND SPECIALTY RETAIL STORES,2023-24Q3_PC0147
Sandwell Metropolitan Borough Council,https://www.sandwell.gov.uk/performance-spending/government-procurement-cards,09-Oct-2023,Law & Governance,POST OFFICE COUNTER,Assistant Chief Executive (Excl SIU),150,POSTAL SERVICES-GOVERNMENT ONLY,2023-24Q3_PC0148
Sandwell Metropolitan Borough Council,https://www.sandwell.gov.uk/performance-spending/government-procurement-cards,09-Oct-2023,Total ASCHWB,POUNDLAND LTD - 2164,Total Adult Social Care,3,DISCOUNT STORES,2023-24Q3_PC0149
Sandwell Metropolitan Borough Council,https://www.sandwell.gov.uk/performance-spending/government-procurement-cards,09-Oct-2023,Childrens Services,TESCO STORES 4512,Childrens Services,2.55,"GROCERY STORES, SUPERMARKETS",2023-24Q3_PC0150
Sandwell Metropolitan Borough Council,https://www.sandwell.gov.uk/performance-spending/government-procurement-cards,09-Oct-2023,Law & Governance,AMZNMKTPLACE,Assistant Chief Executive (Excl SIU),20.97,MISCELLANEOUS AND SPECIALTY RETAIL STORES,2023-24Q3_PC0151
Sandwell Metropolitan Borough Council,https://www.sandwell.gov.uk/performance-spending/government-procurement-cards,09-Oct-2023,Total Public Health,Buffet Express,Public Health,511.2,CATERERS,2023-24Q3_PC0152
Sandwell Metropolitan Borough Council,https://www.sandwell.gov.uk/performance-spending/government-procurement-cards,09-Oct-2023,Childrens Services,WWW.GOMPELS.CO.UK,Childrens Services,238.42,DENTAL/LAB/MED/OPHTHALMIC HOSP EQUIP & SUPPLIES,2023-24Q3_PC0153
Sandwell Metropolitan Borough Council,https://www.sandwell.gov.uk/performance-spending/government-procurement-cards,09-Oct-2023,Total Housing Revenue Account,AMZNMKTPLACE,Total Housing Revenue Account,21.99,MISCELLANEOUS AND SPECIALTY RETAIL STORES,2023-24Q3_PC0154
Sandwell Metropolitan Borough Council,https://www.sandwell.gov.uk/performance-spending/government-procurement-cards,09-Oct-2023,Total Housing Revenue Account,Amazon.co.uk HT9Z907T4,Total Housing Revenue Account,21.97,DIRECT MARKETING-OTHER DIRECT MARKETERS/NOT ELSEW.,2023-24Q3_PC0155
Sandwell Metropolitan Borough Council,https://www.sandwell.gov.uk/performance-spending/government-procurement-cards,09-Oct-2023,Total Housing Revenue Account,AMZNMktplace,Total Housing Revenue Account,24.98,MISCELLANEOUS AND SPECIALTY RETAIL STORES,2023-24Q3_PC0156
Sandwell Metropolitan Borough Council,https://www.sandwell.gov.uk/performance-spending/government-procurement-cards,09-Oct-2023,Total Housing Revenue Account,Amazon.co.uk HT9P402Z4,Total Housing Revenue Account,17.18,DIRECT MARKETING-OTHER DIRECT MARKETERS/NOT ELSEW.,2023-24Q3_PC0157
Sandwell Metropolitan Borough Council,https://www.sandwell.gov.uk/performance-spending/government-procurement-cards,09-Oct-2023,Total Housing Revenue Account,AMZNMKTPLACE,Total Housing Revenue Account,63.92,MISCELLANEOUS AND SPECIALTY RETAIL STORES,2023-24Q3_PC0158
Sandwell Metropolitan Borough Council,https://www.sandwell.gov.uk/performance-spending/government-procurement-cards,09-Oct-2023,Childrens Services,WWW.OAKS ONLINE SHOPPI,Childrens Services,89.5,TENT AND AWNING SHOPS,2023-24Q3_PC0159
Sandwell Metropolitan Borough Council,https://www.sandwell.gov.uk/performance-spending/government-procurement-cards,09-Oct-2023,Childrens Services,TRACE DEBT RECOVERY EC,Childrens Services,170,PROFESSIONAL SERVICES-NOT ELSEWHERE CLASSIFIED,2023-24Q3_PC0160
Sandwell Metropolitan Borough Council,https://www.sandwell.gov.uk/performance-spending/government-procurement-cards,09-Oct-2023,Assistant Chief Executive,THE COMMISSION FOR LOC,Neighbourhoods,75,"SCHOOLS, TRADE AND VOCATIONAL",2023-24Q3_PC0161
Sandwell Metropolitan Borough Council,https://www.sandwell.gov.uk/performance-spending/government-procurement-cards,09-Oct-2023,Total Borough Economy,VIKING OFFICE UK LIMIT,Total Adult Social Care,58.62,STATIONERY/OFFICE SUPPLIES/PRINTING & WRITING PAP.,2023-24Q3_PC0162
Sandwell Metropolitan Borough Council,https://www.sandwell.gov.uk/performance-spending/government-procurement-cards,09-Oct-2023,Childrens Services,AMZNMKTPLACE,Childrens Services,19.95,MISCELLANEOUS AND SPECIALTY RETAIL STORES,2023-24Q3_PC0163
Sandwell Metropolitan Borough Council,https://www.sandwell.gov.uk/performance-spending/government-procurement-cards,09-Oct-2023,Childrens Services,Amazon.co.uk HT6KU5264,Childrens Services,26.83,DIRECT MARKETING-OTHER DIRECT MARKETERS/NOT ELSEW.,2023-24Q3_PC0164
Sandwell Metropolitan Borough Council,https://www.sandwell.gov.uk/performance-spending/government-procurement-cards,10-Oct-2023,Total Borough Economy,AMZNMKTPLACE,Dead SeRCOP,222.35,MISCELLANEOUS AND SPECIALTY RETAIL STORES,2023-24Q3_PC0165
Sandwell Metropolitan Borough Council,https://www.sandwell.gov.uk/performance-spending/government-procurement-cards,10-Oct-2023,Total Borough Economy,AMZNMKTPLACE,Dead SeRCOP,160.41,MISCELLANEOUS AND SPECIALTY RETAIL STORES,2023-24Q3_PC0166
Sandwell Metropolitan Borough Council,https://www.sandwell.gov.uk/performance-spending/government-procurement-cards,10-Oct-2023,Total Borough Economy,PAYPAL  MIDLANDSPAR,Total Adult Social Care,390,"ORGANIZATIONS, CHARITABLE AND SOCIAL SERVICES",2023-24Q3_PC0167
Sandwell Metropolitan Borough Council,https://www.sandwell.gov.uk/performance-spending/government-procurement-cards,10-Oct-2023,Total Borough Economy,ROTACLOUD,Total Adult Social Care,464.4,COMPUTER SOFTWARE STORES,2023-24Q3_PC0168
Sandwell Metropolitan Borough Council,https://www.sandwell.gov.uk/performance-spending/government-procurement-cards,10-Oct-2023,Law & Governance,Amazon.co.uk HT3DW1I54,Assistant Chief Executive (Excl SIU),25.41,DIRECT MARKETING-OTHER DIRECT MARKETERS/NOT ELSEW.,2023-24Q3_PC0169
Sandwell Metropolitan Borough Council,https://www.sandwell.gov.uk/performance-spending/government-procurement-cards,10-Oct-2023,Total ASCHWB,AMZNMktplace,Total Adult Social Care,29.98,MISCELLANEOUS AND SPECIALTY RETAIL STORES,2023-24Q3_PC0170
Sandwell Metropolitan Borough Council,https://www.sandwell.gov.uk/performance-spending/government-procurement-cards,10-Oct-2023,Childrens Services,SQ  VERTEX INSTRUCTOR,Childrens Services,252,PROFESSIONAL SERVICES-NOT ELSEWHERE CLASSIFIED,2023-24Q3_PC0171
Sandwell Metropolitan Borough Council,https://www.sandwell.gov.uk/performance-spending/government-procurement-cards,10-Oct-2023,Childrens Services,ASDA GROCERIES ONLINE,Childrens Services,-0.49,"GROCERY STORES, SUPERMARKETS",2023-24Q3_PC0172
Sandwell Metropolitan Borough Council,https://www.sandwell.gov.uk/performance-spending/government-procurement-cards,10-Oct-2023,Childrens Services,ASDA GROCERIES ONLINE,Childrens Services,68.12,"GROCERY STORES, SUPERMARKETS",2023-24Q3_PC0173
Sandwell Metropolitan Borough Council,https://www.sandwell.gov.uk/performance-spending/government-procurement-cards,10-Oct-2023,Total ASCHWB,AMZNMKTPLACE,Total Adult Social Care,51.98,MISCELLANEOUS AND SPECIALTY RETAIL STORES,2023-24Q3_PC0174
Sandwell Metropolitan Borough Council,https://www.sandwell.gov.uk/performance-spending/government-procurement-cards,10-Oct-2023,Childrens Services,BOOKWHEN- SOFTWARE SUB,Childrens Services,468,COMPUTER SOFTWARE STORES,2023-24Q3_PC0175
Sandwell Metropolitan Borough Council,https://www.sandwell.gov.uk/performance-spending/government-procurement-cards,10-Oct-2023,Childrens Services,Amazon.co.uk HT9ZV1IH4,Childrens Services,20.6,DIRECT MARKETING-OTHER DIRECT MARKETERS/NOT ELSEW.,2023-24Q3_PC0176
Sandwell Metropolitan Borough Council,https://www.sandwell.gov.uk/performance-spending/government-procurement-cards,10-Oct-2023,Total Borough Economy,HSE  ID-7561035,Total Adult Social Care,13.6,BOOK STORES,2023-24Q3_PC0177
Sandwell Metropolitan Borough Council,https://www.sandwell.gov.uk/performance-spending/government-procurement-cards,10-Oct-2023,Total Borough Economy,SECURITY INDUSTRY AUTH,Total Adult Social Care,184,GOVERNMENT SERVICES-NOT ELSEWHERE CLASSIFIED,2023-24Q3_PC0178
Sandwell Metropolitan Borough Council,https://www.sandwell.gov.uk/performance-spending/government-procurement-cards,10-Oct-2023,Childrens Services,LIDL GB BANGOR,Childrens Services,6.45,"GROCERY STORES, SUPERMARKETS",2023-24Q3_PC0179
Sandwell Metropolitan Borough Council,https://www.sandwell.gov.uk/performance-spending/government-procurement-cards,10-Oct-2023,Childrens Services,LIDL GB BANGOR,Childrens Services,32.71,"GROCERY STORES, SUPERMARKETS",2023-24Q3_PC0180
Sandwell Metropolitan Borough Council,https://www.sandwell.gov.uk/performance-spending/government-procurement-cards,10-Oct-2023,Law & Governance,SAINSBURYS S/MKTS,Assistant Chief Executive (Excl SIU),22.65,"GROCERY STORES, SUPERMARKETS",2023-24Q3_PC0181
Sandwell Metropolitan Borough Council,https://www.sandwell.gov.uk/performance-spending/government-procurement-cards,10-Oct-2023,Childrens Services,TESCO STORES 4512,Childrens Services,6.2,"GROCERY STORES, SUPERMARKETS",2023-24Q3_PC0182
Sandwell Metropolitan Borough Council,https://www.sandwell.gov.uk/performance-spending/government-procurement-cards,10-Oct-2023,Total Public Health,GOVERNMENT EVENTS,Public Health,474,"THEATRICAL PRODUCERS(EXCL MOTION PIX),TICKET AGNCY",2023-24Q3_PC0183
Sandwell Metropolitan Borough Council,https://www.sandwell.gov.uk/performance-spending/government-procurement-cards,10-Oct-2023,Childrens Services,Buffet Express,Childrens Services,168,CATERERS,2023-24Q3_PC0184
Sandwell Metropolitan Borough Council,https://www.sandwell.gov.uk/performance-spending/government-procurement-cards,10-Oct-2023,Total Borough Economy,WWW.EPOSNOW.COM,Total Adult Social Care,-1.01,"COMP PROGRAMING,DATA PRCSNG,INTGRTD SYS DSGN SRVS",2023-24Q3_PC0185
Sandwell Metropolitan Borough Council,https://www.sandwell.gov.uk/performance-spending/government-procurement-cards,10-Oct-2023,Total Borough Economy,WWW.EPOSNOW.COM,Total Adult Social Care,1.01,"COMP PROGRAMING,DATA PRCSNG,INTGRTD SYS DSGN SRVS",2023-24Q3_PC0186
Sandwell Metropolitan Borough Council,https://www.sandwell.gov.uk/performance-spending/government-procurement-cards,10-Oct-2023,Regeneration & Growth,AMZNMktplace,Regeneration And The Economy,32.69,MISCELLANEOUS AND SPECIALTY RETAIL STORES,2023-24Q3_PC0187
Sandwell Metropolitan Borough Council,https://www.sandwell.gov.uk/performance-spending/government-procurement-cards,10-Oct-2023,Law & Governance,AMZNMktplace,Assistant Chief Executive (Excl SIU),17.98,MISCELLANEOUS AND SPECIALTY RETAIL STORES,2023-24Q3_PC0188
Sandwell Metropolitan Borough Council,https://www.sandwell.gov.uk/performance-spending/government-procurement-cards,10-Oct-2023,Childrens Services,Amazon.co.uk HT2031IE4,Childrens Services,39.08,DIRECT MARKETING-OTHER DIRECT MARKETERS/NOT ELSEW.,2023-24Q3_PC0189
Sandwell Metropolitan Borough Council,https://www.sandwell.gov.uk/performance-spending/government-procurement-cards,10-Oct-2023,Total Housing Revenue Account,WWW.SANDWELL.GOV.UK,Total Housing Revenue Account,11,GOVERNMENT SERVICES-NOT ELSEWHERE CLASSIFIED,2023-24Q3_PC0190
Sandwell Metropolitan Borough Council,https://www.sandwell.gov.uk/performance-spending/government-procurement-cards,10-Oct-2023,Total Housing Revenue Account,AMZNMKTPLACE,Total Housing Revenue Account,106.64,MISCELLANEOUS AND SPECIALTY RETAIL STORES,2023-24Q3_PC0191
Sandwell Metropolitan Borough Council,https://www.sandwell.gov.uk/performance-spending/government-procurement-cards,10-Oct-2023,Law & Governance,TESCO STORES 2335,Assistant Chief Executive (Excl SIU),20,"GROCERY STORES, SUPERMARKETS",2023-24Q3_PC0192
Sandwell Metropolitan Borough Council,https://www.sandwell.gov.uk/performance-spending/government-procurement-cards,10-Oct-2023,Total Housing Revenue Account,AMZNMKTPLACE,Total Housing Revenue Account,55.9,MISCELLANEOUS AND SPECIALTY RETAIL STORES,2023-24Q3_PC0193
Sandwell Metropolitan Borough Council,https://www.sandwell.gov.uk/performance-spending/government-procurement-cards,10-Oct-2023,Total Housing Revenue Account,AMZNMktplace,Total Housing Revenue Account,32.5,MISCELLANEOUS AND SPECIALTY RETAIL STORES,2023-24Q3_PC0194
Sandwell Metropolitan Borough Council,https://www.sandwell.gov.uk/performance-spending/government-procurement-cards,10-Oct-2023,Childrens Services,ASDA GROCERIES ONLINE,Childrens Services,71.06,"GROCERY STORES, SUPERMARKETS",2023-24Q3_PC0195
Sandwell Metropolitan Borough Council,https://www.sandwell.gov.uk/performance-spending/government-procurement-cards,10-Oct-2023,Childrens Services,AMZNMKTPLACE,Childrens Services,16.91,MISCELLANEOUS AND SPECIALTY RETAIL STORES,2023-24Q3_PC0196
Sandwell Metropolitan Borough Council,https://www.sandwell.gov.uk/performance-spending/government-procurement-cards,10-Oct-2023,Childrens Services,Amazon.co.uk HT4447I74,Childrens Services,17.84,DIRECT MARKETING-OTHER DIRECT MARKETERS/NOT ELSEW.,2023-24Q3_PC0197
Sandwell Metropolitan Borough Council,https://www.sandwell.gov.uk/performance-spending/government-procurement-cards,10-Oct-2023,Assistant Chief Executive,AMZNMktplace,Assistant Chief Executive (Excl SIU),23.98,MISCELLANEOUS AND SPECIALTY RETAIL STORES,2023-24Q3_PC0198
Sandwell Metropolitan Borough Council,https://www.sandwell.gov.uk/performance-spending/government-procurement-cards,11-Oct-2023,FINANCE (Inc SIU),WWW.CIPFA.ORG.UK,Assistant Chief Executive (Excl SIU),120,"ORGANIZATIONS, MEMBERSHIP-NOT ELSEWHERE CLASSIFIED",2023-24Q3_PC0199
Sandwell Metropolitan Borough Council,https://www.sandwell.gov.uk/performance-spending/government-procurement-cards,11-Oct-2023,FINANCE (Inc SIU),WWW.CIPFA.ORG.UK,Assistant Chief Executive (Excl SIU),120,"ORGANIZATIONS, MEMBERSHIP-NOT ELSEWHERE CLASSIFIED",2023-24Q3_PC0200
Sandwell Metropolitan Borough Council,https://www.sandwell.gov.uk/performance-spending/government-procurement-cards,11-Oct-2023,FINANCE (Inc SIU),AMZNMktplace,Total Adult Social Care,44.98,MISCELLANEOUS AND SPECIALTY RETAIL STORES,2023-24Q3_PC0201
Sandwell Metropolitan Borough Council,https://www.sandwell.gov.uk/performance-spending/government-procurement-cards,11-Oct-2023,Assistant Chief Executive,AMZNMktplace,Assistant Chief Executive (Excl SIU),40.96,MISCELLANEOUS AND SPECIALTY RETAIL STORES,2023-24Q3_PC0202
Sandwell Metropolitan Borough Council,https://www.sandwell.gov.uk/performance-spending/government-procurement-cards,11-Oct-2023,Law & Governance,MOJ OSPT ECOM,Assistant Chief Executive (Excl SIU),40,GOVERNMENT SERVICES-NOT ELSEWHERE CLASSIFIED,2023-24Q3_PC0203
Sandwell Metropolitan Borough Council,https://www.sandwell.gov.uk/performance-spending/government-procurement-cards,11-Oct-2023,Law & Governance,MOJ OSPT ECOM,Assistant Chief Executive (Excl SIU),40,GOVERNMENT SERVICES-NOT ELSEWHERE CLASSIFIED,2023-24Q3_PC0204
Sandwell Metropolitan Borough Council,https://www.sandwell.gov.uk/performance-spending/government-procurement-cards,11-Oct-2023,Law & Governance,MOJ OSPT ECOM,Assistant Chief Executive (Excl SIU),40,GOVERNMENT SERVICES-NOT ELSEWHERE CLASSIFIED,2023-24Q3_PC0205
Sandwell Metropolitan Borough Council,https://www.sandwell.gov.uk/performance-spending/government-procurement-cards,11-Oct-2023,Law & Governance,MOJ OSPT ECOM,Assistant Chief Executive (Excl SIU),40,GOVERNMENT SERVICES-NOT ELSEWHERE CLASSIFIED,2023-24Q3_PC0206
Sandwell Metropolitan Borough Council,https://www.sandwell.gov.uk/performance-spending/government-procurement-cards,11-Oct-2023,Childrens Services,TRAVELODGE,Childrens Services,52,TRAVELODGE,2023-24Q3_PC0207
Sandwell Metropolitan Borough Council,https://www.sandwell.gov.uk/performance-spending/government-procurement-cards,11-Oct-2023,Childrens Services,ASDA STORES 4253,Childrens Services,13.6,"GROCERY STORES, SUPERMARKETS",2023-24Q3_PC0208
Sandwell Metropolitan Borough Council,https://www.sandwell.gov.uk/performance-spending/government-procurement-cards,11-Oct-2023,Childrens Services,ASDA STORES 4253,Childrens Services,4.6,"GROCERY STORES, SUPERMARKETS",2023-24Q3_PC0209
Sandwell Metropolitan Borough Council,https://www.sandwell.gov.uk/performance-spending/government-procurement-cards,11-Oct-2023,Individual School Budgets With Inclusion,Amazon.co.uk HT8J43Y24,Individual School Budgets With Inclusion,62.89,DIRECT MARKETING-OTHER DIRECT MARKETERS/NOT ELSEW.,2023-24Q3_PC0210
Sandwell Metropolitan Borough Council,https://www.sandwell.gov.uk/performance-spending/government-procurement-cards,11-Oct-2023,Law & Governance,SAINSBURYS S/MKTS,Assistant Chief Executive (Excl SIU),6.3,"GROCERY STORES, SUPERMARKETS",2023-24Q3_PC0211
Sandwell Metropolitan Borough Council,https://www.sandwell.gov.uk/performance-spending/government-procurement-cards,11-Oct-2023,Total ASCHWB,E.ON NEXT,Total Adult Social Care,46.97,"UTLTS-ELCTRC, GAS, HEATING OIL, SANITARY, WATER",2023-24Q3_PC0212
Sandwell Metropolitan Borough Council,https://www.sandwell.gov.uk/performance-spending/government-procurement-cards,11-Oct-2023,Total ASCHWB,E.ON NEXT,Total Adult Social Care,27.68,"UTLTS-ELCTRC, GAS, HEATING OIL, SANITARY, WATER",2023-24Q3_PC0213
Sandwell Metropolitan Borough Council,https://www.sandwell.gov.uk/performance-spending/government-procurement-cards,11-Oct-2023,Total ASCHWB,MYSYCOUS - UTILITIES,Total Adult Social Care,6.94,COMPUTER SOFTWARE STORES,2023-24Q3_PC0214
Sandwell Metropolitan Borough Council,https://www.sandwell.gov.uk/performance-spending/government-procurement-cards,11-Oct-2023,Total ASCHWB,MYSYCOUS - UTILITIES,Total Adult Social Care,3.19,COMPUTER SOFTWARE STORES,2023-24Q3_PC0215
Sandwell Metropolitan Borough Council,https://www.sandwell.gov.uk/performance-spending/government-procurement-cards,11-Oct-2023,Total ASCHWB,MYSYCOUS - UTILITIES,Total Adult Social Care,7.41,COMPUTER SOFTWARE STORES,2023-24Q3_PC0216
Sandwell Metropolitan Borough Council,https://www.sandwell.gov.uk/performance-spending/government-procurement-cards,11-Oct-2023,Total ASCHWB,MYSYCOUS - UTILITIES,Total Adult Social Care,5.77,COMPUTER SOFTWARE STORES,2023-24Q3_PC0217
Sandwell Metropolitan Borough Council,https://www.sandwell.gov.uk/performance-spending/government-procurement-cards,11-Oct-2023,Total ASCHWB,E.ON NEXT,Total Adult Social Care,22.59,"UTLTS-ELCTRC, GAS, HEATING OIL, SANITARY, WATER",2023-24Q3_PC0218
Sandwell Metropolitan Borough Council,https://www.sandwell.gov.uk/performance-spending/government-procurement-cards,11-Oct-2023,Regeneration & Growth,SLINGSBY,Regeneration And The Economy,373.2,"COMPUTERS, COMPUTER PERIPHERAL EQUIPMENT, SOFTWARE",2023-24Q3_PC0219
Sandwell Metropolitan Borough Council,https://www.sandwell.gov.uk/performance-spending/government-procurement-cards,11-Oct-2023,Childrens Services,Amazon.co.uk H87HX3C74,Childrens Services,14.23,DIRECT MARKETING-OTHER DIRECT MARKETERS/NOT ELSEW.,2023-24Q3_PC0220
Sandwell Metropolitan Borough Council,https://www.sandwell.gov.uk/performance-spending/government-procurement-cards,11-Oct-2023,Childrens Services,AMZNMktplace,Childrens Services,-160.93,MISCELLANEOUS AND SPECIALTY RETAIL STORES,2023-24Q3_PC0221
Sandwell Metropolitan Borough Council,https://www.sandwell.gov.uk/performance-spending/government-procurement-cards,11-Oct-2023,Housing & Assets Total,Amazon Prime HT8UL1Y34,Corporate Management,8.99,DIRECT MARKETING-CONTINUITY/SUBSCRIPTION MERCHANTS,2023-24Q3_PC0222
Sandwell Metropolitan Borough Council,https://www.sandwell.gov.uk/performance-spending/government-procurement-cards,11-Oct-2023,Childrens Services,AMZNMktplace,Childrens Services,14.93,MISCELLANEOUS AND SPECIALTY RETAIL STORES,2023-24Q3_PC0223
Sandwell Metropolitan Borough Council,https://www.sandwell.gov.uk/performance-spending/government-procurement-cards,11-Oct-2023,Childrens Services,AMZNMktplace,Childrens Services,4.99,MISCELLANEOUS AND SPECIALTY RETAIL STORES,2023-24Q3_PC0224
Sandwell Metropolitan Borough Council,https://www.sandwell.gov.uk/performance-spending/government-procurement-cards,11-Oct-2023,Childrens Services,AMZNMktplace,Childrens Services,8.97,MISCELLANEOUS AND SPECIALTY RETAIL STORES,2023-24Q3_PC0225
Sandwell Metropolitan Borough Council,https://www.sandwell.gov.uk/performance-spending/government-procurement-cards,11-Oct-2023,Total Borough Economy,AMZNMKTPLACE,Total Adult Social Care,24.47,MISCELLANEOUS AND SPECIALTY RETAIL STORES,2023-24Q3_PC0226
Sandwell Metropolitan Borough Council,https://www.sandwell.gov.uk/performance-spending/government-procurement-cards,11-Oct-2023,Childrens Services,LIDL GB BANGOR,Childrens Services,5.96,"GROCERY STORES, SUPERMARKETS",2023-24Q3_PC0227
Sandwell Metropolitan Borough Council,https://www.sandwell.gov.uk/performance-spending/government-procurement-cards,11-Oct-2023,Childrens Services,LIDL GB BANGOR,Childrens Services,7.67,"GROCERY STORES, SUPERMARKETS",2023-24Q3_PC0228
Sandwell Metropolitan Borough Council,https://www.sandwell.gov.uk/performance-spending/government-procurement-cards,11-Oct-2023,Childrens Services,TESCO STORES 2770,Childrens Services,92.98,"GROCERY STORES, SUPERMARKETS",2023-24Q3_PC0229
Sandwell Metropolitan Borough Council,https://www.sandwell.gov.uk/performance-spending/government-procurement-cards,11-Oct-2023,Total ASCHWB,AMZNMktplace,Total Adult Social Care,-16.14,MISCELLANEOUS AND SPECIALTY RETAIL STORES,2023-24Q3_PC0230
Sandwell Metropolitan Borough Council,https://www.sandwell.gov.uk/performance-spending/government-procurement-cards,11-Oct-2023,Childrens Services,ASDA SUPERSTORE,Childrens Services,10.7,"GROCERY STORES, SUPERMARKETS",2023-24Q3_PC0231
Sandwell Metropolitan Borough Council,https://www.sandwell.gov.uk/performance-spending/government-procurement-cards,11-Oct-2023,Law & Governance,WWW.OFFICETEAMCONNECT.,Assistant Chief Executive (Excl SIU),112.84,STATIONERY/OFFICE SUPPLIES/PRINTING & WRITING PAP.,2023-24Q3_PC0232
Sandwell Metropolitan Borough Council,https://www.sandwell.gov.uk/performance-spending/government-procurement-cards,11-Oct-2023,Total Public Health,LEONARDO HTL LIVERPOOL,Public Health,165.6,"LODGING-HOTELS,MOTELS,RESORTS-NOT CLASSIFIED",2023-24Q3_PC0233
Sandwell Metropolitan Borough Council,https://www.sandwell.gov.uk/performance-spending/government-procurement-cards,11-Oct-2023,Total Public Health,LEONARDO HTL LIVERPOOL,Public Health,231,"LODGING-HOTELS,MOTELS,RESORTS-NOT CLASSIFIED",2023-24Q3_PC0234
Sandwell Metropolitan Borough Council,https://www.sandwell.gov.uk/performance-spending/government-procurement-cards,11-Oct-2023,Corporate Management,AMZNMktplace,Corporate Management,37.05,MISCELLANEOUS AND SPECIALTY RETAIL STORES,2023-24Q3_PC0235
Sandwell Metropolitan Borough Council,https://www.sandwell.gov.uk/performance-spending/government-procurement-cards,11-Oct-2023,Total Borough Economy,BAKER ROSS,Total Adult Social Care,13.85,"ARTIST SUPPLY STORES, CRAFT SHOPS",2023-24Q3_PC0236
Sandwell Metropolitan Borough Council,https://www.sandwell.gov.uk/performance-spending/government-procurement-cards,11-Oct-2023,Total Borough Economy,WWW.RAINBOW-CREATIONS.,Total Adult Social Care,35.4,"ARTIST SUPPLY STORES, CRAFT SHOPS",2023-24Q3_PC0237
Sandwell Metropolitan Borough Council,https://www.sandwell.gov.uk/performance-spending/government-procurement-cards,11-Oct-2023,Total Borough Economy,eBay O 17-10638-61707,Total Adult Social Care,114,DEPARTMENT STORES,2023-24Q3_PC0238
Sandwell Metropolitan Borough Council,https://www.sandwell.gov.uk/performance-spending/government-procurement-cards,12-Oct-2023,Total Borough Economy,WWW.RANDALLSFIREWOOD,Total Adult Social Care,323.5,"FIREPLACE, FIREPLACE SCREENS & ACCESSORIES STORES",2023-24Q3_PC0239
Sandwell Metropolitan Borough Council,https://www.sandwell.gov.uk/performance-spending/government-procurement-cards,12-Oct-2023,Total Borough Economy,AMZNBusiness H80IW9ZA4,Total Adult Social Care,3.07,MISCELLANEOUS AND SPECIALTY RETAIL STORES,2023-24Q3_PC0240
Sandwell Metropolitan Borough Council,https://www.sandwell.gov.uk/performance-spending/government-procurement-cards,12-Oct-2023,Total Borough Economy,AMZNMktplace,Total Adult Social Care,9.99,MISCELLANEOUS AND SPECIALTY RETAIL STORES,2023-24Q3_PC0241
Sandwell Metropolitan Borough Council,https://www.sandwell.gov.uk/performance-spending/government-procurement-cards,12-Oct-2023,FINANCE (Inc SIU),WWW.OFFICETEAMCONNECT.,Total Adult Social Care,25.32,STATIONERY/OFFICE SUPPLIES/PRINTING & WRITING PAP.,2023-24Q3_PC0242
Sandwell Metropolitan Borough Council,https://www.sandwell.gov.uk/performance-spending/government-procurement-cards,12-Oct-2023,Total Borough Economy,WWW.PURELYPAPER.CO.UK,Total Adult Social Care,77.32,ELECTRICAL PARTS AND EQUIPMENT,2023-24Q3_PC0243
Sandwell Metropolitan Borough Council,https://www.sandwell.gov.uk/performance-spending/government-procurement-cards,12-Oct-2023,Total Borough Economy,ALPHA BUSINESS SUPPLIE,Total Adult Social Care,48.01,STATIONERY/OFFICE SUPPLIES/PRINTING & WRITING PAP.,2023-24Q3_PC0244
Sandwell Metropolitan Borough Council,https://www.sandwell.gov.uk/performance-spending/government-procurement-cards,12-Oct-2023,Total ASCHWB,SAINSBURYS,Total Adult Social Care,22.35,"GROCERY STORES, SUPERMARKETS",2023-24Q3_PC0245
Sandwell Metropolitan Borough Council,https://www.sandwell.gov.uk/performance-spending/government-procurement-cards,12-Oct-2023,Childrens Services,SumUp   Cnicht Cleanin,Childrens Services,112.5,PROFESSIONAL SERVICES-NOT ELSEWHERE CLASSIFIED,2023-24Q3_PC0246
Sandwell Metropolitan Borough Council,https://www.sandwell.gov.uk/performance-spending/government-procurement-cards,12-Oct-2023,Total ASCHWB,AMZNMKTPLACE,Total Adult Social Care,107.88,MISCELLANEOUS AND SPECIALTY RETAIL STORES,2023-24Q3_PC0247
Sandwell Metropolitan Borough Council,https://www.sandwell.gov.uk/performance-spending/government-procurement-cards,12-Oct-2023,Total ASCHWB,AMZNMktplace,Total Adult Social Care,8.67,MISCELLANEOUS AND SPECIALTY RETAIL STORES,2023-24Q3_PC0248
Sandwell Metropolitan Borough Council,https://www.sandwell.gov.uk/performance-spending/government-procurement-cards,12-Oct-2023,Regeneration & Growth,SAINSBURYS S/MKTS,Regeneration And The Economy,26.55,"GROCERY STORES, SUPERMARKETS",2023-24Q3_PC0249
Sandwell Metropolitan Borough Council,https://www.sandwell.gov.uk/performance-spending/government-procurement-cards,12-Oct-2023,Regeneration & Growth,Trainline,Regeneration And The Economy,314.15,PASSENGER RAILWAYS,2023-24Q3_PC0250
Sandwell Metropolitan Borough Council,https://www.sandwell.gov.uk/performance-spending/government-procurement-cards,12-Oct-2023,Total ASCHWB,AMZNMktplace,Total Adult Social Care,17.49,MISCELLANEOUS AND SPECIALTY RETAIL STORES,2023-24Q3_PC0251
Sandwell Metropolitan Borough Council,https://www.sandwell.gov.uk/performance-spending/government-procurement-cards,12-Oct-2023,Total ASCHWB,AMZNMktplace,Total Adult Social Care,14.02,MISCELLANEOUS AND SPECIALTY RETAIL STORES,2023-24Q3_PC0252
Sandwell Metropolitan Borough Council,https://www.sandwell.gov.uk/performance-spending/government-procurement-cards,12-Oct-2023,Total ASCHWB,AMZNMktplace,Total Adult Social Care,26.81,MISCELLANEOUS AND SPECIALTY RETAIL STORES,2023-24Q3_PC0253
Sandwell Metropolitan Borough Council,https://www.sandwell.gov.uk/performance-spending/government-procurement-cards,12-Oct-2023,Total ASCHWB,eBay O 04-10650-06913,Total Adult Social Care,29.5,DEPARTMENT STORES,2023-24Q3_PC0254
Sandwell Metropolitan Borough Council,https://www.sandwell.gov.uk/performance-spending/government-procurement-cards,12-Oct-2023,Childrens Services,SP SAM TURNER & SONS,Childrens Services,39.52,MISCELLANEOUS GENERAL MERCHANDISE,2023-24Q3_PC0255
Sandwell Metropolitan Borough Council,https://www.sandwell.gov.uk/performance-spending/government-procurement-cards,12-Oct-2023,Corporate Management,AMZNMktplace,Corporate Management,7.99,MISCELLANEOUS AND SPECIALTY RETAIL STORES,2023-24Q3_PC0256
Sandwell Metropolitan Borough Council,https://www.sandwell.gov.uk/performance-spending/government-procurement-cards,12-Oct-2023,Law & Governance,MOJ OSPT ECOM,Assistant Chief Executive (Excl SIU),40,GOVERNMENT SERVICES-NOT ELSEWHERE CLASSIFIED,2023-24Q3_PC0257
Sandwell Metropolitan Borough Council,https://www.sandwell.gov.uk/performance-spending/government-procurement-cards,12-Oct-2023,Total Borough Economy,RafikiLaunderettenDryC,Total Adult Social Care,238.9,"CLEANING, GARMENT, AND LAUNDRY SERVICES",2023-24Q3_PC0258
Sandwell Metropolitan Borough Council,https://www.sandwell.gov.uk/performance-spending/government-procurement-cards,12-Oct-2023,Total Borough Economy,SECURITY INDUSTRY AUTH,Total Adult Social Care,184,GOVERNMENT SERVICES-NOT ELSEWHERE CLASSIFIED,2023-24Q3_PC0259
Sandwell Metropolitan Borough Council,https://www.sandwell.gov.uk/performance-spending/government-procurement-cards,12-Oct-2023,Total ASCHWB,Amazon.co.uk H884A9NK4,Total Adult Social Care,24.43,DIRECT MARKETING-OTHER DIRECT MARKETERS/NOT ELSEW.,2023-24Q3_PC0260
Sandwell Metropolitan Borough Council,https://www.sandwell.gov.uk/performance-spending/government-procurement-cards,12-Oct-2023,Total ASCHWB,AMZNMktplace,Total Adult Social Care,16.98,MISCELLANEOUS AND SPECIALTY RETAIL STORES,2023-24Q3_PC0261
Sandwell Metropolitan Borough Council,https://www.sandwell.gov.uk/performance-spending/government-procurement-cards,12-Oct-2023,Total ASCHWB,Amazon.co.uk H80HK2NV4,Total Adult Social Care,20.59,DIRECT MARKETING-OTHER DIRECT MARKETERS/NOT ELSEW.,2023-24Q3_PC0262
Sandwell Metropolitan Borough Council,https://www.sandwell.gov.uk/performance-spending/government-procurement-cards,12-Oct-2023,Total ASCHWB,AMZNMktplace,Total Adult Social Care,12.48,MISCELLANEOUS AND SPECIALTY RETAIL STORES,2023-24Q3_PC0263
Sandwell Metropolitan Borough Council,https://www.sandwell.gov.uk/performance-spending/government-procurement-cards,12-Oct-2023,Total ASCHWB,AMZNMktplace,Total Adult Social Care,15.98,MISCELLANEOUS AND SPECIALTY RETAIL STORES,2023-24Q3_PC0264
Sandwell Metropolitan Borough Council,https://www.sandwell.gov.uk/performance-spending/government-procurement-cards,12-Oct-2023,Housing & Assets Total,Amazon.co.uk H814E2ZE4,Corporate Management,43.44,DIRECT MARKETING-OTHER DIRECT MARKETERS/NOT ELSEW.,2023-24Q3_PC0265
Sandwell Metropolitan Borough Council,https://www.sandwell.gov.uk/performance-spending/government-procurement-cards,12-Oct-2023,Total ASCHWB,MIELE MOTO SHOP,Total Adult Social Care,202.27,HOUSEHOLD APPLIANCE STORES,2023-24Q3_PC0266
Sandwell Metropolitan Borough Council,https://www.sandwell.gov.uk/performance-spending/government-procurement-cards,12-Oct-2023,Childrens Services,TESCO STORES 2770,Childrens Services,90.31,"GROCERY STORES, SUPERMARKETS",2023-24Q3_PC0267
Sandwell Metropolitan Borough Council,https://www.sandwell.gov.uk/performance-spending/government-procurement-cards,12-Oct-2023,Total ASCHWB,AMZNMKTPLACE,Total Adult Social Care,19.99,MISCELLANEOUS AND SPECIALTY RETAIL STORES,2023-24Q3_PC0268
Sandwell Metropolitan Borough Council,https://www.sandwell.gov.uk/performance-spending/government-procurement-cards,12-Oct-2023,Total Public Health,LEONARDO HTL LIVERPOOL,Public Health,82.4,"LODGING-HOTELS,MOTELS,RESORTS-NOT CLASSIFIED",2023-24Q3_PC0269
Sandwell Metropolitan Borough Council,https://www.sandwell.gov.uk/performance-spending/government-procurement-cards,12-Oct-2023,Childrens Services,AMZNMKTPLACE,Childrens Services,29.5,MISCELLANEOUS AND SPECIALTY RETAIL STORES,2023-24Q3_PC0270
Sandwell Metropolitan Borough Council,https://www.sandwell.gov.uk/performance-spending/government-procurement-cards,12-Oct-2023,Total Housing Revenue Account,CAPITA GAS,Total Housing Revenue Account,35.4,"ORGANIZATIONS, MEMBERSHIP-NOT ELSEWHERE CLASSIFIED",2023-24Q3_PC0271
Sandwell Metropolitan Borough Council,https://www.sandwell.gov.uk/performance-spending/government-procurement-cards,12-Oct-2023,Total Borough Economy,AMZNMktplace,Total Adult Social Care,42.43,MISCELLANEOUS AND SPECIALTY RETAIL STORES,2023-24Q3_PC0272
Sandwell Metropolitan Borough Council,https://www.sandwell.gov.uk/performance-spending/government-procurement-cards,12-Oct-2023,Total Housing Revenue Account,POST OFFICE COUNTER,Total Housing Revenue Account,250,POSTAL SERVICES-GOVERNMENT ONLY,2023-24Q3_PC0273
Sandwell Metropolitan Borough Council,https://www.sandwell.gov.uk/performance-spending/government-procurement-cards,12-Oct-2023,Law & Governance,AMZNMktplace,Assistant Chief Executive (Excl SIU),44.97,MISCELLANEOUS AND SPECIALTY RETAIL STORES,2023-24Q3_PC0274
Sandwell Metropolitan Borough Council,https://www.sandwell.gov.uk/performance-spending/government-procurement-cards,12-Oct-2023,Total Borough Economy,WWW.OFFICETEAMCONNECT.,Total Adult Social Care,15.24,STATIONERY/OFFICE SUPPLIES/PRINTING & WRITING PAP.,2023-24Q3_PC0275
Sandwell Metropolitan Borough Council,https://www.sandwell.gov.uk/performance-spending/government-procurement-cards,12-Oct-2023,Regeneration & Growth,London Northwestern Ra,Regeneration And The Economy,16.1,PASSENGER RAILWAYS,2023-24Q3_PC0276
Sandwell Metropolitan Borough Council,https://www.sandwell.gov.uk/performance-spending/government-procurement-cards,12-Oct-2023,Regeneration & Growth,London Northwestern Ra,Regeneration And The Economy,16.1,PASSENGER RAILWAYS,2023-24Q3_PC0277
Sandwell Metropolitan Borough Council,https://www.sandwell.gov.uk/performance-spending/government-procurement-cards,13-Oct-2023,Total ASCHWB,WORKWEAR EXPRESS,Total Adult Social Care,476.23,MEN'S/WOMEN'S/CHILDREN'S UNIFORMS/COMMERCIAL CLOTH,2023-24Q3_PC0278
Sandwell Metropolitan Borough Council,https://www.sandwell.gov.uk/performance-spending/government-procurement-cards,13-Oct-2023,Total Borough Economy,SP A1 EQUIPMENT LTD,Total Adult Social Care,103.41,MISCELLANEOUS GENERAL MERCHANDISE,2023-24Q3_PC0279
Sandwell Metropolitan Borough Council,https://www.sandwell.gov.uk/performance-spending/government-procurement-cards,13-Oct-2023,Total Borough Economy,AMZNBusiness H80QH8AO4,Total Adult Social Care,12.28,MISCELLANEOUS AND SPECIALTY RETAIL STORES,2023-24Q3_PC0280
Sandwell Metropolitan Borough Council,https://www.sandwell.gov.uk/performance-spending/government-procurement-cards,13-Oct-2023,Childrens Services,AMZNMKTPLACE,Childrens Services,45.39,MISCELLANEOUS AND SPECIALTY RETAIL STORES,2023-24Q3_PC0281
Sandwell Metropolitan Borough Council,https://www.sandwell.gov.uk/performance-spending/government-procurement-cards,13-Oct-2023,Total ASCHWB,AMZNMktplace,Total Adult Social Care,26.99,MISCELLANEOUS AND SPECIALTY RETAIL STORES,2023-24Q3_PC0282
Sandwell Metropolitan Borough Council,https://www.sandwell.gov.uk/performance-spending/government-procurement-cards,13-Oct-2023,Childrens Services,G D JONES AND SON,Childrens Services,430.5,"FUEL DEALERS-COAL, FUEL OIL, LIQ PETROLEUM, WOOD",2023-24Q3_PC0283
Sandwell Metropolitan Borough Council,https://www.sandwell.gov.uk/performance-spending/government-procurement-cards,13-Oct-2023,Law & Governance,ALDI 42 772,Assistant Chief Executive (Excl SIU),35.3,"GROCERY STORES, SUPERMARKETS",2023-24Q3_PC0284
Sandwell Metropolitan Borough Council,https://www.sandwell.gov.uk/performance-spending/government-procurement-cards,13-Oct-2023,Regeneration & Growth,WWW.ROBUSTDETAILS.COM,Regeneration And The Economy,90,GENERAL CONTRACTORS/RESIDENTIAL BUILDINGS,2023-24Q3_PC0285
Sandwell Metropolitan Borough Council,https://www.sandwell.gov.uk/performance-spending/government-procurement-cards,13-Oct-2023,Total ASCHWB,AMZNMKTPLACE,Total Adult Social Care,4.27,MISCELLANEOUS AND SPECIALTY RETAIL STORES,2023-24Q3_PC0286
Sandwell Metropolitan Borough Council,https://www.sandwell.gov.uk/performance-spending/government-procurement-cards,13-Oct-2023,Total ASCHWB,AMZNMktplace,Total Adult Social Care,12.5,MISCELLANEOUS AND SPECIALTY RETAIL STORES,2023-24Q3_PC0287
Sandwell Metropolitan Borough Council,https://www.sandwell.gov.uk/performance-spending/government-procurement-cards,13-Oct-2023,Total ASCHWB,AMZNMktplace,Total Adult Social Care,14.8,MISCELLANEOUS AND SPECIALTY RETAIL STORES,2023-24Q3_PC0288
Sandwell Metropolitan Borough Council,https://www.sandwell.gov.uk/performance-spending/government-procurement-cards,13-Oct-2023,Total ASCHWB,AMZNMktplace,Total Adult Social Care,29.9,MISCELLANEOUS AND SPECIALTY RETAIL STORES,2023-24Q3_PC0289
Sandwell Metropolitan Borough Council,https://www.sandwell.gov.uk/performance-spending/government-procurement-cards,13-Oct-2023,Childrens Services,ALDI 103 772,Childrens Services,23.82,"GROCERY STORES, SUPERMARKETS",2023-24Q3_PC0290
Sandwell Metropolitan Borough Council,https://www.sandwell.gov.uk/performance-spending/government-procurement-cards,13-Oct-2023,Childrens Services,WM MORRISONS STORE,Childrens Services,33.62,"GROCERY STORES, SUPERMARKETS",2023-24Q3_PC0291
Sandwell Metropolitan Borough Council,https://www.sandwell.gov.uk/performance-spending/government-procurement-cards,13-Oct-2023,Total Borough Economy,BRUMACC,Total Adult Social Care,150,GOVERNMENT SERVICES-NOT ELSEWHERE CLASSIFIED,2023-24Q3_PC0292
Sandwell Metropolitan Borough Council,https://www.sandwell.gov.uk/performance-spending/government-procurement-cards,13-Oct-2023,Total Borough Economy,HERON FOODS,Total Adult Social Care,6.98,"GROCERY STORES, SUPERMARKETS",2023-24Q3_PC0293
Sandwell Metropolitan Borough Council,https://www.sandwell.gov.uk/performance-spending/government-procurement-cards,13-Oct-2023,Individual School Budgets With Inclusion,BUDGENS,Individual School Budgets With Inclusion,4.59,"GROCERY STORES, SUPERMARKETS",2023-24Q3_PC0294
Sandwell Metropolitan Borough Council,https://www.sandwell.gov.uk/performance-spending/government-procurement-cards,13-Oct-2023,Individual School Budgets With Inclusion,Mmj supermarket,Individual School Budgets With Inclusion,6.77,"GROCERY STORES, SUPERMARKETS",2023-24Q3_PC0295
Sandwell Metropolitan Borough Council,https://www.sandwell.gov.uk/performance-spending/government-procurement-cards,13-Oct-2023,Housing & Assets Total,HQN LIMITED,Corporate Management,216,"CONSULTING, MANAGEMENT, AND PUBLIC RELATIONS SVCS",2023-24Q3_PC0296
Sandwell Metropolitan Borough Council,https://www.sandwell.gov.uk/performance-spending/government-procurement-cards,13-Oct-2023,Housing & Assets Total,AMZNMktplace,Corporate Management,2.99,MISCELLANEOUS AND SPECIALTY RETAIL STORES,2023-24Q3_PC0297
Sandwell Metropolitan Borough Council,https://www.sandwell.gov.uk/performance-spending/government-procurement-cards,13-Oct-2023,Housing & Assets Total,AMZNMktplace,Corporate Management,6.99,MISCELLANEOUS AND SPECIALTY RETAIL STORES,2023-24Q3_PC0298
Sandwell Metropolitan Borough Council,https://www.sandwell.gov.uk/performance-spending/government-procurement-cards,13-Oct-2023,Housing & Assets Total,AMZNMktplace,Corporate Management,3.29,MISCELLANEOUS AND SPECIALTY RETAIL STORES,2023-24Q3_PC0299
Sandwell Metropolitan Borough Council,https://www.sandwell.gov.uk/performance-spending/government-procurement-cards,13-Oct-2023,Housing & Assets Total,AMZNMktplace,Corporate Management,15.55,MISCELLANEOUS AND SPECIALTY RETAIL STORES,2023-24Q3_PC0300
Sandwell Metropolitan Borough Council,https://www.sandwell.gov.uk/performance-spending/government-procurement-cards,13-Oct-2023,Housing & Assets Total,AMZNMktplace,Corporate Management,50.06,MISCELLANEOUS AND SPECIALTY RETAIL STORES,2023-24Q3_PC0301
Sandwell Metropolitan Borough Council,https://www.sandwell.gov.uk/performance-spending/government-procurement-cards,13-Oct-2023,Housing & Assets Total,AMZNMktplace,Corporate Management,33.97,MISCELLANEOUS AND SPECIALTY RETAIL STORES,2023-24Q3_PC0302
Sandwell Metropolitan Borough Council,https://www.sandwell.gov.uk/performance-spending/government-procurement-cards,13-Oct-2023,Total Borough Economy,SAINSBURYS,Total Adult Social Care,2.5,"GROCERY STORES, SUPERMARKETS",2023-24Q3_PC0303
Sandwell Metropolitan Borough Council,https://www.sandwell.gov.uk/performance-spending/government-procurement-cards,13-Oct-2023,Total Borough Economy,SAINSBURYS S/MKTS,Total Adult Social Care,3.5,"GROCERY STORES, SUPERMARKETS",2023-24Q3_PC0304
Sandwell Metropolitan Borough Council,https://www.sandwell.gov.uk/performance-spending/government-procurement-cards,13-Oct-2023,Total ASCHWB,Amazon.co.uk H85035J64,Total Adult Social Care,50.3,DIRECT MARKETING-OTHER DIRECT MARKETERS/NOT ELSEW.,2023-24Q3_PC0305
Sandwell Metropolitan Borough Council,https://www.sandwell.gov.uk/performance-spending/government-procurement-cards,13-Oct-2023,Total ASCHWB,AMZNMKTPLACE,Total Adult Social Care,23.99,MISCELLANEOUS AND SPECIALTY RETAIL STORES,2023-24Q3_PC0306
Sandwell Metropolitan Borough Council,https://www.sandwell.gov.uk/performance-spending/government-procurement-cards,13-Oct-2023,Total ASCHWB,AMZNMktplace,Total Adult Social Care,13.98,MISCELLANEOUS AND SPECIALTY RETAIL STORES,2023-24Q3_PC0307
Sandwell Metropolitan Borough Council,https://www.sandwell.gov.uk/performance-spending/government-procurement-cards,13-Oct-2023,Total ASCHWB,AMZNMktplace,Total Adult Social Care,12.97,MISCELLANEOUS AND SPECIALTY RETAIL STORES,2023-24Q3_PC0308
Sandwell Metropolitan Borough Council,https://www.sandwell.gov.uk/performance-spending/government-procurement-cards,13-Oct-2023,Total ASCHWB,AMZNMktplace,Total Adult Social Care,18.99,MISCELLANEOUS AND SPECIALTY RETAIL STORES,2023-24Q3_PC0309
Sandwell Metropolitan Borough Council,https://www.sandwell.gov.uk/performance-spending/government-procurement-cards,13-Oct-2023,Total ASCHWB,Amazon.co.uk H88WS6AW4,Total Adult Social Care,31.55,DIRECT MARKETING-OTHER DIRECT MARKETERS/NOT ELSEW.,2023-24Q3_PC0310
Sandwell Metropolitan Borough Council,https://www.sandwell.gov.uk/performance-spending/government-procurement-cards,13-Oct-2023,Total ASCHWB,Amazon.co.uk H88PP0JX4,Total Adult Social Care,26.98,DIRECT MARKETING-OTHER DIRECT MARKETERS/NOT ELSEW.,2023-24Q3_PC0311
Sandwell Metropolitan Borough Council,https://www.sandwell.gov.uk/performance-spending/government-procurement-cards,13-Oct-2023,Childrens Services,AMZNMktplace,Childrens Services,14.72,MISCELLANEOUS AND SPECIALTY RETAIL STORES,2023-24Q3_PC0312
Sandwell Metropolitan Borough Council,https://www.sandwell.gov.uk/performance-spending/government-procurement-cards,13-Oct-2023,Childrens Services,AMZNMktplace,Childrens Services,54.02,MISCELLANEOUS AND SPECIALTY RETAIL STORES,2023-24Q3_PC0313
Sandwell Metropolitan Borough Council,https://www.sandwell.gov.uk/performance-spending/government-procurement-cards,13-Oct-2023,Childrens Services,ROYAL MAIL GROUP LTD,Childrens Services,2.6,POSTAL SERVICES-GOVERNMENT ONLY,2023-24Q3_PC0314
Sandwell Metropolitan Borough Council,https://www.sandwell.gov.uk/performance-spending/government-procurement-cards,13-Oct-2023,Total ASCHWB,AMZNMKTPLACE,Total Adult Social Care,70.99,MISCELLANEOUS AND SPECIALTY RETAIL STORES,2023-24Q3_PC0315
Sandwell Metropolitan Borough Council,https://www.sandwell.gov.uk/performance-spending/government-procurement-cards,13-Oct-2023,Childrens Services,WWW.GOMPELS.CO.UK,Childrens Services,179.63,DENTAL/LAB/MED/OPHTHALMIC HOSP EQUIP & SUPPLIES,2023-24Q3_PC0316
Sandwell Metropolitan Borough Council,https://www.sandwell.gov.uk/performance-spending/government-procurement-cards,13-Oct-2023,Childrens Services,SP ARTDISCOUNT,Childrens Services,228.9,"ARTIST SUPPLY STORES, CRAFT SHOPS",2023-24Q3_PC0317
Sandwell Metropolitan Borough Council,https://www.sandwell.gov.uk/performance-spending/government-procurement-cards,13-Oct-2023,FINANCE (Inc SIU),WWW.ARGOS.CO.UK,Assistant Chief Executive (Excl SIU),10.8,DEPARTMENT STORES,2023-24Q3_PC0318
Sandwell Metropolitan Borough Council,https://www.sandwell.gov.uk/performance-spending/government-procurement-cards,13-Oct-2023,Total Borough Economy,POST OFFICE COUNTER,Total Adult Social Care,43.25,POSTAL SERVICES-GOVERNMENT ONLY,2023-24Q3_PC0319
Sandwell Metropolitan Borough Council,https://www.sandwell.gov.uk/performance-spending/government-procurement-cards,13-Oct-2023,Childrens Services,AMZNMktplace,Childrens Services,83.37,MISCELLANEOUS AND SPECIALTY RETAIL STORES,2023-24Q3_PC0320
Sandwell Metropolitan Borough Council,https://www.sandwell.gov.uk/performance-spending/government-procurement-cards,13-Oct-2023,Childrens Services,Amazon.co.uk H82XU2T74,Childrens Services,32.2,DIRECT MARKETING-OTHER DIRECT MARKETERS/NOT ELSEW.,2023-24Q3_PC0321
Sandwell Metropolitan Borough Council,https://www.sandwell.gov.uk/performance-spending/government-procurement-cards,13-Oct-2023,Childrens Services,ASDA SUPERSTORE,Childrens Services,18.69,"GROCERY STORES, SUPERMARKETS",2023-24Q3_PC0322
Sandwell Metropolitan Borough Council,https://www.sandwell.gov.uk/performance-spending/government-procurement-cards,13-Oct-2023,Childrens Services,SP TURNING PAGES ST,Childrens Services,210.6,"BOOKS,PERIODICALS AND NEWSPAPERS",2023-24Q3_PC0323
Sandwell Metropolitan Borough Council,https://www.sandwell.gov.uk/performance-spending/government-procurement-cards,13-Oct-2023,Regeneration & Growth,WWW.ARCO.CO.UK,Regeneration And The Economy,97.18,INDUSTRIAL SUPPLIES NOT ELSEWHERE CLASSIFIED,2023-24Q3_PC0324
Sandwell Metropolitan Borough Council,https://www.sandwell.gov.uk/performance-spending/government-procurement-cards,16-Oct-2023,Total Borough Economy,ADOBE ACROPRO SUBS,Dead SeRCOP,19.97,COMPUTER SOFTWARE STORES,2023-24Q3_PC0325
Sandwell Metropolitan Borough Council,https://www.sandwell.gov.uk/performance-spending/government-procurement-cards,16-Oct-2023,Total Borough Economy,THE WORKS,Total Adult Social Care,15,DISCOUNT STORES,2023-24Q3_PC0326
Sandwell Metropolitan Borough Council,https://www.sandwell.gov.uk/performance-spending/government-procurement-cards,16-Oct-2023,Total Borough Economy,ASDA GROCERIES ONLINE,Total Adult Social Care,59.5,"GROCERY STORES, SUPERMARKETS",2023-24Q3_PC0327
Sandwell Metropolitan Borough Council,https://www.sandwell.gov.uk/performance-spending/government-procurement-cards,16-Oct-2023,Law & Governance,Amazon Prime H89QK7P94,Assistant Chief Executive (Excl SIU),8.99,DIRECT MARKETING-CONTINUITY/SUBSCRIPTION MERCHANTS,2023-24Q3_PC0328
Sandwell Metropolitan Borough Council,https://www.sandwell.gov.uk/performance-spending/government-procurement-cards,16-Oct-2023,FINANCE (Inc SIU),AMZNMKTPLACE,Total Adult Social Care,37.63,MISCELLANEOUS AND SPECIALTY RETAIL STORES,2023-24Q3_PC0329
Sandwell Metropolitan Borough Council,https://www.sandwell.gov.uk/performance-spending/government-procurement-cards,16-Oct-2023,FINANCE (Inc SIU),AMZNMktplace,Total Adult Social Care,127.38,MISCELLANEOUS AND SPECIALTY RETAIL STORES,2023-24Q3_PC0330
Sandwell Metropolitan Borough Council,https://www.sandwell.gov.uk/performance-spending/government-procurement-cards,16-Oct-2023,Regeneration & Growth,SumUp   Bostin Hardwar,Regeneration And The Economy,11.99,MISCELLANEOUS AND SPECIALTY RETAIL STORES,2023-24Q3_PC0331
Sandwell Metropolitan Borough Council,https://www.sandwell.gov.uk/performance-spending/government-procurement-cards,16-Oct-2023,Total ASCHWB,SAINSBURYS,Total Adult Social Care,16.75,"GROCERY STORES, SUPERMARKETS",2023-24Q3_PC0332
Sandwell Metropolitan Borough Council,https://www.sandwell.gov.uk/performance-spending/government-procurement-cards,16-Oct-2023,Individual School Budgets With Inclusion,CATER 4 YOU,Individual School Budgets With Inclusion,70.86,INDUSTRIAL SUPPLIES NOT ELSEWHERE CLASSIFIED,2023-24Q3_PC0333
Sandwell Metropolitan Borough Council,https://www.sandwell.gov.uk/performance-spending/government-procurement-cards,16-Oct-2023,Law & Governance,AMZNMktplace,Assistant Chief Executive (Excl SIU),23.49,MISCELLANEOUS AND SPECIALTY RETAIL STORES,2023-24Q3_PC0334
Sandwell Metropolitan Borough Council,https://www.sandwell.gov.uk/performance-spending/government-procurement-cards,16-Oct-2023,Total ASCHWB,AMZNMktplace,Total Adult Social Care,13.7,MISCELLANEOUS AND SPECIALTY RETAIL STORES,2023-24Q3_PC0335
Sandwell Metropolitan Borough Council,https://www.sandwell.gov.uk/performance-spending/government-procurement-cards,16-Oct-2023,Total ASCHWB,AMZNMktplace,Total Adult Social Care,28.27,MISCELLANEOUS AND SPECIALTY RETAIL STORES,2023-24Q3_PC0336
Sandwell Metropolitan Borough Council,https://www.sandwell.gov.uk/performance-spending/government-procurement-cards,16-Oct-2023,Childrens Services,Spotify P268174A0F,Childrens Services,10.99,DIGITAL GOODS AUDIOVISUAL MEDIA,2023-24Q3_PC0337
Sandwell Metropolitan Borough Council,https://www.sandwell.gov.uk/performance-spending/government-procurement-cards,16-Oct-2023,Individual School Budgets With Inclusion,VIKING OFFICE UK LIMIT,Individual School Budgets With Inclusion,158.35,STATIONERY/OFFICE SUPPLIES/PRINTING & WRITING PAP.,2023-24Q3_PC0338
Sandwell Metropolitan Borough Council,https://www.sandwell.gov.uk/performance-spending/government-procurement-cards,16-Oct-2023,Individual School Budgets With Inclusion,AMZNMktplace,Individual School Budgets With Inclusion,121.98,MISCELLANEOUS AND SPECIALTY RETAIL STORES,2023-24Q3_PC0339
Sandwell Metropolitan Borough Council,https://www.sandwell.gov.uk/performance-spending/government-procurement-cards,16-Oct-2023,Regeneration & Growth,SAINSBURYS S/MKTS,Regeneration And The Economy,4.2,"GROCERY STORES, SUPERMARKETS",2023-24Q3_PC0340
Sandwell Metropolitan Borough Council,https://www.sandwell.gov.uk/performance-spending/government-procurement-cards,16-Oct-2023,Total ASCHWB,AMZNMKTPLACE,Total Adult Social Care,10.99,MISCELLANEOUS AND SPECIALTY RETAIL STORES,2023-24Q3_PC0341
Sandwell Metropolitan Borough Council,https://www.sandwell.gov.uk/performance-spending/government-procurement-cards,16-Oct-2023,Total ASCHWB,AMZNMKTPLACE,Total Adult Social Care,10.79,MISCELLANEOUS AND SPECIALTY RETAIL STORES,2023-24Q3_PC0342
Sandwell Metropolitan Borough Council,https://www.sandwell.gov.uk/performance-spending/government-procurement-cards,16-Oct-2023,Total ASCHWB,AMZNMktplace,Total Adult Social Care,67.4,MISCELLANEOUS AND SPECIALTY RETAIL STORES,2023-24Q3_PC0343
Sandwell Metropolitan Borough Council,https://www.sandwell.gov.uk/performance-spending/government-procurement-cards,16-Oct-2023,Total ASCHWB,AMZNMktplace,Total Adult Social Care,35,MISCELLANEOUS AND SPECIALTY RETAIL STORES,2023-24Q3_PC0344
Sandwell Metropolitan Borough Council,https://www.sandwell.gov.uk/performance-spending/government-procurement-cards,16-Oct-2023,Total ASCHWB,AMZNMKTPLACE,Total Adult Social Care,46.79,MISCELLANEOUS AND SPECIALTY RETAIL STORES,2023-24Q3_PC0345
Sandwell Metropolitan Borough Council,https://www.sandwell.gov.uk/performance-spending/government-procurement-cards,16-Oct-2023,Total ASCHWB,AMZNMKTPLACE,Total Adult Social Care,53.94,MISCELLANEOUS AND SPECIALTY RETAIL STORES,2023-24Q3_PC0346
Sandwell Metropolitan Borough Council,https://www.sandwell.gov.uk/performance-spending/government-procurement-cards,16-Oct-2023,Total ASCHWB,AMZNMKTPLACE,Total Adult Social Care,45.87,MISCELLANEOUS AND SPECIALTY RETAIL STORES,2023-24Q3_PC0347
Sandwell Metropolitan Borough Council,https://www.sandwell.gov.uk/performance-spending/government-procurement-cards,16-Oct-2023,Childrens Services,AMZNMktplace,Childrens Services,60.28,MISCELLANEOUS AND SPECIALTY RETAIL STORES,2023-24Q3_PC0348
Sandwell Metropolitan Borough Council,https://www.sandwell.gov.uk/performance-spending/government-procurement-cards,16-Oct-2023,Total ASCHWB,AMZNMKTPLACE,Total Adult Social Care,246.96,MISCELLANEOUS AND SPECIALTY RETAIL STORES,2023-24Q3_PC0349
Sandwell Metropolitan Borough Council,https://www.sandwell.gov.uk/performance-spending/government-procurement-cards,16-Oct-2023,Total Borough Economy,PAYPAL  rs.franks75,Total Adult Social Care,375,POI FUNDING TRANSACTIONS,2023-24Q3_PC0350
Sandwell Metropolitan Borough Council,https://www.sandwell.gov.uk/performance-spending/government-procurement-cards,16-Oct-2023,Regeneration & Growth,AMZNMKTPLACE,Regeneration And The Economy,72.01,MISCELLANEOUS AND SPECIALTY RETAIL STORES,2023-24Q3_PC0351
Sandwell Metropolitan Borough Council,https://www.sandwell.gov.uk/performance-spending/government-procurement-cards,16-Oct-2023,Housing & Assets Total,Amazon.co.uk H84RA6XH4,Corporate Management,23.45,DIRECT MARKETING-OTHER DIRECT MARKETERS/NOT ELSEW.,2023-24Q3_PC0352
Sandwell Metropolitan Borough Council,https://www.sandwell.gov.uk/performance-spending/government-procurement-cards,16-Oct-2023,Childrens Services,AMZNMKTPLACE,Childrens Services,98,MISCELLANEOUS AND SPECIALTY RETAIL STORES,2023-24Q3_PC0353
Sandwell Metropolitan Borough Council,https://www.sandwell.gov.uk/performance-spending/government-procurement-cards,16-Oct-2023,Childrens Services,Amazon.co.uk H80RP00N4,Childrens Services,15.95,DIRECT MARKETING-OTHER DIRECT MARKETERS/NOT ELSEW.,2023-24Q3_PC0354
Sandwell Metropolitan Borough Council,https://www.sandwell.gov.uk/performance-spending/government-procurement-cards,16-Oct-2023,Childrens Services,AMZNMKTPLACE,Childrens Services,29.9,MISCELLANEOUS AND SPECIALTY RETAIL STORES,2023-24Q3_PC0355
Sandwell Metropolitan Borough Council,https://www.sandwell.gov.uk/performance-spending/government-procurement-cards,16-Oct-2023,Total Borough Economy,AMZNMktplace,Total Adult Social Care,17.99,MISCELLANEOUS AND SPECIALTY RETAIL STORES,2023-24Q3_PC0356
Sandwell Metropolitan Borough Council,https://www.sandwell.gov.uk/performance-spending/government-procurement-cards,16-Oct-2023,Total Borough Economy,Amazon.co.uk H87KC2594,Total Adult Social Care,12,DIRECT MARKETING-OTHER DIRECT MARKETERS/NOT ELSEW.,2023-24Q3_PC0357
Sandwell Metropolitan Borough Council,https://www.sandwell.gov.uk/performance-spending/government-procurement-cards,16-Oct-2023,Total Borough Economy,Amazon.co.uk H84AP55Z4,Total Adult Social Care,11,DIRECT MARKETING-OTHER DIRECT MARKETERS/NOT ELSEW.,2023-24Q3_PC0358
Sandwell Metropolitan Borough Council,https://www.sandwell.gov.uk/performance-spending/government-procurement-cards,16-Oct-2023,Total Borough Economy,Amazon.co.uk H834S15R4,Total Adult Social Care,10.99,DIRECT MARKETING-OTHER DIRECT MARKETERS/NOT ELSEW.,2023-24Q3_PC0359
Sandwell Metropolitan Borough Council,https://www.sandwell.gov.uk/performance-spending/government-procurement-cards,16-Oct-2023,Total ASCHWB,AMZNMKTPLACE,Total Adult Social Care,53.98,MISCELLANEOUS AND SPECIALTY RETAIL STORES,2023-24Q3_PC0360
Sandwell Metropolitan Borough Council,https://www.sandwell.gov.uk/performance-spending/government-procurement-cards,16-Oct-2023,Total ASCHWB,AMZNMKTPLACE,Total Adult Social Care,12.96,MISCELLANEOUS AND SPECIALTY RETAIL STORES,2023-24Q3_PC0361
Sandwell Metropolitan Borough Council,https://www.sandwell.gov.uk/performance-spending/government-procurement-cards,16-Oct-2023,Housing & Assets Total,STATION HOTEL,Corporate Management,450,"LODGING-HOTELS,MOTELS,RESORTS-NOT CLASSIFIED",2023-24Q3_PC0362
Sandwell Metropolitan Borough Council,https://www.sandwell.gov.uk/performance-spending/government-procurement-cards,16-Oct-2023,FINANCE (Inc SIU),Amazon.co.uk H883090W4,Assistant Chief Executive (Excl SIU),34.03,DIRECT MARKETING-OTHER DIRECT MARKETERS/NOT ELSEW.,2023-24Q3_PC0363
Sandwell Metropolitan Borough Council,https://www.sandwell.gov.uk/performance-spending/government-procurement-cards,16-Oct-2023,Total ASCHWB,AMZNMktplace,Total Adult Social Care,212.97,MISCELLANEOUS AND SPECIALTY RETAIL STORES,2023-24Q3_PC0364
Sandwell Metropolitan Borough Council,https://www.sandwell.gov.uk/performance-spending/government-procurement-cards,16-Oct-2023,Total ASCHWB,AMZNMktplace,Total Adult Social Care,126.08,MISCELLANEOUS AND SPECIALTY RETAIL STORES,2023-24Q3_PC0365
Sandwell Metropolitan Borough Council,https://www.sandwell.gov.uk/performance-spending/government-procurement-cards,16-Oct-2023,Total Public Health,WWW.OFFICETEAMCONNECT.,Public Health,254.4,STATIONERY/OFFICE SUPPLIES/PRINTING & WRITING PAP.,2023-24Q3_PC0366
Sandwell Metropolitan Borough Council,https://www.sandwell.gov.uk/performance-spending/government-procurement-cards,16-Oct-2023,Total Borough Economy,AMZNMKTPLACE,Total Adult Social Care,9.99,MISCELLANEOUS AND SPECIALTY RETAIL STORES,2023-24Q3_PC0367
Sandwell Metropolitan Borough Council,https://www.sandwell.gov.uk/performance-spending/government-procurement-cards,16-Oct-2023,Total ASCHWB,AMZNMktplace,Total Adult Social Care,128.36,MISCELLANEOUS AND SPECIALTY RETAIL STORES,2023-24Q3_PC0368
Sandwell Metropolitan Borough Council,https://www.sandwell.gov.uk/performance-spending/government-procurement-cards,16-Oct-2023,Total Borough Economy,AMZNMKTPLACE,Total Adult Social Care,25.88,MISCELLANEOUS AND SPECIALTY RETAIL STORES,2023-24Q3_PC0369
Sandwell Metropolitan Borough Council,https://www.sandwell.gov.uk/performance-spending/government-procurement-cards,16-Oct-2023,Total Borough Economy,AMZNMKTPLACE,Total Adult Social Care,16.47,MISCELLANEOUS AND SPECIALTY RETAIL STORES,2023-24Q3_PC0370
Sandwell Metropolitan Borough Council,https://www.sandwell.gov.uk/performance-spending/government-procurement-cards,16-Oct-2023,Assistant Chief Executive,AMZNMktplace,Neighbourhoods,12.4,MISCELLANEOUS AND SPECIALTY RETAIL STORES,2023-24Q3_PC0371
Sandwell Metropolitan Borough Council,https://www.sandwell.gov.uk/performance-spending/government-procurement-cards,16-Oct-2023,Assistant Chief Executive,AMZNMktplace,Neighbourhoods,46.78,MISCELLANEOUS AND SPECIALTY RETAIL STORES,2023-24Q3_PC0372
Sandwell Metropolitan Borough Council,https://www.sandwell.gov.uk/performance-spending/government-procurement-cards,17-Oct-2023,Total Borough Economy,TESCO STORES 2335,Total Adult Social Care,13.48,"GROCERY STORES, SUPERMARKETS",2023-24Q3_PC0373
Sandwell Metropolitan Borough Council,https://www.sandwell.gov.uk/performance-spending/government-procurement-cards,17-Oct-2023,Total Borough Economy,SAINSBURYS S/MKTS,Total Adult Social Care,7.55,"GROCERY STORES, SUPERMARKETS",2023-24Q3_PC0374
Sandwell Metropolitan Borough Council,https://www.sandwell.gov.uk/performance-spending/government-procurement-cards,17-Oct-2023,Individual School Budgets With Inclusion,DRAWINGANDTALKING,Individual School Budgets With Inclusion,358.8,SCHOOLS & EDUCATIONAL SVC-NOT ELSEWHERE CLASSIFIED,2023-24Q3_PC0375
Sandwell Metropolitan Borough Council,https://www.sandwell.gov.uk/performance-spending/government-procurement-cards,17-Oct-2023,Total ASCHWB,S STAFFS WATER PBN,Total Adult Social Care,63.5,"UTLTS-ELCTRC, GAS, HEATING OIL, SANITARY, WATER",2023-24Q3_PC0376
Sandwell Metropolitan Borough Council,https://www.sandwell.gov.uk/performance-spending/government-procurement-cards,17-Oct-2023,Total ASCHWB,AMAZON  026-2317656-63,Total Adult Social Care,84.98,MISCELLANEOUS GENERAL MERCHANDISE,2023-24Q3_PC0377
Sandwell Metropolitan Borough Council,https://www.sandwell.gov.uk/performance-spending/government-procurement-cards,17-Oct-2023,Total Borough Economy,WM MORRISONS STORE,Total Adult Social Care,15.9,"GROCERY STORES, SUPERMARKETS",2023-24Q3_PC0378
Sandwell Metropolitan Borough Council,https://www.sandwell.gov.uk/performance-spending/government-procurement-cards,17-Oct-2023,Regeneration & Growth,AMZNMKTPLACE,Regeneration And The Economy,107.96,MISCELLANEOUS AND SPECIALTY RETAIL STORES,2023-24Q3_PC0379
Sandwell Metropolitan Borough Council,https://www.sandwell.gov.uk/performance-spending/government-procurement-cards,17-Oct-2023,Individual School Budgets With Inclusion,ASDA GROCERIES ONLINE,Individual School Budgets With Inclusion,8.35,"GROCERY STORES, SUPERMARKETS",2023-24Q3_PC0380
Sandwell Metropolitan Borough Council,https://www.sandwell.gov.uk/performance-spending/government-procurement-cards,17-Oct-2023,Individual School Budgets With Inclusion,ASDA GROCERIES ONLINE,Individual School Budgets With Inclusion,54.52,"GROCERY STORES, SUPERMARKETS",2023-24Q3_PC0381
Sandwell Metropolitan Borough Council,https://www.sandwell.gov.uk/performance-spending/government-procurement-cards,17-Oct-2023,Childrens Services,TESCO STORES 6197,Childrens Services,68.45,"GROCERY STORES, SUPERMARKETS",2023-24Q3_PC0382
Sandwell Metropolitan Borough Council,https://www.sandwell.gov.uk/performance-spending/government-procurement-cards,17-Oct-2023,Childrens Services,NISBETS LTD,Childrens Services,214.28,DIRECT MARKETING-CATALOG MERCHANTS,2023-24Q3_PC0383
Sandwell Metropolitan Borough Council,https://www.sandwell.gov.uk/performance-spending/government-procurement-cards,17-Oct-2023,Childrens Services,TESCO STORES 5194,Childrens Services,27.76,"GROCERY STORES, SUPERMARKETS",2023-24Q3_PC0384
Sandwell Metropolitan Borough Council,https://www.sandwell.gov.uk/performance-spending/government-procurement-cards,17-Oct-2023,Total ASCHWB,EGGLESS BAKERY,Total Adult Social Care,84,BAKERIES,2023-24Q3_PC0385
Sandwell Metropolitan Borough Council,https://www.sandwell.gov.uk/performance-spending/government-procurement-cards,17-Oct-2023,Housing & Assets Total,STATION HOTEL,Corporate Management,1000,"LODGING-HOTELS,MOTELS,RESORTS-NOT CLASSIFIED",2023-24Q3_PC0386
Sandwell Metropolitan Borough Council,https://www.sandwell.gov.uk/performance-spending/government-procurement-cards,17-Oct-2023,Housing & Assets Total,STATION HOTEL,Corporate Management,650,"LODGING-HOTELS,MOTELS,RESORTS-NOT CLASSIFIED",2023-24Q3_PC0387
Sandwell Metropolitan Borough Council,https://www.sandwell.gov.uk/performance-spending/government-procurement-cards,17-Oct-2023,Childrens Services,TESCO STORES 2770,Childrens Services,-5.06,"GROCERY STORES, SUPERMARKETS",2023-24Q3_PC0388
Sandwell Metropolitan Borough Council,https://www.sandwell.gov.uk/performance-spending/government-procurement-cards,17-Oct-2023,Childrens Services,TESCO STORES 2770,Childrens Services,72.25,"GROCERY STORES, SUPERMARKETS",2023-24Q3_PC0389
Sandwell Metropolitan Borough Council,https://www.sandwell.gov.uk/performance-spending/government-procurement-cards,17-Oct-2023,Childrens Services,Hermes Parcelnet Ltd T,Childrens Services,5.96,"FREIGHT CARRIER,TRUCKING-LCL/LNG DIST, MVG/STORAGE",2023-24Q3_PC0390
Sandwell Metropolitan Borough Council,https://www.sandwell.gov.uk/performance-spending/government-procurement-cards,17-Oct-2023,Total Housing Revenue Account,CAPITA GAS,Total Housing Revenue Account,13.2,"ORGANIZATIONS, MEMBERSHIP-NOT ELSEWHERE CLASSIFIED",2023-24Q3_PC0391
Sandwell Metropolitan Borough Council,https://www.sandwell.gov.uk/performance-spending/government-procurement-cards,17-Oct-2023,Childrens Services,AMZNMktplace,Childrens Services,-63.57,MISCELLANEOUS AND SPECIALTY RETAIL STORES,2023-24Q3_PC0392
Sandwell Metropolitan Borough Council,https://www.sandwell.gov.uk/performance-spending/government-procurement-cards,17-Oct-2023,Childrens Services,AMZNMKTPLACE,Childrens Services,-20.97,MISCELLANEOUS AND SPECIALTY RETAIL STORES,2023-24Q3_PC0393
Sandwell Metropolitan Borough Council,https://www.sandwell.gov.uk/performance-spending/government-procurement-cards,17-Oct-2023,Total Borough Economy,TESCO STORES 2335,Total Adult Social Care,57.6,"GROCERY STORES, SUPERMARKETS",2023-24Q3_PC0394
Sandwell Metropolitan Borough Council,https://www.sandwell.gov.uk/performance-spending/government-procurement-cards,17-Oct-2023,Total Housing Revenue Account,AMZNMKTPLACE,Total Housing Revenue Account,28.98,MISCELLANEOUS AND SPECIALTY RETAIL STORES,2023-24Q3_PC0395
Sandwell Metropolitan Borough Council,https://www.sandwell.gov.uk/performance-spending/government-procurement-cards,17-Oct-2023,Regeneration & Growth,London Northwestern Ra,Regeneration And The Economy,13.1,PASSENGER RAILWAYS,2023-24Q3_PC0396
Sandwell Metropolitan Borough Council,https://www.sandwell.gov.uk/performance-spending/government-procurement-cards,17-Oct-2023,Regeneration & Growth,London North Western R,Regeneration And The Economy,13.1,"THEATRICAL PRODUCERS(EXCL MOTION PIX),TICKET AGNCY",2023-24Q3_PC0397
Sandwell Metropolitan Borough Council,https://www.sandwell.gov.uk/performance-spending/government-procurement-cards,17-Oct-2023,Total Borough Economy,Wm Morrisons Store Pic,Total Adult Social Care,56.04,"GROCERY STORES, SUPERMARKETS",2023-24Q3_PC0398
Sandwell Metropolitan Borough Council,https://www.sandwell.gov.uk/performance-spending/government-procurement-cards,18-Oct-2023,FINANCE (Inc SIU),ROYAL MAIL GROUP LTD,Assistant Chief Executive (Excl SIU),12.98,POSTAL SERVICES-GOVERNMENT ONLY,2023-24Q3_PC0399
Sandwell Metropolitan Borough Council,https://www.sandwell.gov.uk/performance-spending/government-procurement-cards,18-Oct-2023,Total Borough Economy,APPOINTEDD,Total Adult Social Care,68,COMPUTER SOFTWARE STORES,2023-24Q3_PC0400
Sandwell Metropolitan Borough Council,https://www.sandwell.gov.uk/performance-spending/government-procurement-cards,18-Oct-2023,Total Borough Economy,WWW.OFFICETEAMCONNECT.,Total Adult Social Care,142.63,STATIONERY/OFFICE SUPPLIES/PRINTING & WRITING PAP.,2023-24Q3_PC0401
Sandwell Metropolitan Borough Council,https://www.sandwell.gov.uk/performance-spending/government-procurement-cards,18-Oct-2023,Childrens Services,Amazon.co.uk H805C5KI4,Childrens Services,189.52,DIRECT MARKETING-OTHER DIRECT MARKETERS/NOT ELSEW.,2023-24Q3_PC0402
Sandwell Metropolitan Borough Council,https://www.sandwell.gov.uk/performance-spending/government-procurement-cards,18-Oct-2023,Total Borough Economy,AMZNMktplace,Total Adult Social Care,48.99,MISCELLANEOUS AND SPECIALTY RETAIL STORES,2023-24Q3_PC0403
Sandwell Metropolitan Borough Council,https://www.sandwell.gov.uk/performance-spending/government-procurement-cards,18-Oct-2023,Assistant Chief Executive,AMZNMktplace,Assistant Chief Executive (Excl SIU),50.82,MISCELLANEOUS AND SPECIALTY RETAIL STORES,2023-24Q3_PC0404
Sandwell Metropolitan Borough Council,https://www.sandwell.gov.uk/performance-spending/government-procurement-cards,18-Oct-2023,Assistant Chief Executive,AMZNMktplace,Assistant Chief Executive (Excl SIU),47.98,MISCELLANEOUS AND SPECIALTY RETAIL STORES,2023-24Q3_PC0405
Sandwell Metropolitan Borough Council,https://www.sandwell.gov.uk/performance-spending/government-procurement-cards,18-Oct-2023,Total ASCHWB,AMZNMktplace,Total Adult Social Care,39.84,MISCELLANEOUS AND SPECIALTY RETAIL STORES,2023-24Q3_PC0406
Sandwell Metropolitan Borough Council,https://www.sandwell.gov.uk/performance-spending/government-procurement-cards,18-Oct-2023,Total ASCHWB,AMZNMktplace,Total Adult Social Care,175.93,MISCELLANEOUS AND SPECIALTY RETAIL STORES,2023-24Q3_PC0407
Sandwell Metropolitan Borough Council,https://www.sandwell.gov.uk/performance-spending/government-procurement-cards,18-Oct-2023,Law & Governance,MOJ OSPT ECOM,Assistant Chief Executive (Excl SIU),40,GOVERNMENT SERVICES-NOT ELSEWHERE CLASSIFIED,2023-24Q3_PC0408
Sandwell Metropolitan Borough Council,https://www.sandwell.gov.uk/performance-spending/government-procurement-cards,18-Oct-2023,Law & Governance,MOJ OSPT ECOM,Assistant Chief Executive (Excl SIU),40,GOVERNMENT SERVICES-NOT ELSEWHERE CLASSIFIED,2023-24Q3_PC0409
Sandwell Metropolitan Borough Council,https://www.sandwell.gov.uk/performance-spending/government-procurement-cards,18-Oct-2023,Law & Governance,MOJ OSPT ECOM,Assistant Chief Executive (Excl SIU),40,GOVERNMENT SERVICES-NOT ELSEWHERE CLASSIFIED,2023-24Q3_PC0410
Sandwell Metropolitan Borough Council,https://www.sandwell.gov.uk/performance-spending/government-procurement-cards,18-Oct-2023,Law & Governance,MOJ OSPT ECOM,Assistant Chief Executive (Excl SIU),40,GOVERNMENT SERVICES-NOT ELSEWHERE CLASSIFIED,2023-24Q3_PC0411
Sandwell Metropolitan Borough Council,https://www.sandwell.gov.uk/performance-spending/government-procurement-cards,18-Oct-2023,Law & Governance,MOJ OSPT ECOM,Assistant Chief Executive (Excl SIU),40,GOVERNMENT SERVICES-NOT ELSEWHERE CLASSIFIED,2023-24Q3_PC0412
Sandwell Metropolitan Borough Council,https://www.sandwell.gov.uk/performance-spending/government-procurement-cards,18-Oct-2023,Law & Governance,MOJ OSPT ECOM,Assistant Chief Executive (Excl SIU),40,GOVERNMENT SERVICES-NOT ELSEWHERE CLASSIFIED,2023-24Q3_PC0413
Sandwell Metropolitan Borough Council,https://www.sandwell.gov.uk/performance-spending/government-procurement-cards,18-Oct-2023,Law & Governance,MOJ OSPT ECOM,Assistant Chief Executive (Excl SIU),40,GOVERNMENT SERVICES-NOT ELSEWHERE CLASSIFIED,2023-24Q3_PC0414
Sandwell Metropolitan Borough Council,https://www.sandwell.gov.uk/performance-spending/government-procurement-cards,18-Oct-2023,Childrens Services,WWW.SCREWFIX.COM,Childrens Services,299.9,"BUILDING MATERIALS, LUMBER STORES",2023-24Q3_PC0415
Sandwell Metropolitan Borough Council,https://www.sandwell.gov.uk/performance-spending/government-procurement-cards,18-Oct-2023,Childrens Services,PRONTO DIRECT,Childrens Services,108.24,MISCELLANEOUS AND SPECIALTY RETAIL STORES,2023-24Q3_PC0416
Sandwell Metropolitan Borough Council,https://www.sandwell.gov.uk/performance-spending/government-procurement-cards,18-Oct-2023,Childrens Services,Mitre Linen,Childrens Services,41.78,"COMMERCIAL EQUIPMENT, NOT ELSEWHERE CLASSIFIED",2023-24Q3_PC0417
Sandwell Metropolitan Borough Council,https://www.sandwell.gov.uk/performance-spending/government-procurement-cards,18-Oct-2023,Individual School Budgets With Inclusion,ASDA GROCERIES ONLINE,Individual School Budgets With Inclusion,-0.8,"GROCERY STORES, SUPERMARKETS",2023-24Q3_PC0418
Sandwell Metropolitan Borough Council,https://www.sandwell.gov.uk/performance-spending/government-procurement-cards,18-Oct-2023,Individual School Budgets With Inclusion,ASDA GROCERIES ONLINE,Individual School Budgets With Inclusion,69.8,"GROCERY STORES, SUPERMARKETS",2023-24Q3_PC0419
Sandwell Metropolitan Borough Council,https://www.sandwell.gov.uk/performance-spending/government-procurement-cards,18-Oct-2023,Law & Governance,TIMPSON LTD,Assistant Chief Executive (Excl SIU),52,MISCELLANEOUS AND SPECIALTY RETAIL STORES,2023-24Q3_PC0420
Sandwell Metropolitan Borough Council,https://www.sandwell.gov.uk/performance-spending/government-procurement-cards,18-Oct-2023,Law & Governance,SAINSBURYS,Assistant Chief Executive (Excl SIU),22.9,"GROCERY STORES, SUPERMARKETS",2023-24Q3_PC0421
Sandwell Metropolitan Borough Council,https://www.sandwell.gov.uk/performance-spending/government-procurement-cards,18-Oct-2023,Childrens Services,ASDA GROCERIES ONLINE,Childrens Services,-10.37,"GROCERY STORES, SUPERMARKETS",2023-24Q3_PC0422
Sandwell Metropolitan Borough Council,https://www.sandwell.gov.uk/performance-spending/government-procurement-cards,18-Oct-2023,Childrens Services,ASDA GROCERIES ONLINE,Childrens Services,108.86,"GROCERY STORES, SUPERMARKETS",2023-24Q3_PC0423
Sandwell Metropolitan Borough Council,https://www.sandwell.gov.uk/performance-spending/government-procurement-cards,18-Oct-2023,Childrens Services,ASDA GROCERIES ONLINE,Childrens Services,6,"GROCERY STORES, SUPERMARKETS",2023-24Q3_PC0424
Sandwell Metropolitan Borough Council,https://www.sandwell.gov.uk/performance-spending/government-procurement-cards,18-Oct-2023,Total Borough Economy,F S DIRECT,Total Adult Social Care,64.74,"CLOTHING RENTAL-COSTUMES,UNIFORMS,FORMAL WEAR",2023-24Q3_PC0425
Sandwell Metropolitan Borough Council,https://www.sandwell.gov.uk/performance-spending/government-procurement-cards,18-Oct-2023,Total Borough Economy,WWW.KLIPSPRINGER.COM,Total Adult Social Care,425.66,"COMMERCIAL EQUIPMENT, NOT ELSEWHERE CLASSIFIED",2023-24Q3_PC0426
Sandwell Metropolitan Borough Council,https://www.sandwell.gov.uk/performance-spending/government-procurement-cards,18-Oct-2023,Total Borough Economy,WM MORRISONS STORE,Total Adult Social Care,25.59,"GROCERY STORES, SUPERMARKETS",2023-24Q3_PC0427
Sandwell Metropolitan Borough Council,https://www.sandwell.gov.uk/performance-spending/government-procurement-cards,18-Oct-2023,Total Borough Economy,WM MORRISONS STORE,Total Adult Social Care,9.9,"GROCERY STORES, SUPERMARKETS",2023-24Q3_PC0428
Sandwell Metropolitan Borough Council,https://www.sandwell.gov.uk/performance-spending/government-procurement-cards,18-Oct-2023,Total Borough Economy,AMZNMKTPLACE,Total Adult Social Care,51.42,MISCELLANEOUS AND SPECIALTY RETAIL STORES,2023-24Q3_PC0429
Sandwell Metropolitan Borough Council,https://www.sandwell.gov.uk/performance-spending/government-procurement-cards,18-Oct-2023,Individual School Budgets With Inclusion,WWW.OFFICETEAMCONNECT.,Individual School Budgets With Inclusion,115.7,STATIONERY/OFFICE SUPPLIES/PRINTING & WRITING PAP.,2023-24Q3_PC0430
Sandwell Metropolitan Borough Council,https://www.sandwell.gov.uk/performance-spending/government-procurement-cards,18-Oct-2023,Individual School Budgets With Inclusion,WWW.OFFICETEAMCONNECT.,Individual School Budgets With Inclusion,310.5,STATIONERY/OFFICE SUPPLIES/PRINTING & WRITING PAP.,2023-24Q3_PC0431
Sandwell Metropolitan Borough Council,https://www.sandwell.gov.uk/performance-spending/government-procurement-cards,18-Oct-2023,Individual School Budgets With Inclusion,ASDA STORES,Individual School Budgets With Inclusion,12.9,"GROCERY STORES, SUPERMARKETS",2023-24Q3_PC0432
Sandwell Metropolitan Borough Council,https://www.sandwell.gov.uk/performance-spending/government-procurement-cards,18-Oct-2023,Individual School Budgets With Inclusion,POUNDLAND LTD - 1729,Individual School Budgets With Inclusion,16,DISCOUNT STORES,2023-24Q3_PC0433
Sandwell Metropolitan Borough Council,https://www.sandwell.gov.uk/performance-spending/government-procurement-cards,18-Oct-2023,Individual School Budgets With Inclusion,ACE EMBROIDERY LTD,Individual School Budgets With Inclusion,214.8,"CONTRACTORS,SPECIAL TRADE-NOT ELSEWHERE CLASSIFIED",2023-24Q3_PC0434
Sandwell Metropolitan Borough Council,https://www.sandwell.gov.uk/performance-spending/government-procurement-cards,18-Oct-2023,Law & Governance,LUL TICKET MACHINE,Assistant Chief Executive (Excl SIU),26.8,PASSENGER RAILWAYS,2023-24Q3_PC0435
Sandwell Metropolitan Borough Council,https://www.sandwell.gov.uk/performance-spending/government-procurement-cards,18-Oct-2023,Total Borough Economy,PROTEC DIRECT,Total Adult Social Care,17.65,INDUSTRIAL SUPPLIES NOT ELSEWHERE CLASSIFIED,2023-24Q3_PC0436
Sandwell Metropolitan Borough Council,https://www.sandwell.gov.uk/performance-spending/government-procurement-cards,18-Oct-2023,Childrens Services,ALDI STORES LTD,Childrens Services,48.36,"GROCERY STORES, SUPERMARKETS",2023-24Q3_PC0437
Sandwell Metropolitan Borough Council,https://www.sandwell.gov.uk/performance-spending/government-procurement-cards,18-Oct-2023,Total ASCHWB,SMARTY CO UK,Total Adult Social Care,20,TELECOM INCL PREPAID/RECURRING PHONE SVCS,2023-24Q3_PC0438
Sandwell Metropolitan Borough Council,https://www.sandwell.gov.uk/performance-spending/government-procurement-cards,18-Oct-2023,Childrens Services,Hermes Parcelnet Ltd T,Childrens Services,4.44,"FREIGHT CARRIER,TRUCKING-LCL/LNG DIST, MVG/STORAGE",2023-24Q3_PC0439
Sandwell Metropolitan Borough Council,https://www.sandwell.gov.uk/performance-spending/government-procurement-cards,18-Oct-2023,Total Borough Economy,Trainline,Total Adult Social Care,215.3,PASSENGER RAILWAYS,2023-24Q3_PC0440
Sandwell Metropolitan Borough Council,https://www.sandwell.gov.uk/performance-spending/government-procurement-cards,18-Oct-2023,Total Borough Economy,AMZNMKTPLACE,Total Adult Social Care,19.96,MISCELLANEOUS AND SPECIALTY RETAIL STORES,2023-24Q3_PC0441
Sandwell Metropolitan Borough Council,https://www.sandwell.gov.uk/performance-spending/government-procurement-cards,18-Oct-2023,Total Borough Economy,AMZNMktplace,Total Adult Social Care,15.97,MISCELLANEOUS AND SPECIALTY RETAIL STORES,2023-24Q3_PC0442
Sandwell Metropolitan Borough Council,https://www.sandwell.gov.uk/performance-spending/government-procurement-cards,18-Oct-2023,Total Housing Revenue Account,PEOPLECERT,Total Housing Revenue Account,95,SCHOOLS & EDUCATIONAL SVC-NOT ELSEWHERE CLASSIFIED,2023-24Q3_PC0443
Sandwell Metropolitan Borough Council,https://www.sandwell.gov.uk/performance-spending/government-procurement-cards,18-Oct-2023,FINANCE (Inc SIU),AMZNMKTPLACE,Assistant Chief Executive (Excl SIU),247.99,MISCELLANEOUS AND SPECIALTY RETAIL STORES,2023-24Q3_PC0444
Sandwell Metropolitan Borough Council,https://www.sandwell.gov.uk/performance-spending/government-procurement-cards,18-Oct-2023,Childrens Services,WWW.CEF.CO.UK,Childrens Services,77.94,"BUILDING MATERIALS, LUMBER STORES",2023-24Q3_PC0445
Sandwell Metropolitan Borough Council,https://www.sandwell.gov.uk/performance-spending/government-procurement-cards,18-Oct-2023,Total Housing Revenue Account,MOJ OSPT ECOM,Total Housing Revenue Account,40,GOVERNMENT SERVICES-NOT ELSEWHERE CLASSIFIED,2023-24Q3_PC0446
Sandwell Metropolitan Borough Council,https://www.sandwell.gov.uk/performance-spending/government-procurement-cards,18-Oct-2023,Total Housing Revenue Account,MOJ OSPT ECOM,Total Housing Revenue Account,40,GOVERNMENT SERVICES-NOT ELSEWHERE CLASSIFIED,2023-24Q3_PC0447
Sandwell Metropolitan Borough Council,https://www.sandwell.gov.uk/performance-spending/government-procurement-cards,18-Oct-2023,Total Housing Revenue Account,MOJ OSPT ECOM,Total Housing Revenue Account,40,GOVERNMENT SERVICES-NOT ELSEWHERE CLASSIFIED,2023-24Q3_PC0448
Sandwell Metropolitan Borough Council,https://www.sandwell.gov.uk/performance-spending/government-procurement-cards,18-Oct-2023,Total Borough Economy,TOOLSTATION UK,Total Adult Social Care,40.45,HARDWARE STORES,2023-24Q3_PC0449
Sandwell Metropolitan Borough Council,https://www.sandwell.gov.uk/performance-spending/government-procurement-cards,18-Oct-2023,Childrens Services,AMZNMKTPLACE,Childrens Services,56.85,MISCELLANEOUS AND SPECIALTY RETAIL STORES,2023-24Q3_PC0450
Sandwell Metropolitan Borough Council,https://www.sandwell.gov.uk/performance-spending/government-procurement-cards,18-Oct-2023,Total Borough Economy,Amazon.co.uk H861I9QU4,Total Adult Social Care,98,DIRECT MARKETING-OTHER DIRECT MARKETERS/NOT ELSEW.,2023-24Q3_PC0451
Sandwell Metropolitan Borough Council,https://www.sandwell.gov.uk/performance-spending/government-procurement-cards,18-Oct-2023,Total Borough Economy,Amazon.co.uk H83ND3KR4,Total Adult Social Care,22.19,DIRECT MARKETING-OTHER DIRECT MARKETERS/NOT ELSEW.,2023-24Q3_PC0452
Sandwell Metropolitan Borough Council,https://www.sandwell.gov.uk/performance-spending/government-procurement-cards,18-Oct-2023,Total Housing Revenue Account,AMZNMktplace,Total Housing Revenue Account,26.99,MISCELLANEOUS AND SPECIALTY RETAIL STORES,2023-24Q3_PC0453
Sandwell Metropolitan Borough Council,https://www.sandwell.gov.uk/performance-spending/government-procurement-cards,18-Oct-2023,Childrens Services,ASDA GROCERIES ONLINE,Childrens Services,51.13,"GROCERY STORES, SUPERMARKETS",2023-24Q3_PC0454
Sandwell Metropolitan Borough Council,https://www.sandwell.gov.uk/performance-spending/government-procurement-cards,18-Oct-2023,Total Borough Economy,Amazon.co.uk H835P7KN4,Total Adult Social Care,2.99,DIRECT MARKETING-OTHER DIRECT MARKETERS/NOT ELSEW.,2023-24Q3_PC0455
Sandwell Metropolitan Borough Council,https://www.sandwell.gov.uk/performance-spending/government-procurement-cards,18-Oct-2023,Total ASCHWB,CENTRAL ENG COOP,Total Adult Social Care,8.05,"GROCERY STORES, SUPERMARKETS",2023-24Q3_PC0456
Sandwell Metropolitan Borough Council,https://www.sandwell.gov.uk/performance-spending/government-procurement-cards,19-Oct-2023,FINANCE (Inc SIU),AMZNMktplace,Assistant Chief Executive (Excl SIU),19.99,MISCELLANEOUS AND SPECIALTY RETAIL STORES,2023-24Q3_PC0457
Sandwell Metropolitan Borough Council,https://www.sandwell.gov.uk/performance-spending/government-procurement-cards,19-Oct-2023,Total Borough Economy,SAINSBURYS S/MKTS,Total Adult Social Care,11.95,"GROCERY STORES, SUPERMARKETS",2023-24Q3_PC0458
Sandwell Metropolitan Borough Council,https://www.sandwell.gov.uk/performance-spending/government-procurement-cards,19-Oct-2023,Total Borough Economy,B&M 419 - HS REEDSWOOD,Total Adult Social Care,5.98,MISCELLANEOUS GENERAL MERCHANDISE,2023-24Q3_PC0459
Sandwell Metropolitan Borough Council,https://www.sandwell.gov.uk/performance-spending/government-procurement-cards,19-Oct-2023,Corporate Management,AMZNMktplace,Corporate Management,5.29,MISCELLANEOUS AND SPECIALTY RETAIL STORES,2023-24Q3_PC0460
Sandwell Metropolitan Borough Council,https://www.sandwell.gov.uk/performance-spending/government-procurement-cards,19-Oct-2023,Assistant Chief Executive,Amazon.co.uk H84SR1UE4,Assistant Chief Executive (Excl SIU),28.21,DIRECT MARKETING-OTHER DIRECT MARKETERS/NOT ELSEW.,2023-24Q3_PC0461
Sandwell Metropolitan Borough Council,https://www.sandwell.gov.uk/performance-spending/government-procurement-cards,19-Oct-2023,Total ASCHWB,BRITISH GAS ONLINE,Total Adult Social Care,140.3,"UTLTS-ELCTRC, GAS, HEATING OIL, SANITARY, WATER",2023-24Q3_PC0462
Sandwell Metropolitan Borough Council,https://www.sandwell.gov.uk/performance-spending/government-procurement-cards,19-Oct-2023,Childrens Services,AMZNMktplace,Childrens Services,18.98,MISCELLANEOUS AND SPECIALTY RETAIL STORES,2023-24Q3_PC0463
Sandwell Metropolitan Borough Council,https://www.sandwell.gov.uk/performance-spending/government-procurement-cards,19-Oct-2023,Regeneration & Growth,AMZNMktplace,Regeneration And The Economy,30.47,MISCELLANEOUS AND SPECIALTY RETAIL STORES,2023-24Q3_PC0464
Sandwell Metropolitan Borough Council,https://www.sandwell.gov.uk/performance-spending/government-procurement-cards,19-Oct-2023,Regeneration & Growth,AMZNMktplace,Regeneration And The Economy,25.49,MISCELLANEOUS AND SPECIALTY RETAIL STORES,2023-24Q3_PC0465
Sandwell Metropolitan Borough Council,https://www.sandwell.gov.uk/performance-spending/government-procurement-cards,19-Oct-2023,Individual School Budgets With Inclusion,B&Q LTD,Individual School Budgets With Inclusion,54,"BUILDING MATERIALS, LUMBER STORES",2023-24Q3_PC0466
Sandwell Metropolitan Borough Council,https://www.sandwell.gov.uk/performance-spending/government-procurement-cards,19-Oct-2023,Childrens Services,ALDI 103 772,Childrens Services,28.38,"GROCERY STORES, SUPERMARKETS",2023-24Q3_PC0467
Sandwell Metropolitan Borough Council,https://www.sandwell.gov.uk/performance-spending/government-procurement-cards,19-Oct-2023,Childrens Services,AMZNMKTPLACE,Childrens Services,128.33,MISCELLANEOUS AND SPECIALTY RETAIL STORES,2023-24Q3_PC0468
Sandwell Metropolitan Borough Council,https://www.sandwell.gov.uk/performance-spending/government-procurement-cards,19-Oct-2023,Childrens Services,BEEBYS BUBBLES,Childrens Services,180,"CLEANING, GARMENT, AND LAUNDRY SERVICES",2023-24Q3_PC0469
Sandwell Metropolitan Borough Council,https://www.sandwell.gov.uk/performance-spending/government-procurement-cards,19-Oct-2023,Childrens Services,Amazon.co.uk H83UU1I04,Childrens Services,50.33,DIRECT MARKETING-OTHER DIRECT MARKETERS/NOT ELSEW.,2023-24Q3_PC0470
Sandwell Metropolitan Borough Council,https://www.sandwell.gov.uk/performance-spending/government-procurement-cards,19-Oct-2023,Childrens Services,AMZNMktplace,Childrens Services,7.99,MISCELLANEOUS AND SPECIALTY RETAIL STORES,2023-24Q3_PC0471
Sandwell Metropolitan Borough Council,https://www.sandwell.gov.uk/performance-spending/government-procurement-cards,19-Oct-2023,Childrens Services,AMZNMktplace,Childrens Services,24.99,MISCELLANEOUS AND SPECIALTY RETAIL STORES,2023-24Q3_PC0472
Sandwell Metropolitan Borough Council,https://www.sandwell.gov.uk/performance-spending/government-procurement-cards,19-Oct-2023,Childrens Services,AMZNMktplace,Childrens Services,38.87,MISCELLANEOUS AND SPECIALTY RETAIL STORES,2023-24Q3_PC0473
Sandwell Metropolitan Borough Council,https://www.sandwell.gov.uk/performance-spending/government-procurement-cards,19-Oct-2023,Housing & Assets Total,AMZNMktplace,Corporate Management,13.99,MISCELLANEOUS AND SPECIALTY RETAIL STORES,2023-24Q3_PC0474
Sandwell Metropolitan Borough Council,https://www.sandwell.gov.uk/performance-spending/government-procurement-cards,19-Oct-2023,Childrens Services,AMZNMktplace,Childrens Services,9.95,MISCELLANEOUS AND SPECIALTY RETAIL STORES,2023-24Q3_PC0475
Sandwell Metropolitan Borough Council,https://www.sandwell.gov.uk/performance-spending/government-procurement-cards,19-Oct-2023,Childrens Services,WWW.SCREWFIX.COM,Childrens Services,179.94,"BUILDING MATERIALS, LUMBER STORES",2023-24Q3_PC0476
Sandwell Metropolitan Borough Council,https://www.sandwell.gov.uk/performance-spending/government-procurement-cards,19-Oct-2023,Corporate Management,AMZNMktplace,Corporate Management,7.99,MISCELLANEOUS AND SPECIALTY RETAIL STORES,2023-24Q3_PC0477
Sandwell Metropolitan Borough Council,https://www.sandwell.gov.uk/performance-spending/government-procurement-cards,19-Oct-2023,Law & Governance,CURRYS BUSINESS,Assistant Chief Executive (Excl SIU),865.44,COMPUTER SOFTWARE STORES,2023-24Q3_PC0478
Sandwell Metropolitan Borough Council,https://www.sandwell.gov.uk/performance-spending/government-procurement-cards,19-Oct-2023,Regeneration & Growth,VIKING OFFICE UK LIMIT,Regeneration And The Economy,261.54,STATIONERY/OFFICE SUPPLIES/PRINTING & WRITING PAP.,2023-24Q3_PC0479
Sandwell Metropolitan Borough Council,https://www.sandwell.gov.uk/performance-spending/government-procurement-cards,19-Oct-2023,Law & Governance,IKEA LTD 142 BIRMINGHA,Assistant Chief Executive (Excl SIU),178.5,"EQUIP, FURNITURE, HOME FURNSHNGS STRS (EXCPT APPL)",2023-24Q3_PC0480
Sandwell Metropolitan Borough Council,https://www.sandwell.gov.uk/performance-spending/government-procurement-cards,19-Oct-2023,Childrens Services,TESCO STORES 2770,Childrens Services,53.01,"GROCERY STORES, SUPERMARKETS",2023-24Q3_PC0481
Sandwell Metropolitan Borough Council,https://www.sandwell.gov.uk/performance-spending/government-procurement-cards,19-Oct-2023,Childrens Services,THE HOME FUSION CO,Childrens Services,120.85,"GAME, TOY, AND HOBBY SHOPS",2023-24Q3_PC0482
Sandwell Metropolitan Borough Council,https://www.sandwell.gov.uk/performance-spending/government-procurement-cards,19-Oct-2023,Childrens Services,POUNDLAND.CO.UK,Childrens Services,118.25,DEPARTMENT STORES,2023-24Q3_PC0483
Sandwell Metropolitan Borough Council,https://www.sandwell.gov.uk/performance-spending/government-procurement-cards,19-Oct-2023,Childrens Services,AMZNMktplace,Childrens Services,235.11,MISCELLANEOUS AND SPECIALTY RETAIL STORES,2023-24Q3_PC0484
Sandwell Metropolitan Borough Council,https://www.sandwell.gov.uk/performance-spending/government-procurement-cards,19-Oct-2023,Law & Governance,CARTRIDGEPEOPLE.COM,Assistant Chief Executive (Excl SIU),176.91,STATIONERY/OFFICE SUPPLIES/PRINTING & WRITING PAP.,2023-24Q3_PC0485
Sandwell Metropolitan Borough Council,https://www.sandwell.gov.uk/performance-spending/government-procurement-cards,19-Oct-2023,Total Housing Revenue Account,TRAVIS PERKINS TRADING,Total Housing Revenue Account,72.44,"BUILDING MATERIALS, LUMBER STORES",2023-24Q3_PC0486
Sandwell Metropolitan Borough Council,https://www.sandwell.gov.uk/performance-spending/government-procurement-cards,19-Oct-2023,Total Borough Economy,WWW.OFFICETEAMCONNECT.,Total Adult Social Care,81.9,STATIONERY/OFFICE SUPPLIES/PRINTING & WRITING PAP.,2023-24Q3_PC0487
Sandwell Metropolitan Borough Council,https://www.sandwell.gov.uk/performance-spending/government-procurement-cards,19-Oct-2023,Regeneration & Growth,TRAVELODGE,Regeneration And The Economy,222.31,TRAVELODGE,2023-24Q3_PC0488
Sandwell Metropolitan Borough Council,https://www.sandwell.gov.uk/performance-spending/government-procurement-cards,19-Oct-2023,Total Housing Revenue Account,AMZNMKTPLACE,Total Housing Revenue Account,31.23,MISCELLANEOUS AND SPECIALTY RETAIL STORES,2023-24Q3_PC0489
Sandwell Metropolitan Borough Council,https://www.sandwell.gov.uk/performance-spending/government-procurement-cards,20-Oct-2023,Assistant Chief Executive,Trainline,Assistant Chief Executive (Excl SIU),6.72,PASSENGER RAILWAYS,2023-24Q3_PC0490
Sandwell Metropolitan Borough Council,https://www.sandwell.gov.uk/performance-spending/government-procurement-cards,20-Oct-2023,Total ASCHWB,AMZNMktplace,Total Adult Social Care,22.99,MISCELLANEOUS AND SPECIALTY RETAIL STORES,2023-24Q3_PC0491
Sandwell Metropolitan Borough Council,https://www.sandwell.gov.uk/performance-spending/government-procurement-cards,20-Oct-2023,Total ASCHWB,AMZNMKTPLACE,Total Adult Social Care,78.59,MISCELLANEOUS AND SPECIALTY RETAIL STORES,2023-24Q3_PC0492
Sandwell Metropolitan Borough Council,https://www.sandwell.gov.uk/performance-spending/government-procurement-cards,20-Oct-2023,Total ASCHWB,K AND M WHOLESALE SUPP,Total Adult Social Care,231.6,HARDWARE STORES,2023-24Q3_PC0493
Sandwell Metropolitan Borough Council,https://www.sandwell.gov.uk/performance-spending/government-procurement-cards,20-Oct-2023,Childrens Services,HIGH SPEED TRAINING,Childrens Services,31.2,SCHOOLS & EDUCATIONAL SVC-NOT ELSEWHERE CLASSIFIED,2023-24Q3_PC0494
Sandwell Metropolitan Borough Council,https://www.sandwell.gov.uk/performance-spending/government-procurement-cards,20-Oct-2023,Regeneration & Growth,AMZNMktplace,Regeneration And The Economy,44.98,MISCELLANEOUS AND SPECIALTY RETAIL STORES,2023-24Q3_PC0495
Sandwell Metropolitan Borough Council,https://www.sandwell.gov.uk/performance-spending/government-procurement-cards,20-Oct-2023,Individual School Budgets With Inclusion,Amazon.co.uk,Individual School Budgets With Inclusion,-62.89,DIRECT MARKETING-OTHER DIRECT MARKETERS/NOT ELSEW.,2023-24Q3_PC0496
Sandwell Metropolitan Borough Council,https://www.sandwell.gov.uk/performance-spending/government-procurement-cards,20-Oct-2023,Individual School Budgets With Inclusion,TESCO STORES 2335,Individual School Budgets With Inclusion,18.27,"GROCERY STORES, SUPERMARKETS",2023-24Q3_PC0497
Sandwell Metropolitan Borough Council,https://www.sandwell.gov.uk/performance-spending/government-procurement-cards,20-Oct-2023,Regeneration & Growth,AMZNMktplace,Regeneration And The Economy,20.62,MISCELLANEOUS AND SPECIALTY RETAIL STORES,2023-24Q3_PC0498
Sandwell Metropolitan Borough Council,https://www.sandwell.gov.uk/performance-spending/government-procurement-cards,20-Oct-2023,Total ASCHWB,AMZNMktplace,Total Adult Social Care,44.8,MISCELLANEOUS AND SPECIALTY RETAIL STORES,2023-24Q3_PC0499
Sandwell Metropolitan Borough Council,https://www.sandwell.gov.uk/performance-spending/government-procurement-cards,20-Oct-2023,Total ASCHWB,AMZNMKTPLACE,Total Adult Social Care,8.98,MISCELLANEOUS AND SPECIALTY RETAIL STORES,2023-24Q3_PC0500
Sandwell Metropolitan Borough Council,https://www.sandwell.gov.uk/performance-spending/government-procurement-cards,20-Oct-2023,Childrens Services,WM MORRISONS STORE,Childrens Services,13.5,"GROCERY STORES, SUPERMARKETS",2023-24Q3_PC0501
Sandwell Metropolitan Borough Council,https://www.sandwell.gov.uk/performance-spending/government-procurement-cards,20-Oct-2023,Total Borough Economy,Amazon.co.uk H85H23YH4,Total Adult Social Care,134.91,DIRECT MARKETING-OTHER DIRECT MARKETERS/NOT ELSEW.,2023-24Q3_PC0502
Sandwell Metropolitan Borough Council,https://www.sandwell.gov.uk/performance-spending/government-procurement-cards,20-Oct-2023,Childrens Services,AMZNMktplace,Childrens Services,-1.04,MISCELLANEOUS AND SPECIALTY RETAIL STORES,2023-24Q3_PC0503
Sandwell Metropolitan Borough Council,https://www.sandwell.gov.uk/performance-spending/government-procurement-cards,20-Oct-2023,Individual School Budgets With Inclusion,ASDA STORES,Individual School Budgets With Inclusion,10,"GROCERY STORES, SUPERMARKETS",2023-24Q3_PC0504
Sandwell Metropolitan Borough Council,https://www.sandwell.gov.uk/performance-spending/government-procurement-cards,20-Oct-2023,Housing & Assets Total,AMZNMktplace,Corporate Management,3.99,MISCELLANEOUS AND SPECIALTY RETAIL STORES,2023-24Q3_PC0505
Sandwell Metropolitan Borough Council,https://www.sandwell.gov.uk/performance-spending/government-procurement-cards,20-Oct-2023,Law & Governance,NATIONAL MEMORIAL ARBO,Assistant Chief Executive (Excl SIU),108,"ORGANIZATIONS, CHARITABLE AND SOCIAL SERVICES",2023-24Q3_PC0506
Sandwell Metropolitan Borough Council,https://www.sandwell.gov.uk/performance-spending/government-procurement-cards,20-Oct-2023,Total Borough Economy,AMZNMktplace,Total Adult Social Care,5.09,MISCELLANEOUS AND SPECIALTY RETAIL STORES,2023-24Q3_PC0507
Sandwell Metropolitan Borough Council,https://www.sandwell.gov.uk/performance-spending/government-procurement-cards,20-Oct-2023,Childrens Services,ALDI STORES LTD,Childrens Services,13.28,"GROCERY STORES, SUPERMARKETS",2023-24Q3_PC0508
Sandwell Metropolitan Borough Council,https://www.sandwell.gov.uk/performance-spending/government-procurement-cards,20-Oct-2023,Law & Governance,SAINSBURYS S/MKTS,Assistant Chief Executive (Excl SIU),6.7,"GROCERY STORES, SUPERMARKETS",2023-24Q3_PC0509
Sandwell Metropolitan Borough Council,https://www.sandwell.gov.uk/performance-spending/government-procurement-cards,20-Oct-2023,Total Public Health,SumUp   The Fish & Chi,Public Health,13,"GROCERY STORES, SUPERMARKETS",2023-24Q3_PC0510
Sandwell Metropolitan Borough Council,https://www.sandwell.gov.uk/performance-spending/government-procurement-cards,20-Oct-2023,Total Public Health,Just Eat,Public Health,124.77,FAST FOOD RESTAURANTS,2023-24Q3_PC0511
Sandwell Metropolitan Borough Council,https://www.sandwell.gov.uk/performance-spending/government-procurement-cards,20-Oct-2023,Total Borough Economy,Amazon Prime H853X8RT4,Total Adult Social Care,8.99,DIRECT MARKETING-CONTINUITY/SUBSCRIPTION MERCHANTS,2023-24Q3_PC0512
Sandwell Metropolitan Borough Council,https://www.sandwell.gov.uk/performance-spending/government-procurement-cards,20-Oct-2023,Total ASCHWB,AMZNMKTPLACE,Total Adult Social Care,135.78,MISCELLANEOUS AND SPECIALTY RETAIL STORES,2023-24Q3_PC0513
Sandwell Metropolitan Borough Council,https://www.sandwell.gov.uk/performance-spending/government-procurement-cards,20-Oct-2023,Total Housing Revenue Account,AMZNMktplace,Total Housing Revenue Account,37.98,MISCELLANEOUS AND SPECIALTY RETAIL STORES,2023-24Q3_PC0514
Sandwell Metropolitan Borough Council,https://www.sandwell.gov.uk/performance-spending/government-procurement-cards,20-Oct-2023,Total Housing Revenue Account,AMZNMktplace,Total Housing Revenue Account,24.97,MISCELLANEOUS AND SPECIALTY RETAIL STORES,2023-24Q3_PC0515
Sandwell Metropolitan Borough Council,https://www.sandwell.gov.uk/performance-spending/government-procurement-cards,20-Oct-2023,Total Borough Economy,AMZNMktplace,Total Adult Social Care,138.57,MISCELLANEOUS AND SPECIALTY RETAIL STORES,2023-24Q3_PC0516
Sandwell Metropolitan Borough Council,https://www.sandwell.gov.uk/performance-spending/government-procurement-cards,20-Oct-2023,Law & Governance,SP PARTY PACKS,Assistant Chief Executive (Excl SIU),7.79,MISCELLANEOUS AND SPECIALTY RETAIL STORES,2023-24Q3_PC0517
Sandwell Metropolitan Borough Council,https://www.sandwell.gov.uk/performance-spending/government-procurement-cards,20-Oct-2023,Law & Governance,AMZNMktplace,Assistant Chief Executive (Excl SIU),13.98,MISCELLANEOUS AND SPECIALTY RETAIL STORES,2023-24Q3_PC0518
Sandwell Metropolitan Borough Council,https://www.sandwell.gov.uk/performance-spending/government-procurement-cards,20-Oct-2023,Total Borough Economy,Amazon Prime H81F24RM4,Total Adult Social Care,8.99,DIRECT MARKETING-CONTINUITY/SUBSCRIPTION MERCHANTS,2023-24Q3_PC0519
Sandwell Metropolitan Borough Council,https://www.sandwell.gov.uk/performance-spending/government-procurement-cards,20-Oct-2023,Regeneration & Growth,AMZNMktplace,Regeneration And The Economy,59.49,MISCELLANEOUS AND SPECIALTY RETAIL STORES,2023-24Q3_PC0520
Sandwell Metropolitan Borough Council,https://www.sandwell.gov.uk/performance-spending/government-procurement-cards,20-Oct-2023,Total Housing Revenue Account,AMZNMktplace,Total Housing Revenue Account,124.81,MISCELLANEOUS AND SPECIALTY RETAIL STORES,2023-24Q3_PC0521
Sandwell Metropolitan Borough Council,https://www.sandwell.gov.uk/performance-spending/government-procurement-cards,20-Oct-2023,Assistant Chief Executive,AMZNMktplace,Neighbourhoods,6.99,MISCELLANEOUS AND SPECIALTY RETAIL STORES,2023-24Q3_PC0522
Sandwell Metropolitan Borough Council,https://www.sandwell.gov.uk/performance-spending/government-procurement-cards,20-Oct-2023,Childrens Services,Amazon.co.uk H826K1YH4,Childrens Services,19.95,DIRECT MARKETING-OTHER DIRECT MARKETERS/NOT ELSEW.,2023-24Q3_PC0523
Sandwell Metropolitan Borough Council,https://www.sandwell.gov.uk/performance-spending/government-procurement-cards,23-Oct-2023,Total Borough Economy,Canva  03945-23776902,Dead SeRCOP,10.99,"COMMERCIAL ART, GRAPHICS, PHOTOGRAPHY",2023-24Q3_PC0524
Sandwell Metropolitan Borough Council,https://www.sandwell.gov.uk/performance-spending/government-procurement-cards,23-Oct-2023,Total Borough Economy,HIRE STATION LTD,Total Adult Social Care,233.31,"EQUIPMENT RENTAL&LEASING SVS, FURNTURE/TOOL RENTAL",2023-24Q3_PC0525
Sandwell Metropolitan Borough Council,https://www.sandwell.gov.uk/performance-spending/government-procurement-cards,23-Oct-2023,Total Borough Economy,TOOLSTATION LTD,Total Adult Social Care,79.99,"BUILDING MATERIALS, LUMBER STORES",2023-24Q3_PC0526
Sandwell Metropolitan Borough Council,https://www.sandwell.gov.uk/performance-spending/government-procurement-cards,23-Oct-2023,Total Borough Economy,WWW.OFFICETEAMCONNECT.,Total Adult Social Care,51.9,STATIONERY/OFFICE SUPPLIES/PRINTING & WRITING PAP.,2023-24Q3_PC0527
Sandwell Metropolitan Borough Council,https://www.sandwell.gov.uk/performance-spending/government-procurement-cards,23-Oct-2023,Total ASCHWB,TVLICENSING.CO.UK,Total Adult Social Care,159,"CONSULTING, MANAGEMENT, AND PUBLIC RELATIONS SVCS",2023-24Q3_PC0528
Sandwell Metropolitan Borough Council,https://www.sandwell.gov.uk/performance-spending/government-procurement-cards,23-Oct-2023,Total ASCHWB,AMZNMktplace,Total Adult Social Care,83.58,MISCELLANEOUS AND SPECIALTY RETAIL STORES,2023-24Q3_PC0529
Sandwell Metropolitan Borough Council,https://www.sandwell.gov.uk/performance-spending/government-procurement-cards,23-Oct-2023,Total ASCHWB,AMZNMKTPLACE,Total Adult Social Care,30.18,MISCELLANEOUS AND SPECIALTY RETAIL STORES,2023-24Q3_PC0530
Sandwell Metropolitan Borough Council,https://www.sandwell.gov.uk/performance-spending/government-procurement-cards,23-Oct-2023,Childrens Services,HOLIDAY INNS,Childrens Services,226.96,HOLIDAY INNS,2023-24Q3_PC0531
Sandwell Metropolitan Borough Council,https://www.sandwell.gov.uk/performance-spending/government-procurement-cards,23-Oct-2023,Total ASCHWB,AMZNMKTPLACE,Total Adult Social Care,-246.96,MISCELLANEOUS AND SPECIALTY RETAIL STORES,2023-24Q3_PC0532
Sandwell Metropolitan Borough Council,https://www.sandwell.gov.uk/performance-spending/government-procurement-cards,23-Oct-2023,Total Borough Economy,PAYPAL  piano.matt.goo,Total Adult Social Care,240,POI FUNDING TRANSACTIONS,2023-24Q3_PC0533
Sandwell Metropolitan Borough Council,https://www.sandwell.gov.uk/performance-spending/government-procurement-cards,23-Oct-2023,Childrens Services,HANDY DRY CLEANERS,Childrens Services,111,"CLEANING, GARMENT, AND LAUNDRY SERVICES",2023-24Q3_PC0534
Sandwell Metropolitan Borough Council,https://www.sandwell.gov.uk/performance-spending/government-procurement-cards,23-Oct-2023,Total Borough Economy,Amazon.co.uk H09ZX0O04,Total Adult Social Care,134.98,DIRECT MARKETING-OTHER DIRECT MARKETERS/NOT ELSEW.,2023-24Q3_PC0535
Sandwell Metropolitan Borough Council,https://www.sandwell.gov.uk/performance-spending/government-procurement-cards,23-Oct-2023,Total Borough Economy,PADDLE.NET SNAPWIDGET,Total Adult Social Care,5.41,DIGITAL GOODS SOFTWARE APPLICATIONS,2023-24Q3_PC0536
Sandwell Metropolitan Borough Council,https://www.sandwell.gov.uk/performance-spending/government-procurement-cards,23-Oct-2023,Total Borough Economy,MFG NETHERTON,Total Adult Social Care,13.07,SERVICE STATIONS WITH OR WITHOUT ANCILLARY SERVICE,2023-24Q3_PC0537
Sandwell Metropolitan Borough Council,https://www.sandwell.gov.uk/performance-spending/government-procurement-cards,23-Oct-2023,Housing & Assets Total,AMZNMktplace,Corporate Management,19.99,MISCELLANEOUS AND SPECIALTY RETAIL STORES,2023-24Q3_PC0538
Sandwell Metropolitan Borough Council,https://www.sandwell.gov.uk/performance-spending/government-procurement-cards,23-Oct-2023,Childrens Services,REPLACEMENT KEYS LTD,Childrens Services,5.9,MISCELLANEOUS GENERAL MERCHANDISE,2023-24Q3_PC0539
Sandwell Metropolitan Borough Council,https://www.sandwell.gov.uk/performance-spending/government-procurement-cards,23-Oct-2023,Childrens Services,Amazon.co.uk H02LT3L04,Childrens Services,6.99,DIRECT MARKETING-OTHER DIRECT MARKETERS/NOT ELSEW.,2023-24Q3_PC0540
Sandwell Metropolitan Borough Council,https://www.sandwell.gov.uk/performance-spending/government-procurement-cards,23-Oct-2023,Childrens Services,TENPIN.CO.UK,Childrens Services,90,BOWLING ALLEYS,2023-24Q3_PC0541
Sandwell Metropolitan Borough Council,https://www.sandwell.gov.uk/performance-spending/government-procurement-cards,23-Oct-2023,Law & Governance,JOHNSTONES DEC CENTRE,Assistant Chief Executive (Excl SIU),428.11,"GLASS, PAINT, WALLPAPER STORES",2023-24Q3_PC0542
Sandwell Metropolitan Borough Council,https://www.sandwell.gov.uk/performance-spending/government-procurement-cards,23-Oct-2023,Total Borough Economy,TIMPSON LTD,Total Adult Social Care,20,MISCELLANEOUS AND SPECIALTY RETAIL STORES,2023-24Q3_PC0543
Sandwell Metropolitan Borough Council,https://www.sandwell.gov.uk/performance-spending/government-procurement-cards,23-Oct-2023,Total Borough Economy,SAINSBURYS S/MKTS,Total Adult Social Care,5.55,"GROCERY STORES, SUPERMARKETS",2023-24Q3_PC0544
Sandwell Metropolitan Borough Council,https://www.sandwell.gov.uk/performance-spending/government-procurement-cards,23-Oct-2023,Total Borough Economy,TIMPSON LTD,Total Adult Social Care,30,MISCELLANEOUS AND SPECIALTY RETAIL STORES,2023-24Q3_PC0545
Sandwell Metropolitan Borough Council,https://www.sandwell.gov.uk/performance-spending/government-procurement-cards,23-Oct-2023,Total Borough Economy,Amazon.co.uk H85642694,Total Adult Social Care,25.99,DIRECT MARKETING-OTHER DIRECT MARKETERS/NOT ELSEW.,2023-24Q3_PC0546
Sandwell Metropolitan Borough Council,https://www.sandwell.gov.uk/performance-spending/government-procurement-cards,23-Oct-2023,Total ASCHWB,AMZNMktplace,Total Adult Social Care,53.99,MISCELLANEOUS AND SPECIALTY RETAIL STORES,2023-24Q3_PC0547
Sandwell Metropolitan Borough Council,https://www.sandwell.gov.uk/performance-spending/government-procurement-cards,23-Oct-2023,Total ASCHWB,Amazon.co.uk H02321OX4,Total Adult Social Care,53.99,DIRECT MARKETING-OTHER DIRECT MARKETERS/NOT ELSEW.,2023-24Q3_PC0548
Sandwell Metropolitan Borough Council,https://www.sandwell.gov.uk/performance-spending/government-procurement-cards,23-Oct-2023,Total ASCHWB,AMZNMKTPLACE,Total Adult Social Care,17.97,MISCELLANEOUS AND SPECIALTY RETAIL STORES,2023-24Q3_PC0549
Sandwell Metropolitan Borough Council,https://www.sandwell.gov.uk/performance-spending/government-procurement-cards,23-Oct-2023,Total ASCHWB,AMZNMktplace,Total Adult Social Care,90.39,MISCELLANEOUS AND SPECIALTY RETAIL STORES,2023-24Q3_PC0550
Sandwell Metropolitan Borough Council,https://www.sandwell.gov.uk/performance-spending/government-procurement-cards,23-Oct-2023,Law & Governance,WWW.SANDWELL.GOV.UK,Assistant Chief Executive (Excl SIU),230,GOVERNMENT SERVICES-NOT ELSEWHERE CLASSIFIED,2023-24Q3_PC0551
Sandwell Metropolitan Borough Council,https://www.sandwell.gov.uk/performance-spending/government-procurement-cards,23-Oct-2023,Total ASCHWB,AMZNMKTPLACE,Total Adult Social Care,20.99,MISCELLANEOUS AND SPECIALTY RETAIL STORES,2023-24Q3_PC0552
Sandwell Metropolitan Borough Council,https://www.sandwell.gov.uk/performance-spending/government-procurement-cards,23-Oct-2023,Total Public Health,Helloprint United King,Public Health,124.77,"QUICK COPY,REPRODUCTION AND BLUEPRINTING SERVICES",2023-24Q3_PC0553
Sandwell Metropolitan Borough Council,https://www.sandwell.gov.uk/performance-spending/government-procurement-cards,23-Oct-2023,Total ASCHWB,AMZNMktplace,Total Adult Social Care,-126.08,MISCELLANEOUS AND SPECIALTY RETAIL STORES,2023-24Q3_PC0554
Sandwell Metropolitan Borough Council,https://www.sandwell.gov.uk/performance-spending/government-procurement-cards,23-Oct-2023,Total Public Health,AMZNMKTPLACE,Public Health,-8.99,MISCELLANEOUS AND SPECIALTY RETAIL STORES,2023-24Q3_PC0555
Sandwell Metropolitan Borough Council,https://www.sandwell.gov.uk/performance-spending/government-procurement-cards,23-Oct-2023,Total Public Health,Trainline,Public Health,133.09,PASSENGER RAILWAYS,2023-24Q3_PC0556
Sandwell Metropolitan Borough Council,https://www.sandwell.gov.uk/performance-spending/government-procurement-cards,23-Oct-2023,Total Borough Economy,Vistaprint,Total Adult Social Care,-112.26,BUSINESS SERVICES-NOT ELSEWHERE CLASSIFIED,2023-24Q3_PC0557
Sandwell Metropolitan Borough Council,https://www.sandwell.gov.uk/performance-spending/government-procurement-cards,23-Oct-2023,Total Housing Revenue Account,WESTMINSTER FORUM PROJ,Total Housing Revenue Account,114,"CONSULTING, MANAGEMENT, AND PUBLIC RELATIONS SVCS",2023-24Q3_PC0558
Sandwell Metropolitan Borough Council,https://www.sandwell.gov.uk/performance-spending/government-procurement-cards,23-Oct-2023,Regeneration & Growth,TRAVELODGE,Regeneration And The Economy,734.29,TRAVELODGE,2023-24Q3_PC0559
Sandwell Metropolitan Borough Council,https://www.sandwell.gov.uk/performance-spending/government-procurement-cards,23-Oct-2023,Regeneration & Growth,Trainline,Regeneration And The Economy,222.49,PASSENGER RAILWAYS,2023-24Q3_PC0560
Sandwell Metropolitan Borough Council,https://www.sandwell.gov.uk/performance-spending/government-procurement-cards,23-Oct-2023,Assistant Chief Executive,CANVA  I03945-35208287,Assistant Chief Executive (Excl SIU),99.99,PHOTOGRAPHIC STUDIOS,2023-24Q3_PC0561
Sandwell Metropolitan Borough Council,https://www.sandwell.gov.uk/performance-spending/government-procurement-cards,23-Oct-2023,Total Borough Economy,ALDI 42 772,Total Adult Social Care,19.66,"GROCERY STORES, SUPERMARKETS",2023-24Q3_PC0562
Sandwell Metropolitan Borough Council,https://www.sandwell.gov.uk/performance-spending/government-procurement-cards,24-Oct-2023,Total Borough Economy,AMZNMKTPLACE,Total Adult Social Care,17.82,MISCELLANEOUS AND SPECIALTY RETAIL STORES,2023-24Q3_PC0563
Sandwell Metropolitan Borough Council,https://www.sandwell.gov.uk/performance-spending/government-procurement-cards,24-Oct-2023,Assistant Chief Executive,Trainline,Assistant Chief Executive (Excl SIU),21.8,PASSENGER RAILWAYS,2023-24Q3_PC0564
Sandwell Metropolitan Borough Council,https://www.sandwell.gov.uk/performance-spending/government-procurement-cards,24-Oct-2023,Assistant Chief Executive,Trainline,Assistant Chief Executive (Excl SIU),21.8,PASSENGER RAILWAYS,2023-24Q3_PC0565
Sandwell Metropolitan Borough Council,https://www.sandwell.gov.uk/performance-spending/government-procurement-cards,24-Oct-2023,Total ASCHWB,AMZNMktplace,Total Adult Social Care,42.95,MISCELLANEOUS AND SPECIALTY RETAIL STORES,2023-24Q3_PC0566
Sandwell Metropolitan Borough Council,https://www.sandwell.gov.uk/performance-spending/government-procurement-cards,24-Oct-2023,Total ASCHWB,AMZNMktplace,Total Adult Social Care,263,MISCELLANEOUS AND SPECIALTY RETAIL STORES,2023-24Q3_PC0567
Sandwell Metropolitan Borough Council,https://www.sandwell.gov.uk/performance-spending/government-procurement-cards,24-Oct-2023,Assistant Chief Executive,Amazon.co.uk H04315EF4,Assistant Chief Executive (Excl SIU),18.93,DIRECT MARKETING-OTHER DIRECT MARKETERS/NOT ELSEW.,2023-24Q3_PC0568
Sandwell Metropolitan Borough Council,https://www.sandwell.gov.uk/performance-spending/government-procurement-cards,24-Oct-2023,Individual School Budgets With Inclusion,CATER 4 YOU,Individual School Budgets With Inclusion,89.96,INDUSTRIAL SUPPLIES NOT ELSEWHERE CLASSIFIED,2023-24Q3_PC0569
Sandwell Metropolitan Borough Council,https://www.sandwell.gov.uk/performance-spending/government-procurement-cards,24-Oct-2023,Individual School Budgets With Inclusion,Laddi Sweets & Caterer,Individual School Budgets With Inclusion,50,FAST FOOD RESTAURANTS,2023-24Q3_PC0570
Sandwell Metropolitan Borough Council,https://www.sandwell.gov.uk/performance-spending/government-procurement-cards,24-Oct-2023,Childrens Services,ASDA GROCERIES ONLINE,Childrens Services,-1.96,"GROCERY STORES, SUPERMARKETS",2023-24Q3_PC0571
Sandwell Metropolitan Borough Council,https://www.sandwell.gov.uk/performance-spending/government-procurement-cards,24-Oct-2023,Childrens Services,ASDA GROCERIES ONLINE,Childrens Services,117.04,"GROCERY STORES, SUPERMARKETS",2023-24Q3_PC0572
Sandwell Metropolitan Borough Council,https://www.sandwell.gov.uk/performance-spending/government-procurement-cards,24-Oct-2023,Childrens Services,Amazon.co.uk,Childrens Services,-33.99,DIRECT MARKETING-OTHER DIRECT MARKETERS/NOT ELSEW.,2023-24Q3_PC0573
Sandwell Metropolitan Borough Council,https://www.sandwell.gov.uk/performance-spending/government-procurement-cards,24-Oct-2023,Childrens Services,GRAMMARLY CO NENPJNO,Childrens Services,120,COMPUTER SOFTWARE STORES,2023-24Q3_PC0574
Sandwell Metropolitan Borough Council,https://www.sandwell.gov.uk/performance-spending/government-procurement-cards,24-Oct-2023,Childrens Services,Amazon.co.uk H06JL6094,Childrens Services,27.84,DIRECT MARKETING-OTHER DIRECT MARKETERS/NOT ELSEW.,2023-24Q3_PC0575
Sandwell Metropolitan Borough Council,https://www.sandwell.gov.uk/performance-spending/government-procurement-cards,24-Oct-2023,Individual School Budgets With Inclusion,ASDA GROCERIES ONLINE,Individual School Budgets With Inclusion,-5.8,"GROCERY STORES, SUPERMARKETS",2023-24Q3_PC0576
Sandwell Metropolitan Borough Council,https://www.sandwell.gov.uk/performance-spending/government-procurement-cards,24-Oct-2023,Individual School Budgets With Inclusion,ASDA GROCERIES ONLINE,Individual School Budgets With Inclusion,71.59,"GROCERY STORES, SUPERMARKETS",2023-24Q3_PC0577
Sandwell Metropolitan Borough Council,https://www.sandwell.gov.uk/performance-spending/government-procurement-cards,24-Oct-2023,Childrens Services,TESCO STORES 6197,Childrens Services,26.6,"GROCERY STORES, SUPERMARKETS",2023-24Q3_PC0578
Sandwell Metropolitan Borough Council,https://www.sandwell.gov.uk/performance-spending/government-procurement-cards,24-Oct-2023,Total Borough Economy,POUNDLAND LTD - 1729,Total Adult Social Care,3,DISCOUNT STORES,2023-24Q3_PC0579
Sandwell Metropolitan Borough Council,https://www.sandwell.gov.uk/performance-spending/government-procurement-cards,24-Oct-2023,Regeneration & Growth,SAINSBURYS S/MKTS,Regeneration And The Economy,6.15,"GROCERY STORES, SUPERMARKETS",2023-24Q3_PC0580
Sandwell Metropolitan Borough Council,https://www.sandwell.gov.uk/performance-spending/government-procurement-cards,24-Oct-2023,Total ASCHWB,Amazon.co.uk H09V750Y4,Total Adult Social Care,25.73,DIRECT MARKETING-OTHER DIRECT MARKETERS/NOT ELSEW.,2023-24Q3_PC0581
Sandwell Metropolitan Borough Council,https://www.sandwell.gov.uk/performance-spending/government-procurement-cards,24-Oct-2023,Total ASCHWB,Amazon.co.uk H02VO40H4,Total Adult Social Care,32.37,DIRECT MARKETING-OTHER DIRECT MARKETERS/NOT ELSEW.,2023-24Q3_PC0582
Sandwell Metropolitan Borough Council,https://www.sandwell.gov.uk/performance-spending/government-procurement-cards,24-Oct-2023,Childrens Services,BOOKTEQ,Childrens Services,119,COMPUTER SOFTWARE STORES,2023-24Q3_PC0583
Sandwell Metropolitan Borough Council,https://www.sandwell.gov.uk/performance-spending/government-procurement-cards,24-Oct-2023,Law & Governance,KITE PACKAGING LIMITED,Assistant Chief Executive (Excl SIU),455.16,MISCELLANEOUS GENERAL MERCHANDISE,2023-24Q3_PC0584
Sandwell Metropolitan Borough Council,https://www.sandwell.gov.uk/performance-spending/government-procurement-cards,24-Oct-2023,Total ASCHWB,MAGIMIX SPARES,Total Adult Social Care,13.64,HOUSEHOLD APPLIANCE STORES,2023-24Q3_PC0585
Sandwell Metropolitan Borough Council,https://www.sandwell.gov.uk/performance-spending/government-procurement-cards,24-Oct-2023,Childrens Services,TESCO STORES 2770,Childrens Services,117.86,"GROCERY STORES, SUPERMARKETS",2023-24Q3_PC0586
Sandwell Metropolitan Borough Council,https://www.sandwell.gov.uk/performance-spending/government-procurement-cards,24-Oct-2023,Total Borough Economy,WWW.SCREWFIX.COM,Total Adult Social Care,244.88,"BUILDING MATERIALS, LUMBER STORES",2023-24Q3_PC0587
Sandwell Metropolitan Borough Council,https://www.sandwell.gov.uk/performance-spending/government-procurement-cards,24-Oct-2023,Total Public Health,WORKPLACE PRODUCTS,Public Health,195.59,"COMMERCIAL EQUIPMENT, NOT ELSEWHERE CLASSIFIED",2023-24Q3_PC0588
Sandwell Metropolitan Borough Council,https://www.sandwell.gov.uk/performance-spending/government-procurement-cards,24-Oct-2023,Total Borough Economy,VIKING OFFICE UK LIMIT,Total Adult Social Care,40.67,STATIONERY/OFFICE SUPPLIES/PRINTING & WRITING PAP.,2023-24Q3_PC0589
Sandwell Metropolitan Borough Council,https://www.sandwell.gov.uk/performance-spending/government-procurement-cards,24-Oct-2023,Total Borough Economy,ASDA SUPERSTORE,Total Adult Social Care,0.3,"GROCERY STORES, SUPERMARKETS",2023-24Q3_PC0590
Sandwell Metropolitan Borough Council,https://www.sandwell.gov.uk/performance-spending/government-procurement-cards,24-Oct-2023,Total Borough Economy,ASDA SUPERSTORE,Total Adult Social Care,18.05,"GROCERY STORES, SUPERMARKETS",2023-24Q3_PC0591
Sandwell Metropolitan Borough Council,https://www.sandwell.gov.uk/performance-spending/government-procurement-cards,24-Oct-2023,Total Borough Economy,ONE BELOW,Total Adult Social Care,5,"GROCERY STORES, SUPERMARKETS",2023-24Q3_PC0592
Sandwell Metropolitan Borough Council,https://www.sandwell.gov.uk/performance-spending/government-procurement-cards,24-Oct-2023,Total Borough Economy,CARD FACTORY,Total Adult Social Care,15.72,"GIFT, CARD, NOVELTY AND SOUVENIR SHOPS",2023-24Q3_PC0593
Sandwell Metropolitan Borough Council,https://www.sandwell.gov.uk/performance-spending/government-procurement-cards,25-Oct-2023,Assistant Chief Executive,AMZNMktplace,Assistant Chief Executive (Excl SIU),10.88,MISCELLANEOUS AND SPECIALTY RETAIL STORES,2023-24Q3_PC0594
Sandwell Metropolitan Borough Council,https://www.sandwell.gov.uk/performance-spending/government-procurement-cards,25-Oct-2023,Total Borough Economy,AMZNMktplace,Total Adult Social Care,57.88,MISCELLANEOUS AND SPECIALTY RETAIL STORES,2023-24Q3_PC0595
Sandwell Metropolitan Borough Council,https://www.sandwell.gov.uk/performance-spending/government-procurement-cards,25-Oct-2023,Total Borough Economy,AMZNMktplace,Total Adult Social Care,244.92,MISCELLANEOUS AND SPECIALTY RETAIL STORES,2023-24Q3_PC0596
Sandwell Metropolitan Borough Council,https://www.sandwell.gov.uk/performance-spending/government-procurement-cards,25-Oct-2023,Total Borough Economy,RACKING SOLUTIONS,Total Adult Social Care,569.98,OFFICE AND COMMERCIAL FURNITURE,2023-24Q3_PC0597
Sandwell Metropolitan Borough Council,https://www.sandwell.gov.uk/performance-spending/government-procurement-cards,25-Oct-2023,Total Borough Economy,AMZNMKTPLACE,Total Adult Social Care,39.8,MISCELLANEOUS AND SPECIALTY RETAIL STORES,2023-24Q3_PC0598
Sandwell Metropolitan Borough Council,https://www.sandwell.gov.uk/performance-spending/government-procurement-cards,25-Oct-2023,Total Borough Economy,AMZNMKTPLACE,Total Adult Social Care,35.62,MISCELLANEOUS AND SPECIALTY RETAIL STORES,2023-24Q3_PC0599
Sandwell Metropolitan Borough Council,https://www.sandwell.gov.uk/performance-spending/government-procurement-cards,25-Oct-2023,Total Borough Economy,AMZNMktplace,Total Adult Social Care,17.9,MISCELLANEOUS AND SPECIALTY RETAIL STORES,2023-24Q3_PC0600
Sandwell Metropolitan Borough Council,https://www.sandwell.gov.uk/performance-spending/government-procurement-cards,25-Oct-2023,Total Borough Economy,AMZNMktplace,Total Adult Social Care,74.82,MISCELLANEOUS AND SPECIALTY RETAIL STORES,2023-24Q3_PC0601
Sandwell Metropolitan Borough Council,https://www.sandwell.gov.uk/performance-spending/government-procurement-cards,25-Oct-2023,Total Borough Economy,AMZNMktplace,Total Adult Social Care,11.99,MISCELLANEOUS AND SPECIALTY RETAIL STORES,2023-24Q3_PC0602
Sandwell Metropolitan Borough Council,https://www.sandwell.gov.uk/performance-spending/government-procurement-cards,25-Oct-2023,Total Borough Economy,HIRE STATION LTD,Total Adult Social Care,-200,"EQUIPMENT RENTAL&LEASING SVS, FURNTURE/TOOL RENTAL",2023-24Q3_PC0603
Sandwell Metropolitan Borough Council,https://www.sandwell.gov.uk/performance-spending/government-procurement-cards,25-Oct-2023,Total Borough Economy,HIRE STATION LTD,Total Adult Social Care,-33.31,"EQUIPMENT RENTAL&LEASING SVS, FURNTURE/TOOL RENTAL",2023-24Q3_PC0604
Sandwell Metropolitan Borough Council,https://www.sandwell.gov.uk/performance-spending/government-procurement-cards,25-Oct-2023,Assistant Chief Executive,AMZNMktplace,Assistant Chief Executive (Excl SIU),64.96,MISCELLANEOUS AND SPECIALTY RETAIL STORES,2023-24Q3_PC0605
Sandwell Metropolitan Borough Council,https://www.sandwell.gov.uk/performance-spending/government-procurement-cards,25-Oct-2023,Assistant Chief Executive,Trainline,Assistant Chief Executive (Excl SIU),-10.5,PASSENGER RAILWAYS,2023-24Q3_PC0606
Sandwell Metropolitan Borough Council,https://www.sandwell.gov.uk/performance-spending/government-procurement-cards,25-Oct-2023,Regeneration & Growth,AMZNMktplace,Regeneration And The Economy,55.72,MISCELLANEOUS AND SPECIALTY RETAIL STORES,2023-24Q3_PC0607
Sandwell Metropolitan Borough Council,https://www.sandwell.gov.uk/performance-spending/government-procurement-cards,25-Oct-2023,Regeneration & Growth,RTPI,Regeneration And The Economy,180,"CLUBS-CNTRY,MBRSHIP(ATHLET,REC,SPRTS,PRIVATE GOLF",2023-24Q3_PC0608
Sandwell Metropolitan Borough Council,https://www.sandwell.gov.uk/performance-spending/government-procurement-cards,25-Oct-2023,Regeneration & Growth,RTPI,Regeneration And The Economy,180,"CLUBS-CNTRY,MBRSHIP(ATHLET,REC,SPRTS,PRIVATE GOLF",2023-24Q3_PC0609
Sandwell Metropolitan Borough Council,https://www.sandwell.gov.uk/performance-spending/government-procurement-cards,25-Oct-2023,Regeneration & Growth,RTPI,Regeneration And The Economy,180,"CLUBS-CNTRY,MBRSHIP(ATHLET,REC,SPRTS,PRIVATE GOLF",2023-24Q3_PC0610
Sandwell Metropolitan Borough Council,https://www.sandwell.gov.uk/performance-spending/government-procurement-cards,25-Oct-2023,Individual School Budgets With Inclusion,ASDA GROCERIES ONLINE,Individual School Budgets With Inclusion,55,"GROCERY STORES, SUPERMARKETS",2023-24Q3_PC0611
Sandwell Metropolitan Borough Council,https://www.sandwell.gov.uk/performance-spending/government-procurement-cards,25-Oct-2023,Law & Governance,AMZNMktplace,Assistant Chief Executive (Excl SIU),12.98,MISCELLANEOUS AND SPECIALTY RETAIL STORES,2023-24Q3_PC0612
Sandwell Metropolitan Borough Council,https://www.sandwell.gov.uk/performance-spending/government-procurement-cards,25-Oct-2023,Childrens Services,ASDA GROCERIES ONLINE,Childrens Services,-4.27,"GROCERY STORES, SUPERMARKETS",2023-24Q3_PC0613
Sandwell Metropolitan Borough Council,https://www.sandwell.gov.uk/performance-spending/government-procurement-cards,25-Oct-2023,Childrens Services,ASDA GROCERIES ONLINE,Childrens Services,55.26,"GROCERY STORES, SUPERMARKETS",2023-24Q3_PC0614
Sandwell Metropolitan Borough Council,https://www.sandwell.gov.uk/performance-spending/government-procurement-cards,25-Oct-2023,Childrens Services,ASDA GROCERIES ONLINE,Childrens Services,9.15,"GROCERY STORES, SUPERMARKETS",2023-24Q3_PC0615
Sandwell Metropolitan Borough Council,https://www.sandwell.gov.uk/performance-spending/government-procurement-cards,25-Oct-2023,Regeneration & Growth,MONTA APP,Regeneration And The Economy,120.13,BUSINESS SERVICES-NOT ELSEWHERE CLASSIFIED,2023-24Q3_PC0616
Sandwell Metropolitan Borough Council,https://www.sandwell.gov.uk/performance-spending/government-procurement-cards,25-Oct-2023,Regeneration & Growth,MONTA APP,Regeneration And The Economy,31.21,BUSINESS SERVICES-NOT ELSEWHERE CLASSIFIED,2023-24Q3_PC0617
Sandwell Metropolitan Borough Council,https://www.sandwell.gov.uk/performance-spending/government-procurement-cards,25-Oct-2023,Regeneration & Growth,MONTA APP,Regeneration And The Economy,6.84,BUSINESS SERVICES-NOT ELSEWHERE CLASSIFIED,2023-24Q3_PC0618
Sandwell Metropolitan Borough Council,https://www.sandwell.gov.uk/performance-spending/government-procurement-cards,25-Oct-2023,Total ASCHWB,AMZNMktplace,Total Adult Social Care,230.4,MISCELLANEOUS AND SPECIALTY RETAIL STORES,2023-24Q3_PC0619
Sandwell Metropolitan Borough Council,https://www.sandwell.gov.uk/performance-spending/government-procurement-cards,25-Oct-2023,Total ASCHWB,VIKING OFFICE UK LIMIT,Total Adult Social Care,98.94,STATIONERY/OFFICE SUPPLIES/PRINTING & WRITING PAP.,2023-24Q3_PC0620
Sandwell Metropolitan Borough Council,https://www.sandwell.gov.uk/performance-spending/government-procurement-cards,25-Oct-2023,Total Borough Economy,VIKING OFFICE UK LIMIT,Total Adult Social Care,51.58,STATIONERY/OFFICE SUPPLIES/PRINTING & WRITING PAP.,2023-24Q3_PC0621
Sandwell Metropolitan Borough Council,https://www.sandwell.gov.uk/performance-spending/government-procurement-cards,25-Oct-2023,Childrens Services,WESTMINSTER FORUM PROJ,Childrens Services,312,"CONSULTING, MANAGEMENT, AND PUBLIC RELATIONS SVCS",2023-24Q3_PC0622
Sandwell Metropolitan Borough Council,https://www.sandwell.gov.uk/performance-spending/government-procurement-cards,25-Oct-2023,Childrens Services,WWW.OFFICETEAMCONNECT.,Childrens Services,12.66,STATIONERY/OFFICE SUPPLIES/PRINTING & WRITING PAP.,2023-24Q3_PC0623
Sandwell Metropolitan Borough Council,https://www.sandwell.gov.uk/performance-spending/government-procurement-cards,25-Oct-2023,Housing & Assets Total,AMZNMktplace,Corporate Management,14.99,MISCELLANEOUS AND SPECIALTY RETAIL STORES,2023-24Q3_PC0624
Sandwell Metropolitan Borough Council,https://www.sandwell.gov.uk/performance-spending/government-procurement-cards,25-Oct-2023,Housing & Assets Total,AMZNMktplace,Corporate Management,9.83,MISCELLANEOUS AND SPECIALTY RETAIL STORES,2023-24Q3_PC0625
Sandwell Metropolitan Borough Council,https://www.sandwell.gov.uk/performance-spending/government-procurement-cards,25-Oct-2023,Housing & Assets Total,AMZNMktplace,Corporate Management,6.95,MISCELLANEOUS AND SPECIALTY RETAIL STORES,2023-24Q3_PC0626
Sandwell Metropolitan Borough Council,https://www.sandwell.gov.uk/performance-spending/government-procurement-cards,25-Oct-2023,Housing & Assets Total,AMZNMktplace,Corporate Management,11.99,MISCELLANEOUS AND SPECIALTY RETAIL STORES,2023-24Q3_PC0627
Sandwell Metropolitan Borough Council,https://www.sandwell.gov.uk/performance-spending/government-procurement-cards,25-Oct-2023,Housing & Assets Total,Amazon.co.uk H08HB8XO4,Corporate Management,39.99,DIRECT MARKETING-OTHER DIRECT MARKETERS/NOT ELSEW.,2023-24Q3_PC0628
Sandwell Metropolitan Borough Council,https://www.sandwell.gov.uk/performance-spending/government-procurement-cards,25-Oct-2023,Housing & Assets Total,AMZNMktplace,Corporate Management,12.8,MISCELLANEOUS AND SPECIALTY RETAIL STORES,2023-24Q3_PC0629
Sandwell Metropolitan Borough Council,https://www.sandwell.gov.uk/performance-spending/government-procurement-cards,25-Oct-2023,Law & Governance,WWW.OFFICETEAMCONNECT.,Assistant Chief Executive (Excl SIU),269.87,STATIONERY/OFFICE SUPPLIES/PRINTING & WRITING PAP.,2023-24Q3_PC0630
Sandwell Metropolitan Borough Council,https://www.sandwell.gov.uk/performance-spending/government-procurement-cards,25-Oct-2023,Law & Governance,CURRYS BUSINESS,Assistant Chief Executive (Excl SIU),612.72,COMPUTER SOFTWARE STORES,2023-24Q3_PC0631
Sandwell Metropolitan Borough Council,https://www.sandwell.gov.uk/performance-spending/government-procurement-cards,25-Oct-2023,Law & Governance,Amazon.co.uk H04QQ3X04,Assistant Chief Executive (Excl SIU),33.11,DIRECT MARKETING-OTHER DIRECT MARKETERS/NOT ELSEW.,2023-24Q3_PC0632
Sandwell Metropolitan Borough Council,https://www.sandwell.gov.uk/performance-spending/government-procurement-cards,25-Oct-2023,Total Borough Economy,WWW.SANDWELL.GOV.UK,Total Adult Social Care,180,GOVERNMENT SERVICES-NOT ELSEWHERE CLASSIFIED,2023-24Q3_PC0633
Sandwell Metropolitan Borough Council,https://www.sandwell.gov.uk/performance-spending/government-procurement-cards,25-Oct-2023,Total Borough Economy,AMZNMKTPLACE,Total Adult Social Care,8.54,MISCELLANEOUS AND SPECIALTY RETAIL STORES,2023-24Q3_PC0634
Sandwell Metropolitan Borough Council,https://www.sandwell.gov.uk/performance-spending/government-procurement-cards,25-Oct-2023,Total ASCHWB,AMZNMKTPLACE,Total Adult Social Care,53.49,MISCELLANEOUS AND SPECIALTY RETAIL STORES,2023-24Q3_PC0635
Sandwell Metropolitan Borough Council,https://www.sandwell.gov.uk/performance-spending/government-procurement-cards,25-Oct-2023,Housing & Assets Total,STATION HOTEL,Corporate Management,1000,"LODGING-HOTELS,MOTELS,RESORTS-NOT CLASSIFIED",2023-24Q3_PC0636
Sandwell Metropolitan Borough Council,https://www.sandwell.gov.uk/performance-spending/government-procurement-cards,25-Oct-2023,Housing & Assets Total,STATION HOTEL,Corporate Management,650,"LODGING-HOTELS,MOTELS,RESORTS-NOT CLASSIFIED",2023-24Q3_PC0637
Sandwell Metropolitan Borough Council,https://www.sandwell.gov.uk/performance-spending/government-procurement-cards,25-Oct-2023,Total Borough Economy,AMZNMktplace,Total Adult Social Care,36.98,MISCELLANEOUS AND SPECIALTY RETAIL STORES,2023-24Q3_PC0638
Sandwell Metropolitan Borough Council,https://www.sandwell.gov.uk/performance-spending/government-procurement-cards,25-Oct-2023,Total Borough Economy,AMZNMktplace,Total Adult Social Care,38.58,MISCELLANEOUS AND SPECIALTY RETAIL STORES,2023-24Q3_PC0639
Sandwell Metropolitan Borough Council,https://www.sandwell.gov.uk/performance-spending/government-procurement-cards,25-Oct-2023,Total ASCHWB,AMAZON  026-5982861-75,Total Adult Social Care,35.68,MISCELLANEOUS GENERAL MERCHANDISE,2023-24Q3_PC0640
Sandwell Metropolitan Borough Council,https://www.sandwell.gov.uk/performance-spending/government-procurement-cards,25-Oct-2023,Total Borough Economy,AMZNMKTPLACE,Total Adult Social Care,103.9,MISCELLANEOUS AND SPECIALTY RETAIL STORES,2023-24Q3_PC0641
Sandwell Metropolitan Borough Council,https://www.sandwell.gov.uk/performance-spending/government-procurement-cards,25-Oct-2023,Total Borough Economy,AMZNMktplace,Total Adult Social Care,32.97,MISCELLANEOUS AND SPECIALTY RETAIL STORES,2023-24Q3_PC0642
Sandwell Metropolitan Borough Council,https://www.sandwell.gov.uk/performance-spending/government-procurement-cards,25-Oct-2023,Total Public Health,WWW.MARKALLENGROUP.COM,Public Health,154.8,SCHOOLS & EDUCATIONAL SVC-NOT ELSEWHERE CLASSIFIED,2023-24Q3_PC0643
Sandwell Metropolitan Borough Council,https://www.sandwell.gov.uk/performance-spending/government-procurement-cards,25-Oct-2023,Total Borough Economy,AMZNMktplace,Total Adult Social Care,76.93,MISCELLANEOUS AND SPECIALTY RETAIL STORES,2023-24Q3_PC0644
Sandwell Metropolitan Borough Council,https://www.sandwell.gov.uk/performance-spending/government-procurement-cards,25-Oct-2023,Total Borough Economy,AMAZON  204-8298697-41,Total Adult Social Care,149.5,MISCELLANEOUS GENERAL MERCHANDISE,2023-24Q3_PC0645
Sandwell Metropolitan Borough Council,https://www.sandwell.gov.uk/performance-spending/government-procurement-cards,25-Oct-2023,Total Borough Economy,AMAZON  204-4526517-54,Total Adult Social Care,149.5,MISCELLANEOUS GENERAL MERCHANDISE,2023-24Q3_PC0646
Sandwell Metropolitan Borough Council,https://www.sandwell.gov.uk/performance-spending/government-procurement-cards,25-Oct-2023,Total Borough Economy,AMAZON  204-2245850-36,Total Adult Social Care,59.95,MISCELLANEOUS GENERAL MERCHANDISE,2023-24Q3_PC0647
Sandwell Metropolitan Borough Council,https://www.sandwell.gov.uk/performance-spending/government-procurement-cards,25-Oct-2023,Childrens Services,AMZNMktplace,Childrens Services,16.99,MISCELLANEOUS AND SPECIALTY RETAIL STORES,2023-24Q3_PC0648
Sandwell Metropolitan Borough Council,https://www.sandwell.gov.uk/performance-spending/government-procurement-cards,25-Oct-2023,Childrens Services,BOOTS UK ECOMM,Childrens Services,84.02,"DRUG STORES, PHARMACIES",2023-24Q3_PC0649
Sandwell Metropolitan Borough Council,https://www.sandwell.gov.uk/performance-spending/government-procurement-cards,25-Oct-2023,Childrens Services,AMZNMKTPLACE,Childrens Services,11.99,MISCELLANEOUS AND SPECIALTY RETAIL STORES,2023-24Q3_PC0650
Sandwell Metropolitan Borough Council,https://www.sandwell.gov.uk/performance-spending/government-procurement-cards,25-Oct-2023,Childrens Services,POUNDLAND LTD - 1792,Childrens Services,65,DISCOUNT STORES,2023-24Q3_PC0651
Sandwell Metropolitan Borough Council,https://www.sandwell.gov.uk/performance-spending/government-procurement-cards,25-Oct-2023,Childrens Services,AMZNMktplace,Childrens Services,29.71,MISCELLANEOUS AND SPECIALTY RETAIL STORES,2023-24Q3_PC0652
Sandwell Metropolitan Borough Council,https://www.sandwell.gov.uk/performance-spending/government-procurement-cards,25-Oct-2023,Childrens Services,AMZNMktplace,Childrens Services,29.71,MISCELLANEOUS AND SPECIALTY RETAIL STORES,2023-24Q3_PC0653
Sandwell Metropolitan Borough Council,https://www.sandwell.gov.uk/performance-spending/government-procurement-cards,25-Oct-2023,Childrens Services,AMZNMKTPLACE,Childrens Services,41.05,MISCELLANEOUS AND SPECIALTY RETAIL STORES,2023-24Q3_PC0654
Sandwell Metropolitan Borough Council,https://www.sandwell.gov.uk/performance-spending/government-procurement-cards,25-Oct-2023,Total Housing Revenue Account,MOJ OSPT ECOM,Total Housing Revenue Account,40,GOVERNMENT SERVICES-NOT ELSEWHERE CLASSIFIED,2023-24Q3_PC0655
Sandwell Metropolitan Borough Council,https://www.sandwell.gov.uk/performance-spending/government-procurement-cards,25-Oct-2023,Total ASCHWB,AMZNMKTPLACE,Total Adult Social Care,137.96,MISCELLANEOUS AND SPECIALTY RETAIL STORES,2023-24Q3_PC0656
Sandwell Metropolitan Borough Council,https://www.sandwell.gov.uk/performance-spending/government-procurement-cards,25-Oct-2023,Individual School Budgets With Inclusion,AMZNMktplace,Individual School Budgets With Inclusion,3.19,MISCELLANEOUS AND SPECIALTY RETAIL STORES,2023-24Q3_PC0657
Sandwell Metropolitan Borough Council,https://www.sandwell.gov.uk/performance-spending/government-procurement-cards,25-Oct-2023,Total Housing Revenue Account,AMZNMKTPLACE,Total Housing Revenue Account,11.97,MISCELLANEOUS AND SPECIALTY RETAIL STORES,2023-24Q3_PC0658
Sandwell Metropolitan Borough Council,https://www.sandwell.gov.uk/performance-spending/government-procurement-cards,25-Oct-2023,Total Housing Revenue Account,WWW.SCREWFIX.COM,Total Housing Revenue Account,50.99,"BUILDING MATERIALS, LUMBER STORES",2023-24Q3_PC0659
Sandwell Metropolitan Borough Council,https://www.sandwell.gov.uk/performance-spending/government-procurement-cards,25-Oct-2023,Childrens Services,ASDA GROCERIES ONLINE,Childrens Services,-50.14,"GROCERY STORES, SUPERMARKETS",2023-24Q3_PC0660
Sandwell Metropolitan Borough Council,https://www.sandwell.gov.uk/performance-spending/government-procurement-cards,25-Oct-2023,Childrens Services,ASDA GROCERIES ONLINE,Childrens Services,147.86,"GROCERY STORES, SUPERMARKETS",2023-24Q3_PC0661
Sandwell Metropolitan Borough Council,https://www.sandwell.gov.uk/performance-spending/government-procurement-cards,25-Oct-2023,Total Borough Economy,VIKING OFFICE UK LIMIT,Total Adult Social Care,55.97,STATIONERY/OFFICE SUPPLIES/PRINTING & WRITING PAP.,2023-24Q3_PC0662
Sandwell Metropolitan Borough Council,https://www.sandwell.gov.uk/performance-spending/government-procurement-cards,25-Oct-2023,Assistant Chief Executive,UNAWARDS TICKETS,Assistant Chief Executive (Excl SIU),72,BUSINESS SERVICES-NOT ELSEWHERE CLASSIFIED,2023-24Q3_PC0663
Sandwell Metropolitan Borough Council,https://www.sandwell.gov.uk/performance-spending/government-procurement-cards,25-Oct-2023,Total Borough Economy,Wm Morrisons Store Pic,Total Adult Social Care,125.7,"GROCERY STORES, SUPERMARKETS",2023-24Q3_PC0664
Sandwell Metropolitan Borough Council,https://www.sandwell.gov.uk/performance-spending/government-procurement-cards,25-Oct-2023,Total Borough Economy,VIKING OFFICE UK LIMIT,Total Adult Social Care,27.13,STATIONERY/OFFICE SUPPLIES/PRINTING & WRITING PAP.,2023-24Q3_PC0665
Sandwell Metropolitan Borough Council,https://www.sandwell.gov.uk/performance-spending/government-procurement-cards,25-Oct-2023,Total Borough Economy,ASDA STORE 4759,Total Adult Social Care,7.35,"GROCERY STORES, SUPERMARKETS",2023-24Q3_PC0666
Sandwell Metropolitan Borough Council,https://www.sandwell.gov.uk/performance-spending/government-procurement-cards,25-Oct-2023,Total Borough Economy,VEGGIE VILLAGE,Total Adult Social Care,22,"CANDY, NUT, CONFECTIONERY STORES",2023-24Q3_PC0667
Sandwell Metropolitan Borough Council,https://www.sandwell.gov.uk/performance-spending/government-procurement-cards,26-Oct-2023,Childrens Services,ALDI 109 772,Childrens Services,2.95,"GROCERY STORES, SUPERMARKETS",2023-24Q3_PC0668
Sandwell Metropolitan Borough Council,https://www.sandwell.gov.uk/performance-spending/government-procurement-cards,26-Oct-2023,Childrens Services,RONTEC DUDLEY PORT,Childrens Services,1.4,SERVICE STATIONS WITH OR WITHOUT ANCILLARY SERVICE,2023-24Q3_PC0669
Sandwell Metropolitan Borough Council,https://www.sandwell.gov.uk/performance-spending/government-procurement-cards,26-Oct-2023,Total Borough Economy,SCREWFIX DIR LTD,Total Adult Social Care,30.27,"BUILDING MATERIALS, LUMBER STORES",2023-24Q3_PC0670
Sandwell Metropolitan Borough Council,https://www.sandwell.gov.uk/performance-spending/government-procurement-cards,26-Oct-2023,Individual School Budgets With Inclusion,AMZNMktplace,Individual School Budgets With Inclusion,25.99,MISCELLANEOUS AND SPECIALTY RETAIL STORES,2023-24Q3_PC0671
Sandwell Metropolitan Borough Council,https://www.sandwell.gov.uk/performance-spending/government-procurement-cards,26-Oct-2023,Assistant Chief Executive,Amazon.co.uk H092Y1H64,Assistant Chief Executive (Excl SIU),19.23,DIRECT MARKETING-OTHER DIRECT MARKETERS/NOT ELSEW.,2023-24Q3_PC0672
Sandwell Metropolitan Borough Council,https://www.sandwell.gov.uk/performance-spending/government-procurement-cards,26-Oct-2023,Regeneration & Growth,PLANNING PORTAL CONF,Regeneration And The Economy,118.8,COMPUTER SOFTWARE STORES,2023-24Q3_PC0673
Sandwell Metropolitan Borough Council,https://www.sandwell.gov.uk/performance-spending/government-procurement-cards,26-Oct-2023,Childrens Services,ASDA GROCERIES ONLINE,Childrens Services,-0.7,"GROCERY STORES, SUPERMARKETS",2023-24Q3_PC0674
Sandwell Metropolitan Borough Council,https://www.sandwell.gov.uk/performance-spending/government-procurement-cards,26-Oct-2023,Childrens Services,ASDA GROCERIES ONLINE,Childrens Services,52.87,"GROCERY STORES, SUPERMARKETS",2023-24Q3_PC0675
Sandwell Metropolitan Borough Council,https://www.sandwell.gov.uk/performance-spending/government-procurement-cards,26-Oct-2023,Total ASCHWB,AMZNMKTPLACE,Total Adult Social Care,53.82,MISCELLANEOUS AND SPECIALTY RETAIL STORES,2023-24Q3_PC0676
Sandwell Metropolitan Borough Council,https://www.sandwell.gov.uk/performance-spending/government-procurement-cards,26-Oct-2023,Total ASCHWB,eBay O 17-10699-29288,Total Adult Social Care,9.29,DEPARTMENT STORES,2023-24Q3_PC0677
Sandwell Metropolitan Borough Council,https://www.sandwell.gov.uk/performance-spending/government-procurement-cards,26-Oct-2023,Total ASCHWB,eBay O 25-10694-30023,Total Adult Social Care,3.9,DEPARTMENT STORES,2023-24Q3_PC0678
Sandwell Metropolitan Borough Council,https://www.sandwell.gov.uk/performance-spending/government-procurement-cards,26-Oct-2023,Total ASCHWB,AMZNMKTPLACE,Total Adult Social Care,163.22,MISCELLANEOUS AND SPECIALTY RETAIL STORES,2023-24Q3_PC0679
Sandwell Metropolitan Borough Council,https://www.sandwell.gov.uk/performance-spending/government-procurement-cards,26-Oct-2023,Total ASCHWB,FIXXON,Total Adult Social Care,47.48,NURSING AND PERSONAL CARE FACILITIES,2023-24Q3_PC0680
Sandwell Metropolitan Borough Council,https://www.sandwell.gov.uk/performance-spending/government-procurement-cards,26-Oct-2023,Total ASCHWB,AMZNMKTPLACE,Total Adult Social Care,59.98,MISCELLANEOUS AND SPECIALTY RETAIL STORES,2023-24Q3_PC0681
Sandwell Metropolitan Borough Council,https://www.sandwell.gov.uk/performance-spending/government-procurement-cards,26-Oct-2023,Childrens Services,AMZNMKTPLACE,Childrens Services,88.99,MISCELLANEOUS AND SPECIALTY RETAIL STORES,2023-24Q3_PC0682
Sandwell Metropolitan Borough Council,https://www.sandwell.gov.uk/performance-spending/government-procurement-cards,26-Oct-2023,Childrens Services,AMZNMKTPLACE,Childrens Services,27.76,MISCELLANEOUS AND SPECIALTY RETAIL STORES,2023-24Q3_PC0683
Sandwell Metropolitan Borough Council,https://www.sandwell.gov.uk/performance-spending/government-procurement-cards,26-Oct-2023,Childrens Services,AMZNMKTPLACE,Childrens Services,21.43,MISCELLANEOUS AND SPECIALTY RETAIL STORES,2023-24Q3_PC0684
Sandwell Metropolitan Borough Council,https://www.sandwell.gov.uk/performance-spending/government-procurement-cards,26-Oct-2023,Housing & Assets Total,WWW.OFFICETEAMCONNECT.,Total Adult Social Care,5.98,STATIONERY/OFFICE SUPPLIES/PRINTING & WRITING PAP.,2023-24Q3_PC0685
Sandwell Metropolitan Borough Council,https://www.sandwell.gov.uk/performance-spending/government-procurement-cards,26-Oct-2023,Total Borough Economy,Wm Morrisons Store Pic,Total Adult Social Care,66.66,"GROCERY STORES, SUPERMARKETS",2023-24Q3_PC0686
Sandwell Metropolitan Borough Council,https://www.sandwell.gov.uk/performance-spending/government-procurement-cards,26-Oct-2023,Childrens Services,Adobe.com,Childrens Services,19.97,DIGITAL GOODS SOFTWARE APPLICATIONS,2023-24Q3_PC0687
Sandwell Metropolitan Borough Council,https://www.sandwell.gov.uk/performance-spending/government-procurement-cards,26-Oct-2023,Individual School Budgets With Inclusion,ASDA STORES,Individual School Budgets With Inclusion,3.58,"GROCERY STORES, SUPERMARKETS",2023-24Q3_PC0688
Sandwell Metropolitan Borough Council,https://www.sandwell.gov.uk/performance-spending/government-procurement-cards,26-Oct-2023,Individual School Budgets With Inclusion,ASDA STORES,Individual School Budgets With Inclusion,17.92,"GROCERY STORES, SUPERMARKETS",2023-24Q3_PC0689
Sandwell Metropolitan Borough Council,https://www.sandwell.gov.uk/performance-spending/government-procurement-cards,26-Oct-2023,Housing & Assets Total,AMZNMktplace,Corporate Management,63.26,MISCELLANEOUS AND SPECIALTY RETAIL STORES,2023-24Q3_PC0690
Sandwell Metropolitan Borough Council,https://www.sandwell.gov.uk/performance-spending/government-procurement-cards,26-Oct-2023,Housing & Assets Total,AMZNMktplace,Corporate Management,19.99,MISCELLANEOUS AND SPECIALTY RETAIL STORES,2023-24Q3_PC0691
Sandwell Metropolitan Borough Council,https://www.sandwell.gov.uk/performance-spending/government-procurement-cards,26-Oct-2023,Childrens Services,AMZNMKTPLACE,Childrens Services,20.8,MISCELLANEOUS AND SPECIALTY RETAIL STORES,2023-24Q3_PC0692
Sandwell Metropolitan Borough Council,https://www.sandwell.gov.uk/performance-spending/government-procurement-cards,26-Oct-2023,Total ASCHWB,AMZNMktplace,Total Adult Social Care,137.16,MISCELLANEOUS AND SPECIALTY RETAIL STORES,2023-24Q3_PC0693
Sandwell Metropolitan Borough Council,https://www.sandwell.gov.uk/performance-spending/government-procurement-cards,26-Oct-2023,Total Borough Economy,POUNDLAND LTD - 1729,Total Adult Social Care,2.5,DISCOUNT STORES,2023-24Q3_PC0694
Sandwell Metropolitan Borough Council,https://www.sandwell.gov.uk/performance-spending/government-procurement-cards,26-Oct-2023,Assistant Chief Executive,AMZNMktplace,Assistant Chief Executive (Excl SIU),17.57,MISCELLANEOUS AND SPECIALTY RETAIL STORES,2023-24Q3_PC0695
Sandwell Metropolitan Borough Council,https://www.sandwell.gov.uk/performance-spending/government-procurement-cards,26-Oct-2023,Total Borough Economy,Amazon.co.uk H02O96H94,Total Adult Social Care,10.99,DIRECT MARKETING-OTHER DIRECT MARKETERS/NOT ELSEW.,2023-24Q3_PC0696
Sandwell Metropolitan Borough Council,https://www.sandwell.gov.uk/performance-spending/government-procurement-cards,26-Oct-2023,Total Borough Economy,AMZNMktplace,Total Adult Social Care,27.96,MISCELLANEOUS AND SPECIALTY RETAIL STORES,2023-24Q3_PC0697
Sandwell Metropolitan Borough Council,https://www.sandwell.gov.uk/performance-spending/government-procurement-cards,26-Oct-2023,Total ASCHWB,AMZNMktplace,Total Adult Social Care,139.99,MISCELLANEOUS AND SPECIALTY RETAIL STORES,2023-24Q3_PC0698
Sandwell Metropolitan Borough Council,https://www.sandwell.gov.uk/performance-spending/government-procurement-cards,26-Oct-2023,Childrens Services,POUNDLAND LTD - 1852,Childrens Services,107.5,DISCOUNT STORES,2023-24Q3_PC0699
Sandwell Metropolitan Borough Council,https://www.sandwell.gov.uk/performance-spending/government-procurement-cards,26-Oct-2023,Childrens Services,TESCO STORES 2770,Childrens Services,-9.1,"GROCERY STORES, SUPERMARKETS",2023-24Q3_PC0700
Sandwell Metropolitan Borough Council,https://www.sandwell.gov.uk/performance-spending/government-procurement-cards,26-Oct-2023,Childrens Services,TESCO STORES 2770,Childrens Services,128.93,"GROCERY STORES, SUPERMARKETS",2023-24Q3_PC0701
Sandwell Metropolitan Borough Council,https://www.sandwell.gov.uk/performance-spending/government-procurement-cards,26-Oct-2023,Total Borough Economy,AMZNMktplace,Total Adult Social Care,89.99,MISCELLANEOUS AND SPECIALTY RETAIL STORES,2023-24Q3_PC0702
Sandwell Metropolitan Borough Council,https://www.sandwell.gov.uk/performance-spending/government-procurement-cards,26-Oct-2023,Total Borough Economy,SAINSBURYS S/MKTS,Total Adult Social Care,18,"GROCERY STORES, SUPERMARKETS",2023-24Q3_PC0703
Sandwell Metropolitan Borough Council,https://www.sandwell.gov.uk/performance-spending/government-procurement-cards,26-Oct-2023,Total Borough Economy,BEST4FLOORING LTD,Total Adult Social Care,178.04,MISCELLANEOUS HOUSE FURNISHING SPECIALTY SHOPS,2023-24Q3_PC0704
Sandwell Metropolitan Borough Council,https://www.sandwell.gov.uk/performance-spending/government-procurement-cards,26-Oct-2023,Childrens Services,AMZNMKTPLACE,Childrens Services,4.29,MISCELLANEOUS AND SPECIALTY RETAIL STORES,2023-24Q3_PC0705
Sandwell Metropolitan Borough Council,https://www.sandwell.gov.uk/performance-spending/government-procurement-cards,26-Oct-2023,Childrens Services,AMZNMKTPLACE,Childrens Services,53.3,MISCELLANEOUS AND SPECIALTY RETAIL STORES,2023-24Q3_PC0706
Sandwell Metropolitan Borough Council,https://www.sandwell.gov.uk/performance-spending/government-procurement-cards,26-Oct-2023,Childrens Services,AMZNMKTPLACE,Childrens Services,19.98,MISCELLANEOUS AND SPECIALTY RETAIL STORES,2023-24Q3_PC0707
Sandwell Metropolitan Borough Council,https://www.sandwell.gov.uk/performance-spending/government-procurement-cards,26-Oct-2023,Childrens Services,AMZNMKTPLACE,Childrens Services,7.98,MISCELLANEOUS AND SPECIALTY RETAIL STORES,2023-24Q3_PC0708
Sandwell Metropolitan Borough Council,https://www.sandwell.gov.uk/performance-spending/government-procurement-cards,26-Oct-2023,Childrens Services,AMZNMKTPLACE,Childrens Services,9.99,MISCELLANEOUS AND SPECIALTY RETAIL STORES,2023-24Q3_PC0709
Sandwell Metropolitan Borough Council,https://www.sandwell.gov.uk/performance-spending/government-procurement-cards,26-Oct-2023,Childrens Services,AMZNMKTPLACE,Childrens Services,9.99,MISCELLANEOUS AND SPECIALTY RETAIL STORES,2023-24Q3_PC0710
Sandwell Metropolitan Borough Council,https://www.sandwell.gov.uk/performance-spending/government-procurement-cards,26-Oct-2023,Childrens Services,AMZNMKTPLACE,Childrens Services,22.87,MISCELLANEOUS AND SPECIALTY RETAIL STORES,2023-24Q3_PC0711
Sandwell Metropolitan Borough Council,https://www.sandwell.gov.uk/performance-spending/government-procurement-cards,26-Oct-2023,Childrens Services,Amazon.co.uk H02KL7HM4,Childrens Services,44.97,DIRECT MARKETING-OTHER DIRECT MARKETERS/NOT ELSEW.,2023-24Q3_PC0712
Sandwell Metropolitan Borough Council,https://www.sandwell.gov.uk/performance-spending/government-procurement-cards,26-Oct-2023,Childrens Services,WWW.GOMPELS.CO.UK,Childrens Services,156.89,DENTAL/LAB/MED/OPHTHALMIC HOSP EQUIP & SUPPLIES,2023-24Q3_PC0713
Sandwell Metropolitan Borough Council,https://www.sandwell.gov.uk/performance-spending/government-procurement-cards,26-Oct-2023,Childrens Services,UK SAFETY MANAGEME,Childrens Services,202.76,ELECTRICAL PARTS AND EQUIPMENT,2023-24Q3_PC0714
Sandwell Metropolitan Borough Council,https://www.sandwell.gov.uk/performance-spending/government-procurement-cards,26-Oct-2023,Regeneration & Growth,AMZNMktplace,Regeneration And The Economy,10.49,MISCELLANEOUS AND SPECIALTY RETAIL STORES,2023-24Q3_PC0715
Sandwell Metropolitan Borough Council,https://www.sandwell.gov.uk/performance-spending/government-procurement-cards,26-Oct-2023,FINANCE (Inc SIU),REMARKABLE,Assistant Chief Executive (Excl SIU),2.99,ELECTRONIC SALES,2023-24Q3_PC0716
Sandwell Metropolitan Borough Council,https://www.sandwell.gov.uk/performance-spending/government-procurement-cards,26-Oct-2023,Individual School Budgets With Inclusion,AMZNMKTPLACE,Individual School Budgets With Inclusion,83.7,MISCELLANEOUS AND SPECIALTY RETAIL STORES,2023-24Q3_PC0717
Sandwell Metropolitan Borough Council,https://www.sandwell.gov.uk/performance-spending/government-procurement-cards,26-Oct-2023,Individual School Budgets With Inclusion,AMZNMKTPLACE,Individual School Budgets With Inclusion,83.7,MISCELLANEOUS AND SPECIALTY RETAIL STORES,2023-24Q3_PC0718
Sandwell Metropolitan Borough Council,https://www.sandwell.gov.uk/performance-spending/government-procurement-cards,26-Oct-2023,Individual School Budgets With Inclusion,AMZNMKTPLACE,Individual School Budgets With Inclusion,0,MISCELLANEOUS AND SPECIALTY RETAIL STORES,2023-24Q3_PC0719
Sandwell Metropolitan Borough Council,https://www.sandwell.gov.uk/performance-spending/government-procurement-cards,26-Oct-2023,Individual School Budgets With Inclusion,AMZNMKTPLACE,Individual School Budgets With Inclusion,0,MISCELLANEOUS AND SPECIALTY RETAIL STORES,2023-24Q3_PC0720
Sandwell Metropolitan Borough Council,https://www.sandwell.gov.uk/performance-spending/government-procurement-cards,26-Oct-2023,Total Borough Economy,AMZNMktplace,Total Adult Social Care,37.98,MISCELLANEOUS AND SPECIALTY RETAIL STORES,2023-24Q3_PC0721
Sandwell Metropolitan Borough Council,https://www.sandwell.gov.uk/performance-spending/government-procurement-cards,26-Oct-2023,Total Housing Revenue Account,THE HEADSET STORE,Total Housing Revenue Account,445.8,TELECOMMUNICATION EQUIPMENT INCL TELEPHONE SALES,2023-24Q3_PC0722
Sandwell Metropolitan Borough Council,https://www.sandwell.gov.uk/performance-spending/government-procurement-cards,26-Oct-2023,Childrens Services,AMZNMktplace,Childrens Services,39.99,MISCELLANEOUS AND SPECIALTY RETAIL STORES,2023-24Q3_PC0723
Sandwell Metropolitan Borough Council,https://www.sandwell.gov.uk/performance-spending/government-procurement-cards,26-Oct-2023,Childrens Services,AMZNMktplace,Childrens Services,39.99,MISCELLANEOUS AND SPECIALTY RETAIL STORES,2023-24Q3_PC0724
Sandwell Metropolitan Borough Council,https://www.sandwell.gov.uk/performance-spending/government-procurement-cards,26-Oct-2023,Childrens Services,AMZNMktplace,Childrens Services,39.99,MISCELLANEOUS AND SPECIALTY RETAIL STORES,2023-24Q3_PC0725
Sandwell Metropolitan Borough Council,https://www.sandwell.gov.uk/performance-spending/government-procurement-cards,26-Oct-2023,Childrens Services,AMZNMktplace,Childrens Services,11.99,MISCELLANEOUS AND SPECIALTY RETAIL STORES,2023-24Q3_PC0726
Sandwell Metropolitan Borough Council,https://www.sandwell.gov.uk/performance-spending/government-procurement-cards,26-Oct-2023,Childrens Services,Amazon.co.uk H04624HS4,Childrens Services,35.31,DIRECT MARKETING-OTHER DIRECT MARKETERS/NOT ELSEW.,2023-24Q3_PC0727
Sandwell Metropolitan Borough Council,https://www.sandwell.gov.uk/performance-spending/government-procurement-cards,26-Oct-2023,Housing & Assets Total,AMZNMKTPLACE,Corporate Management,66.1,MISCELLANEOUS AND SPECIALTY RETAIL STORES,2023-24Q3_PC0728
Sandwell Metropolitan Borough Council,https://www.sandwell.gov.uk/performance-spending/government-procurement-cards,26-Oct-2023,Total Borough Economy,VIKING OFFICE UK LIMIT,Total Adult Social Care,173.72,STATIONERY/OFFICE SUPPLIES/PRINTING & WRITING PAP.,2023-24Q3_PC0729
Sandwell Metropolitan Borough Council,https://www.sandwell.gov.uk/performance-spending/government-procurement-cards,26-Oct-2023,Assistant Chief Executive,CIM,Assistant Chief Executive (Excl SIU),190,SCHOOLS & EDUCATIONAL SVC-NOT ELSEWHERE CLASSIFIED,2023-24Q3_PC0730
Sandwell Metropolitan Borough Council,https://www.sandwell.gov.uk/performance-spending/government-procurement-cards,26-Oct-2023,Assistant Chief Executive,CIM,Assistant Chief Executive (Excl SIU),65,SCHOOLS & EDUCATIONAL SVC-NOT ELSEWHERE CLASSIFIED,2023-24Q3_PC0731
Sandwell Metropolitan Borough Council,https://www.sandwell.gov.uk/performance-spending/government-procurement-cards,26-Oct-2023,Total Borough Economy,Wm Morrisons Store Pic,Total Adult Social Care,58.33,"GROCERY STORES, SUPERMARKETS",2023-24Q3_PC0732
Sandwell Metropolitan Borough Council,https://www.sandwell.gov.uk/performance-spending/government-procurement-cards,26-Oct-2023,Total Borough Economy,VIKING OFFICE UK LIMIT,Total Adult Social Care,40.07,STATIONERY/OFFICE SUPPLIES/PRINTING & WRITING PAP.,2023-24Q3_PC0733
Sandwell Metropolitan Borough Council,https://www.sandwell.gov.uk/performance-spending/government-procurement-cards,26-Oct-2023,Total Borough Economy,AMZNMKTPLACE,Total Adult Social Care,13.93,MISCELLANEOUS AND SPECIALTY RETAIL STORES,2023-24Q3_PC0734
Sandwell Metropolitan Borough Council,https://www.sandwell.gov.uk/performance-spending/government-procurement-cards,27-Oct-2023,Total ASCHWB,AMZNMktplace,Total Adult Social Care,24.98,MISCELLANEOUS AND SPECIALTY RETAIL STORES,2023-24Q3_PC0735
Sandwell Metropolitan Borough Council,https://www.sandwell.gov.uk/performance-spending/government-procurement-cards,27-Oct-2023,Total Borough Economy,AMZNMktplace,Dead SeRCOP,36.93,MISCELLANEOUS AND SPECIALTY RETAIL STORES,2023-24Q3_PC0736
Sandwell Metropolitan Borough Council,https://www.sandwell.gov.uk/performance-spending/government-procurement-cards,27-Oct-2023,Total Borough Economy,Amazon.co.uk H03O10QF4,Total Adult Social Care,94.8,DIRECT MARKETING-OTHER DIRECT MARKETERS/NOT ELSEW.,2023-24Q3_PC0737
Sandwell Metropolitan Borough Council,https://www.sandwell.gov.uk/performance-spending/government-procurement-cards,27-Oct-2023,Total Borough Economy,AMZNMktplace,Total Adult Social Care,9.99,MISCELLANEOUS AND SPECIALTY RETAIL STORES,2023-24Q3_PC0738
Sandwell Metropolitan Borough Council,https://www.sandwell.gov.uk/performance-spending/government-procurement-cards,27-Oct-2023,FINANCE (Inc SIU),AMZNMktplace,Assistant Chief Executive (Excl SIU),21.9,MISCELLANEOUS AND SPECIALTY RETAIL STORES,2023-24Q3_PC0739
Sandwell Metropolitan Borough Council,https://www.sandwell.gov.uk/performance-spending/government-procurement-cards,27-Oct-2023,Assistant Chief Executive,AMZNMktplace,Assistant Chief Executive (Excl SIU),38.58,MISCELLANEOUS AND SPECIALTY RETAIL STORES,2023-24Q3_PC0740
Sandwell Metropolitan Borough Council,https://www.sandwell.gov.uk/performance-spending/government-procurement-cards,27-Oct-2023,Assistant Chief Executive,Trainline,Assistant Chief Executive (Excl SIU),105.05,PASSENGER RAILWAYS,2023-24Q3_PC0741
Sandwell Metropolitan Borough Council,https://www.sandwell.gov.uk/performance-spending/government-procurement-cards,27-Oct-2023,Total ASCHWB,CHAPMANS ELECTRICAL,Total Adult Social Care,364.6,HOUSEHOLD APPLIANCE STORES,2023-24Q3_PC0742
Sandwell Metropolitan Borough Council,https://www.sandwell.gov.uk/performance-spending/government-procurement-cards,27-Oct-2023,Law & Governance,AMZNMktplace,Assistant Chief Executive (Excl SIU),283.88,MISCELLANEOUS AND SPECIALTY RETAIL STORES,2023-24Q3_PC0743
Sandwell Metropolitan Borough Council,https://www.sandwell.gov.uk/performance-spending/government-procurement-cards,27-Oct-2023,Law & Governance,AMZNMktplace,Assistant Chief Executive (Excl SIU),21.03,MISCELLANEOUS AND SPECIALTY RETAIL STORES,2023-24Q3_PC0744
Sandwell Metropolitan Borough Council,https://www.sandwell.gov.uk/performance-spending/government-procurement-cards,27-Oct-2023,Regeneration & Growth,AMZNMKTPLACE,Regeneration And The Economy,15.98,MISCELLANEOUS AND SPECIALTY RETAIL STORES,2023-24Q3_PC0745
Sandwell Metropolitan Borough Council,https://www.sandwell.gov.uk/performance-spending/government-procurement-cards,27-Oct-2023,Childrens Services,BRIDEBOOK,Childrens Services,153.6,COMPUTER SOFTWARE STORES,2023-24Q3_PC0746
Sandwell Metropolitan Borough Council,https://www.sandwell.gov.uk/performance-spending/government-procurement-cards,27-Oct-2023,Total Borough Economy,POST OFFICE COUNTER,Total Adult Social Care,4.2,POSTAL SERVICES-GOVERNMENT ONLY,2023-24Q3_PC0747
Sandwell Metropolitan Borough Council,https://www.sandwell.gov.uk/performance-spending/government-procurement-cards,27-Oct-2023,Total ASCHWB,eBay O 24-10713-80217,Total Adult Social Care,7.85,DEPARTMENT STORES,2023-24Q3_PC0748
Sandwell Metropolitan Borough Council,https://www.sandwell.gov.uk/performance-spending/government-procurement-cards,27-Oct-2023,Childrens Services,AMZNMKTPLACE,Childrens Services,49.29,MISCELLANEOUS AND SPECIALTY RETAIL STORES,2023-24Q3_PC0749
Sandwell Metropolitan Borough Council,https://www.sandwell.gov.uk/performance-spending/government-procurement-cards,27-Oct-2023,Childrens Services,SP VENDINGSUPERSTORE,Childrens Services,233.27,"GROCERY STORES, SUPERMARKETS",2023-24Q3_PC0750
Sandwell Metropolitan Borough Council,https://www.sandwell.gov.uk/performance-spending/government-procurement-cards,27-Oct-2023,Childrens Services,HANDY DRY CLEANERS,Childrens Services,85,"CLEANING, GARMENT, AND LAUNDRY SERVICES",2023-24Q3_PC0751
Sandwell Metropolitan Borough Council,https://www.sandwell.gov.uk/performance-spending/government-procurement-cards,27-Oct-2023,Childrens Services,JLCARPETCL  JLCARPETCL,Childrens Services,292.37,"CLEANING AND MAINTENANCE, JANITORIAL SERVICES",2023-24Q3_PC0752
Sandwell Metropolitan Borough Council,https://www.sandwell.gov.uk/performance-spending/government-procurement-cards,27-Oct-2023,Assistant Chief Executive,Trainline,Assistant Chief Executive (Excl SIU),89.2,PASSENGER RAILWAYS,2023-24Q3_PC0753
Sandwell Metropolitan Borough Council,https://www.sandwell.gov.uk/performance-spending/government-procurement-cards,27-Oct-2023,Individual School Budgets With Inclusion,ASDA STORES,Individual School Budgets With Inclusion,20,"GROCERY STORES, SUPERMARKETS",2023-24Q3_PC0754
Sandwell Metropolitan Borough Council,https://www.sandwell.gov.uk/performance-spending/government-procurement-cards,27-Oct-2023,Law & Governance,AMZNMktplace,Assistant Chief Executive (Excl SIU),27.98,MISCELLANEOUS AND SPECIALTY RETAIL STORES,2023-24Q3_PC0755
Sandwell Metropolitan Borough Council,https://www.sandwell.gov.uk/performance-spending/government-procurement-cards,27-Oct-2023,Childrens Services,WM MORRISONS STORE,Childrens Services,23.82,"GROCERY STORES, SUPERMARKETS",2023-24Q3_PC0756
Sandwell Metropolitan Borough Council,https://www.sandwell.gov.uk/performance-spending/government-procurement-cards,27-Oct-2023,Total ASCHWB,AMZNMktplace,Total Adult Social Care,22.12,MISCELLANEOUS AND SPECIALTY RETAIL STORES,2023-24Q3_PC0757
Sandwell Metropolitan Borough Council,https://www.sandwell.gov.uk/performance-spending/government-procurement-cards,27-Oct-2023,Total Borough Economy,POSTURITE LTD,Total Adult Social Care,735.87,MISCELLANEOUS HOUSE FURNISHING SPECIALTY SHOPS,2023-24Q3_PC0758
Sandwell Metropolitan Borough Council,https://www.sandwell.gov.uk/performance-spending/government-procurement-cards,27-Oct-2023,Childrens Services,TESCO STORES 6638,Childrens Services,17.7,"GROCERY STORES, SUPERMARKETS",2023-24Q3_PC0759
Sandwell Metropolitan Borough Council,https://www.sandwell.gov.uk/performance-spending/government-procurement-cards,27-Oct-2023,Total Borough Economy,SAINSBURYS S/MKTS,Total Adult Social Care,17.3,"GROCERY STORES, SUPERMARKETS",2023-24Q3_PC0760
Sandwell Metropolitan Borough Council,https://www.sandwell.gov.uk/performance-spending/government-procurement-cards,27-Oct-2023,Total Borough Economy,AMZNMktplace,Total Adult Social Care,16,MISCELLANEOUS AND SPECIALTY RETAIL STORES,2023-24Q3_PC0761
Sandwell Metropolitan Borough Council,https://www.sandwell.gov.uk/performance-spending/government-procurement-cards,27-Oct-2023,Childrens Services,Amazon.co.uk H08AC96S4,Childrens Services,34.39,DIRECT MARKETING-OTHER DIRECT MARKETERS/NOT ELSEW.,2023-24Q3_PC0762
Sandwell Metropolitan Borough Council,https://www.sandwell.gov.uk/performance-spending/government-procurement-cards,27-Oct-2023,Childrens Services,SP VENDINGSUPERSTORE,Childrens Services,243.02,"GROCERY STORES, SUPERMARKETS",2023-24Q3_PC0763
Sandwell Metropolitan Borough Council,https://www.sandwell.gov.uk/performance-spending/government-procurement-cards,27-Oct-2023,Total Borough Economy,AMZNMKTPLACE,Total Adult Social Care,221.24,MISCELLANEOUS AND SPECIALTY RETAIL STORES,2023-24Q3_PC0764
Sandwell Metropolitan Borough Council,https://www.sandwell.gov.uk/performance-spending/government-procurement-cards,27-Oct-2023,Childrens Services,AMZNMKTPLACE,Childrens Services,39.99,MISCELLANEOUS AND SPECIALTY RETAIL STORES,2023-24Q3_PC0765
Sandwell Metropolitan Borough Council,https://www.sandwell.gov.uk/performance-spending/government-procurement-cards,27-Oct-2023,Childrens Services,AMZNMKTPLACE,Childrens Services,39.99,MISCELLANEOUS AND SPECIALTY RETAIL STORES,2023-24Q3_PC0766
Sandwell Metropolitan Borough Council,https://www.sandwell.gov.uk/performance-spending/government-procurement-cards,27-Oct-2023,Childrens Services,AMZNMKTPLACE,Childrens Services,11.04,MISCELLANEOUS AND SPECIALTY RETAIL STORES,2023-24Q3_PC0767
Sandwell Metropolitan Borough Council,https://www.sandwell.gov.uk/performance-spending/government-procurement-cards,30-Oct-2023,FINANCE (Inc SIU),LONDON STOCK EXCHANGE,Assistant Chief Executive (Excl SIU),60,PROFESSIONAL SERVICES-NOT ELSEWHERE CLASSIFIED,2023-24Q3_PC0768
Sandwell Metropolitan Borough Council,https://www.sandwell.gov.uk/performance-spending/government-procurement-cards,30-Oct-2023,Total Borough Economy,POUNDLAND LTD - 2164,Total Adult Social Care,15,DISCOUNT STORES,2023-24Q3_PC0769
Sandwell Metropolitan Borough Council,https://www.sandwell.gov.uk/performance-spending/government-procurement-cards,30-Oct-2023,Total Borough Economy,ARGOS BLACKHEATH,Total Adult Social Care,20,DISCOUNT STORES,2023-24Q3_PC0770
Sandwell Metropolitan Borough Council,https://www.sandwell.gov.uk/performance-spending/government-procurement-cards,30-Oct-2023,Total Borough Economy,SAINSBURYS S/MKTS,Total Adult Social Care,44.73,"GROCERY STORES, SUPERMARKETS",2023-24Q3_PC0771
Sandwell Metropolitan Borough Council,https://www.sandwell.gov.uk/performance-spending/government-procurement-cards,30-Oct-2023,Total Borough Economy,AMAZON  204-2083920-60,Total Adult Social Care,18.47,MISCELLANEOUS GENERAL MERCHANDISE,2023-24Q3_PC0772
Sandwell Metropolitan Borough Council,https://www.sandwell.gov.uk/performance-spending/government-procurement-cards,30-Oct-2023,Total Borough Economy,BOOKER LTD - 38593354,Total Adult Social Care,321.61,"GROCERY STORES, SUPERMARKETS",2023-24Q3_PC0773
Sandwell Metropolitan Borough Council,https://www.sandwell.gov.uk/performance-spending/government-procurement-cards,30-Oct-2023,Childrens Services,Trainline,Childrens Services,-94.9,PASSENGER RAILWAYS,2023-24Q3_PC0774
Sandwell Metropolitan Borough Council,https://www.sandwell.gov.uk/performance-spending/government-procurement-cards,30-Oct-2023,Assistant Chief Executive,AMZNMktplace,Assistant Chief Executive (Excl SIU),31.23,MISCELLANEOUS AND SPECIALTY RETAIL STORES,2023-24Q3_PC0775
Sandwell Metropolitan Borough Council,https://www.sandwell.gov.uk/performance-spending/government-procurement-cards,30-Oct-2023,Total ASCHWB,AMZNMktplace,Total Adult Social Care,-263,MISCELLANEOUS AND SPECIALTY RETAIL STORES,2023-24Q3_PC0776
Sandwell Metropolitan Borough Council,https://www.sandwell.gov.uk/performance-spending/government-procurement-cards,30-Oct-2023,Childrens Services,Amazon.co.uk H09YK3WI4,Childrens Services,6.9,DIRECT MARKETING-OTHER DIRECT MARKETERS/NOT ELSEW.,2023-24Q3_PC0777
Sandwell Metropolitan Borough Council,https://www.sandwell.gov.uk/performance-spending/government-procurement-cards,30-Oct-2023,Childrens Services,ASDA GROCERIES ONLINE,Childrens Services,-0.97,"GROCERY STORES, SUPERMARKETS",2023-24Q3_PC0778
Sandwell Metropolitan Borough Council,https://www.sandwell.gov.uk/performance-spending/government-procurement-cards,30-Oct-2023,Childrens Services,ASDA GROCERIES ONLINE,Childrens Services,106.65,"GROCERY STORES, SUPERMARKETS",2023-24Q3_PC0779
Sandwell Metropolitan Borough Council,https://www.sandwell.gov.uk/performance-spending/government-procurement-cards,30-Oct-2023,Individual School Budgets With Inclusion,AMZNMKTPLACE,Individual School Budgets With Inclusion,29.64,MISCELLANEOUS AND SPECIALTY RETAIL STORES,2023-24Q3_PC0780
Sandwell Metropolitan Borough Council,https://www.sandwell.gov.uk/performance-spending/government-procurement-cards,30-Oct-2023,Regeneration & Growth,UK SAFE MOVES LTD,Regeneration And The Economy,594,"COMP PROGRAMING,DATA PRCSNG,INTGRTD SYS DSGN SRVS",2023-24Q3_PC0781
Sandwell Metropolitan Borough Council,https://www.sandwell.gov.uk/performance-spending/government-procurement-cards,30-Oct-2023,Total ASCHWB,NHS SUPPLYCHAIN PORTAL,Total Adult Social Care,496.86,"HEALTH PRACTITIONERS, MEDICAL SRVCS-NOT ELSEWHERE",2023-24Q3_PC0782
Sandwell Metropolitan Borough Council,https://www.sandwell.gov.uk/performance-spending/government-procurement-cards,30-Oct-2023,Total ASCHWB,AMZNMktplace,Total Adult Social Care,132.57,MISCELLANEOUS AND SPECIALTY RETAIL STORES,2023-24Q3_PC0783
Sandwell Metropolitan Borough Council,https://www.sandwell.gov.uk/performance-spending/government-procurement-cards,30-Oct-2023,Total ASCHWB,VIKING OFFICE UK LIMIT,Total Adult Social Care,49.8,STATIONERY/OFFICE SUPPLIES/PRINTING & WRITING PAP.,2023-24Q3_PC0784
Sandwell Metropolitan Borough Council,https://www.sandwell.gov.uk/performance-spending/government-procurement-cards,30-Oct-2023,Total ASCHWB,Amazon.co.uk H00KJ7KH4,Total Adult Social Care,45,DIRECT MARKETING-OTHER DIRECT MARKETERS/NOT ELSEW.,2023-24Q3_PC0785
Sandwell Metropolitan Borough Council,https://www.sandwell.gov.uk/performance-spending/government-procurement-cards,30-Oct-2023,Total ASCHWB,WWW.OFFICETEAMCONNECT.,Total Adult Social Care,23.09,STATIONERY/OFFICE SUPPLIES/PRINTING & WRITING PAP.,2023-24Q3_PC0786
Sandwell Metropolitan Borough Council,https://www.sandwell.gov.uk/performance-spending/government-procurement-cards,30-Oct-2023,Total ASCHWB,AMZNMktplace,Total Adult Social Care,234.4,MISCELLANEOUS AND SPECIALTY RETAIL STORES,2023-24Q3_PC0787
